Service Area,Service Division,Expense Type,Expense Code,Detailed Expense Type,Payment Date,Transaction Number,Amount Exc Vat,Supplier Name
Adult and Health Services,Public Health,Third Party Payments,460802,Contract Payments,01-Dec-2017,3370361-FHD21/OCT2017/EOHC,570.48,BOOTS THE CHEMISTS LTD.*
Adult and Health Services,Public Health,Third Party Payments,460802,Contract Payments,01-Dec-2017,3370362-FKP88/OCT2017/EOHC,"1,402.43",BOOTS THE CHEMISTS LTD.*
Adult and Health Services,Public Health,Third Party Payments,460802,Contract Payments,01-Dec-2017,3370369-FYR53/OCT2017/EOHC,"3,470.42",BOOTS THE CHEMISTS LTD.*
Adult and Health Services,Public Health,Third Party Payments,460802,Contract Payments,01-Dec-2017,3370373-FD330/OCT2017/EOHC,522.94,BOOTS THE CHEMISTS LTD.*
Adult and Health Services,Commissioning inc Supporting People,Third Party Payments,479101,Purchase of Care,01-Dec-2017,3370545-9077,"11,583.33",MAIN - TAKING AUTISM PERSONALLY.
Children and Young Peoples Services,Head of Education,Transfer Payments,510026,School Children,01-Dec-2017,3370379-WWDOB4/10/13NOVEMBER2017,612.00,BUDDIES CHILDCARE CENTRE.
Children and Young Peoples Services,Head of Looked After Provision Permanence and Care Leavers,Supplies and Services,364352,Grants to Voluntary Organisations,01-Dec-2017,3370561-CAS-11-2017-175,531.50,REDACTED - PAYMENT TO INDIVIDUAL
Children and Young Peoples Services,Head of Education,Third Party Payments,440999,Other Third Party Payments,01-Dec-2017,3370500-JD/DCC/1679,"1,451.74",JACK DRUM ARTS LTD.
Children and Young Peoples Services,Head of Education,Third Party Payments,440999,Other Third Party Payments,01-Dec-2017,3370500-JD/DCC/1680,518.48,JACK DRUM ARTS LTD.
Children and Young Peoples Services,Head of Education,Third Party Payments,440999,Other Third Party Payments,01-Dec-2017,3370500-JD/DCC/1681,"2,004.78",JACK DRUM ARTS LTD.
Children and Young Peoples Services,Head of Looked After Provision Permanence and Care Leavers,Supplies and Services,338099,Services,01-Dec-2017,3370593-52897481,707.50,PARK RETAIL LTD.
Children and Young Peoples Services,Head of Early Help Assessment and Safeguarding,Supplies and Services,384899,Miscellaneous Expenses,01-Dec-2017,3370424-3920181,"1,290.30",DEPARTMENT FOR WORK & PENSIONS.
Children and Young Peoples Services,Head of Early Help Assessment and Safeguarding,Supplies and Services,338044,Services,01-Dec-2017,3370406-99207,734.00,COMPLEMENT GENOMICS LTD.
Children and Young Peoples Services,Head of Education,Third Party Payments,440999,Other Third Party Payments,01-Dec-2017,3370453-5660,"4,623.12",FANE LTD.
Children and Young Peoples Services,Head of Education,Third Party Payments,440999,Other Third Party Payments,01-Dec-2017,3370453-5668,736.84,FANE LTD.
Children and Young Peoples Services,Head of Education,Third Party Payments,440999,Other Third Party Payments,01-Dec-2017,3370453-5669,"6,264.16",FANE LTD.
Children and Young Peoples Services,Head of Looked After Provision Permanence and Care Leavers,Third Party Payments,425021,Rendered by Voluntary Organisations,01-Dec-2017,3370487-4333,"3,520.00",HOWARD HOUSE CARE LTD.
Children and Young Peoples Services,Head of Early Help Assessment and Safeguarding,Supplies and Services,338094,Services,01-Dec-2017,3370567-2424,600.00,NEWTON AYCLIFFE YOUTH & COMMUNITY CENTRE.
Children and Young Peoples Services,Head of Education,Fees,901002,Professional fees,01-Dec-2017,3370575-9869,500.00,NORTH EAST AUTOMATION LTD.
Children and Young Peoples Services,Head of Education,Construction Work,908105,Construction work,01-Dec-2017,3370628-3711,943.68,SAFE STRIP UK LTD.
Children and Young Peoples Services,Head of Early Help Assessment and Safeguarding,Third Party Payments,425028,Rendered by Voluntary Organisations,01-Dec-2017,3370645-1089,"4,025.00",SPORT WORKS LTD.
Children and Young Peoples Services,Childrens Services Operational Support,Supplies and Services,338089,Services,01-Dec-2017,3370526-492,748.60,LIANE HAMBLY ASSOCIATES.
Dedicated Schools Grant,Dedicated Schools Grant,Third Party Payments,425005,Rendered by Voluntary Organisations,01-Dec-2017,3370574-0000034275,"13,279.50",NORTH EAST AUTISM SOCIETY.
Regeneration and Local Services,Culture & Sport,Supplies and Services,338047,Services,01-Dec-2017,3370319-DURHAMCATHEDRAL11/11/2017,"4,971.04",ABF THE SOLDIER`S CHARITY.
Regeneration and Local Services,Economic Development and Housing,Supplies and Services,384700,Miscellaneous Expenses,01-Dec-2017,3370457-RED-11-2017-295,"1,000.00",FINISHING TOUCH CLINIC LTD.
Regeneration and Local Services,Economic Development and Housing,Cap Exp on Grants & Other Financial Assistance (REFCUS),918401,Capital grants,01-Dec-2017,3370472-RED-11-2017-296,"19,500.00",GILLS FRY FRY LTD.
Regeneration and Local Services,Economic Development and Housing,Supplies and Services,338094,Services,01-Dec-2017,3370357-SLINV/00000155,700.00,BISHOP AUCKLAND COLLEGE.
Regeneration and Local Services,Technical Services,Third Party Payments,430100,Rendered by Private Contractors,01-Dec-2017,3370581-DI20281699,"3,210.11",NORTHERN POWERGRID (NORTHEAST) LTD.
Regeneration and Local Services,Technical Services,Third Party Payments,430100,Rendered by Private Contractors,01-Dec-2017,3370581-DI20281701,"6,639.14",NORTHERN POWERGRID (NORTHEAST) LTD.
Regeneration and Local Services,Technical Services,Third Party Payments,430100,Rendered by Private Contractors,01-Dec-2017,3370581-DI20281706,"4,047.50",NORTHERN POWERGRID (NORTHEAST) LTD.
Regeneration and Local Services,Direct Services,Supplies and Services,304221,Equipment and Materials,01-Dec-2017,3370683-6890249812,"10,414.28",VIESSMANN LTD.
Regeneration and Local Services,Direct Services,Supplies and Services,304259,Equipment and Materials,01-Dec-2017,3370685-00334/2017,"1,575.00",VIPA UK LTD.
Regeneration and Local Services,Direct Services,Supplies and Services,304259,Equipment and Materials,01-Dec-2017,3370685-00338/2017,"1,970.00",VIPA UK LTD.
Regeneration and Local Services,Culture & Sport,Premises,145023,Cleaning and Domestic Supplies,01-Dec-2017,3370476-06/693304,640.26,GREENHAM TRADING LTD.
Regeneration and Local Services,Technical Services,Stock,926900,Stock in hand-Inventory system,01-Dec-2017,3370516-STI468757,901.37,JT DOVE LTD.
Regeneration and Local Services,Direct Services,Third Party Payments,430100,Rendered by Private Contractors,01-Dec-2017,3370677-DCC/GT/39,894.40,TYNE VALLEY FLOORING & CARPETS.
Regeneration and Local Services,Direct Services,Third Party Payments,430100,Rendered by Private Contractors,01-Dec-2017,3370677-DCC/GT/40,894.40,TYNE VALLEY FLOORING & CARPETS.
Regeneration and Local Services,Technical Services,Supplies and Services,304221,Equipment and Materials,01-Dec-2017,3370322-25745676,992.67,AGGREGATE INDUSTRIES UK LTD.
Regeneration and Local Services,Technical Services,Supplies and Services,304221,Equipment and Materials,01-Dec-2017,3370322-25745677,842.52,AGGREGATE INDUSTRIES UK LTD.
Regeneration and Local Services,Direct Services,Third Party Payments,430101,Rendered by Private Contractors,01-Dec-2017,3370426-IV945899,"3,098.55",DIRECT TYRE MANAGEMENT (DTM).
Regeneration and Local Services,Technical Services,Supplies and Services,304221,Equipment and Materials,01-Dec-2017,3370516-GOI601/D,"3,264.00",JT DOVE LTD.
Regeneration and Local Services,Technical Services,Stock,926900,Stock in hand-Inventory system,01-Dec-2017,3370592-XL212780,"3,148.50",PARK ELECTRICAL DISTRIBUTORS LTD.
Regeneration and Local Services,Technical Services,Stock,926900,Stock in hand-Inventory system,01-Dec-2017,3370592-XL212880,645.60,PARK ELECTRICAL DISTRIBUTORS LTD.
Regeneration and Local Services,Economic Development and Housing,Supplies and Services,338047,Services,01-Dec-2017,3370600-PGM00027,800.00,PETER GRANT MEDIA.
Regeneration and Local Services,Economic Development and Housing,Supplies and Services,377015,County Durham Development,01-Dec-2017,3370600-PGM00028,500.00,PETER GRANT MEDIA.
Regeneration and Local Services,Culture & Sport,Supplies and Services,338047,Services,01-Dec-2017,3370604-INV06859,833.33,PICTUREHOUSE CINEMAS LTD.
Regeneration and Local Services,Culture & Sport,Supplies and Services,338047,Services,01-Dec-2017,3370604-INV07149,833.33,PICTUREHOUSE CINEMAS LTD.
Regeneration and Local Services,Technical Services,Third Party Payments,430100,Rendered by Private Contractors,01-Dec-2017,3370616-I-000897,"1,293.60",READMAN FABRICATIONS LTD.
Regeneration and Local Services,Direct Services,Supplies and Services,304221,Equipment and Materials,01-Dec-2017,3370699-47417545,"2,042.67",WOLSELEY UK LTD.
Regeneration and Local Services,Technical Services,Third Party Payments,430100,Rendered by Private Contractors,01-Dec-2017,3370343-IN31973,"29,453.72",BALFOUR BEATTY LIVING PLACES LTD.*
Regeneration and Local Services,Technical Services,Third Party Payments,430100,Rendered by Private Contractors,01-Dec-2017,3370343-IN31974,"18,575.05",BALFOUR BEATTY LIVING PLACES LTD.*
Regeneration and Local Services,Technical Services,Third Party Payments,430100,Rendered by Private Contractors,01-Dec-2017,3370343-IN31975,"22,991.39",BALFOUR BEATTY LIVING PLACES LTD.*
Regeneration and Local Services,Technical Services,Third Party Payments,430100,Rendered by Private Contractors,01-Dec-2017,3370343-IN31976,"4,555.15",BALFOUR BEATTY LIVING PLACES LTD.*
Regeneration and Local Services,Technical Services,Third Party Payments,430100,Rendered by Private Contractors,01-Dec-2017,3370343-IN31977,"43,231.08",BALFOUR BEATTY LIVING PLACES LTD.*
Regeneration and Local Services,Technical Services,Third Party Payments,430100,Rendered by Private Contractors,01-Dec-2017,3370343-IN31978,"9,510.81",BALFOUR BEATTY LIVING PLACES LTD.*
Regeneration and Local Services,Technical Services,Third Party Payments,430100,Rendered by Private Contractors,01-Dec-2017,3370343-IN31979,"13,054.70",BALFOUR BEATTY LIVING PLACES LTD.*
Regeneration and Local Services,Direct Services,Premises,145009,Cleaning and Domestic Supplies,01-Dec-2017,3370455-MI85585,"1,094.94",FCC RECYCLING (UK)  LTD.
Regeneration and Local Services,Technical Services,Supplies and Services,304358,Equipment and Materials,01-Dec-2017,3370498-5305423,560.00,JA GILSON (AGRICULTURAL CONTRACTORS) LTD.
Regeneration and Local Services,Transport and Contracted Services,Construction Work,908105,Construction work,01-Dec-2017,3370563-1218879,"11,396.04",NETWORK RAIL.
Regeneration and Local Services,Direct Services,Transport,210057,Repair and Maintenance of Vehicles,01-Dec-2017,3370708-SI92533,"1,365.00",ZOELLER WASTE SYSTEMS LTD.
Regeneration and Local Services,Direct Services,Supplies and Services,304259,Equipment and Materials,01-Dec-2017,3370340-119285,"1,215.00",AUTOCRAFT EQUIPMENT LTD.
Regeneration and Local Services,Direct Services,Transport,210057,Repair and Maintenance of Vehicles,01-Dec-2017,3370385-482599,627.53,CARRS BILLINGTON AGRICULTURE.
Regeneration and Local Services,Technical Services,Third Party Payments,430100,Rendered by Private Contractors,01-Dec-2017,3370582-150932,718.02,NORTHUMBERLAND COUNTY COUNCIL.
Regeneration and Local Services,Direct Services,Transport,215005,Running Costs of Vehicles,01-Dec-2017,3370587-284056,"13,622.12",OIL NRG LTD.
Regeneration and Local Services,Direct Services,Supplies and Services,304221,Equipment and Materials,01-Dec-2017,3370602-286699,622.31,PEW ELECTRICAL DISTRIBUTORS LTD.
Regeneration and Local Services,Direct Services,Third Party Payments,430100,Rendered by Private Contractors,01-Dec-2017,3370608-148253,"11,800.00",PREMIER TRAFFIC MANAGEMENT LTD.
Regeneration and Local Services,Direct Services,Transport,210057,Repair and Maintenance of Vehicles,01-Dec-2017,3370627-475557,634.72,S JENNINGS LTD.
Regeneration and Local Services,Technical Services,Stock,926900,Stock in hand-Inventory system,01-Dec-2017,3370672-100290,"1,087.40",TOTAL RENTAL SOLUTIONS.
Regeneration and Local Services,Technical Services,Stock,926900,Stock in hand-Inventory system,01-Dec-2017,3370672-100293,"1,087.40",TOTAL RENTAL SOLUTIONS.
Regeneration and Local Services,Technical Services,Supplies and Services,304221,Equipment and Materials,01-Dec-2017,3370678-180124,826.22,TYNEDALE ROADSTONE LTD.
Regeneration and Local Services,Technical Services,Supplies and Services,304221,Equipment and Materials,01-Dec-2017,3370678-180125,851.42,TYNEDALE ROADSTONE LTD.
Regeneration and Local Services,Technical Services,Supplies and Services,304221,Equipment and Materials,01-Dec-2017,3370678-180126,"1,015.00",TYNEDALE ROADSTONE LTD.
Regeneration and Local Services,Technical Services,Supplies and Services,304221,Equipment and Materials,01-Dec-2017,3370678-180127,830.00,TYNEDALE ROADSTONE LTD.
Regeneration and Local Services,Technical Services,Supplies and Services,304221,Equipment and Materials,01-Dec-2017,3370678-180128,"1,130.00",TYNEDALE ROADSTONE LTD.
Regeneration and Local Services,Technical Services,Supplies and Services,304221,Equipment and Materials,01-Dec-2017,3370678-180129,954.74,TYNEDALE ROADSTONE LTD.
Regeneration and Local Services,Technical Services,Supplies and Services,304221,Equipment and Materials,01-Dec-2017,3370678-180130,"1,092.08",TYNEDALE ROADSTONE LTD.
Regeneration and Local Services,Technical Services,Supplies and Services,304221,Equipment and Materials,01-Dec-2017,3370678-180136,737.60,TYNEDALE ROADSTONE LTD.
Regeneration and Local Services,Technical Services,Supplies and Services,304221,Equipment and Materials,01-Dec-2017,3370678-180137,"1,022.72",TYNEDALE ROADSTONE LTD.
Regeneration and Local Services,Technical Services,Supplies and Services,304221,Equipment and Materials,01-Dec-2017,3370678-180138,813.44,TYNEDALE ROADSTONE LTD.
Regeneration and Local Services,Technical Services,Supplies and Services,304221,Equipment and Materials,01-Dec-2017,3370678-180139,946.88,TYNEDALE ROADSTONE LTD.
Regeneration and Local Services,Technical Services,Supplies and Services,304221,Equipment and Materials,01-Dec-2017,3370678-180140,995.84,TYNEDALE ROADSTONE LTD.
Regeneration and Local Services,Technical Services,Supplies and Services,304221,Equipment and Materials,01-Dec-2017,3370678-180141,"1,159.04",TYNEDALE ROADSTONE LTD.
Regeneration and Local Services,Technical Services,Supplies and Services,304221,Equipment and Materials,01-Dec-2017,3370678-180142,720.79,TYNEDALE ROADSTONE LTD.
Regeneration and Local Services,Technical Services,Supplies and Services,304221,Equipment and Materials,01-Dec-2017,3370678-180143,944.30,TYNEDALE ROADSTONE LTD.
Regeneration and Local Services,Technical Services,Supplies and Services,304221,Equipment and Materials,01-Dec-2017,3370678-180144,"1,170.44",TYNEDALE ROADSTONE LTD.
Regeneration and Local Services,Direct Services,Transport,210057,Repair and Maintenance of Vehicles,01-Dec-2017,3370708-113228,"4,539.38",ZOELLER WASTE SYSTEMS LTD.
Regeneration and Local Services,Technical Services,Supplies and Services,342051,Computers and Communications,01-Dec-2017,3370329-14478,678.75,APPLICATIONS IN CADD LTD.
Regeneration and Local Services,Economic Development and Housing,Supplies and Services,352001,Conference Expenses,01-Dec-2017,3370448-13716,"2,500.00",ENTREPRENEURS FORUM.
Regeneration and Local Services,Technical Services,Supplies and Services,304358,Equipment and Materials,01-Dec-2017,3370470-10774,"1,110.46",GEORGE VARDY HAULAGE.
Regeneration and Local Services,Technical Services,Supplies and Services,304358,Equipment and Materials,01-Dec-2017,3370470-73275,950.64,GEORGE VARDY HAULAGE.
Regeneration and Local Services,Technical Services,Supplies and Services,304358,Equipment and Materials,01-Dec-2017,3370470-73296,633.76,GEORGE VARDY HAULAGE.
Regeneration and Local Services,Technical Services,Supplies and Services,304358,Equipment and Materials,01-Dec-2017,3370470-73301,612.63,GEORGE VARDY HAULAGE.
Regeneration and Local Services,Technical Services,Supplies and Services,304358,Equipment and Materials,01-Dec-2017,3370470-73302,"1,267.52",GEORGE VARDY HAULAGE.
Regeneration and Local Services,Technical Services,Construction Work,908105,Construction work,01-Dec-2017,3370499-21004,"2,012.52",JACK COUPE & SONS LTD T/A COUPE LINE.
Regeneration and Local Services,Economic Development and Housing,Supplies and Services,384437,Miscellaneous Expenses,01-Dec-2017,3370508-21710,623.98,JIM HUGHES COACHES LTD.
Regeneration and Local Services,Technical Services,Supplies and Services,304358,Equipment and Materials,01-Dec-2017,3370512-27436,849.50,JOHN R BUTTERFIELD LTD.
Regeneration and Local Services,Direct Services,Premises,108099,Service Repairs and Maintenance,01-Dec-2017,3370523-64400,820.00,LEISURETEQ.
Regeneration and Local Services,Direct Services,Third Party Payments,430100,Rendered by Private Contractors,01-Dec-2017,3370614-31517,"17,842.50",R PARKER WALL & FLOOR TILING CONTRACTOR.
Regeneration and Local Services,Technical Services,Supplies and Services,342215,Computers and Communications,01-Dec-2017,3370688-89819,"1,000.00",VISION TECHNIQUES (UK) LTD.
Regeneration and Local Services,Technical Services,Third Party Payments,430100,Rendered by Private Contractors,01-Dec-2017,3370484-2716,"7,921.34",HIGHWAY CONSTRUCTION SERVICES LTD.
Regeneration and Local Services,Technical Services,Third Party Payments,430100,Rendered by Private Contractors,01-Dec-2017,3370484-2717,"1,819.90",HIGHWAY CONSTRUCTION SERVICES LTD.
Regeneration and Local Services,Technical Services,Third Party Payments,430127,Rendered by Private Contractors,01-Dec-2017,3370490-2435,"1,001.00",IAN C LIDDLE.
Regeneration and Local Services,Technical Services,Third Party Payments,430127,Rendered by Private Contractors,01-Dec-2017,3370490-2436,"1,001.00",IAN C LIDDLE.
Regeneration and Local Services,Technical Services,Third Party Payments,430127,Rendered by Private Contractors,01-Dec-2017,3370490-2438,"1,159.00",IAN C LIDDLE.
Regeneration and Local Services,Technical Services,Third Party Payments,430127,Rendered by Private Contractors,01-Dec-2017,3370490-2439,"1,159.00",IAN C LIDDLE.
Regeneration and Local Services,Technical Services,Third Party Payments,430100,Rendered by Private Contractors,01-Dec-2017,3370605-4942,"5,259.26",PINKNEY BUILDING CONTRACTORS LTD.
Regeneration and Local Services,Technical Services,Third Party Payments,430100,Rendered by Private Contractors,01-Dec-2017,3370605-4974,"5,521.20",PINKNEY BUILDING CONTRACTORS LTD.
Regeneration and Local Services,Direct Services,Third Party Payments,430100,Rendered by Private Contractors,01-Dec-2017,3370628-3696,"4,340.00",SAFE STRIP UK LTD.
Regeneration and Local Services,Technical Services,Employees,040149,Recruitment Instruction and Training,01-Dec-2017,3370690-2767,510.00,WATER HYGIENE CENTRE LTD.
Regeneration and Local Services,Direct Services,Third Party Payments,430100,Rendered by Private Contractors,01-Dec-2017,3370391-290,"2,238.23",CEILINGS DIRECT LTD.
Regeneration and Local Services,Culture & Sport,Supplies and Services,338047,Services,01-Dec-2017,3370450-122,"7,444.42",EVOLUTION PRODUCTIONS PLAYS LTD.
Regeneration and Local Services,Culture & Sport,Supplies and Services,338047,Services,01-Dec-2017,3370565-972,"30,925.42",NEW WRITING NORTH LTD.
Resources,Legal & Democratic Services,Supplies and Services,338025,Services,01-Dec-2017,3370402-S44954-01133,730.00,CO-OPERATIVE FUNERAL CARE.
Resources,Digital and Customer Services,Supplies and Services,342051,Computers and Communications,01-Dec-2017,3370400-C/RB157825,"12,950.00",CIVICA UK LTD.
Resources,Financial Services,Employees,040149,Recruitment Instruction and Training,01-Dec-2017,3370397-5217631,"1,945.00",CIPFA LTD.
Resources,Digital and Customer Services,Stock,926900,Stock in hand-Inventory system,01-Dec-2017,3370703-CB14616,"1,498.74",XMA LTD.
Resources,Legal & Democratic Services,Supplies and Services,384199,Miscellaneous Expenses,01-Dec-2017,3370556-1708,"2,903.95",REDACTED - PAYMENT TO INDIVIDUAL
Transformation and Partnerships,Partnerships & Community Engagement Div.,Cap Exp on Grants & Other Financial Assistance (REFCUS),918004,Contributions to other bodies,01-Dec-2017,3370355-VOUCHER17AB-TEES001CSG4,740.00,BEYOND LIMITS.
Adult and Health Services,Head of Adults,Supplies and Services,338066,Services,04-Dec-2017,3370842-211201714112017,"1,456.40",DR IPSITA MITRA.
Adult and Health Services,Head of Adults,Supplies and Services,338066,Services,04-Dec-2017,3370842-707201715082017,"3,132.41",DR IPSITA MITRA.
Adult and Health Services,Head of Adults,Supplies and Services,338366,Services,04-Dec-2017,3370798-45537NOV2017,939.25,CARE ABILITY.
Adult and Health Services,Head of Adults,Transport,230005,Contract Hire,04-Dec-2017,3370714-NOVEMBER02,880.00,A & P TAXIS.
Adult and Health Services,Head of Adults,Transport,230005,Contract Hire,04-Dec-2017,3370829-INV-100616,"1,865.68",CROFT BUSINESS SERVICES (UK) LTD T/A CROFT TAXIS.
Adult and Health Services,Head of Adults,Supplies and Services,308011,Furniture,04-Dec-2017,3370932-1/103056-2,609.98,JOHN CALVERT (ELECTRICAL) LTD.
Adult and Health Services,Head of Adults,Supplies and Services,328041,Clothing Uniforms and Laundry,04-Dec-2017,3370896-06/708205,503.50,GREENHAM TRADING LTD.
Adult and Health Services,Public Health,Third Party Payments,460802,Contract Payments,04-Dec-2017,3370996-R0288769,"28,684.00",NEWCASTLE UPON TYNE HOSPITALS NHS FOUNDATION TRUST.
Adult and Health Services,Head of Adults,Transport,230005,Contract Hire,04-Dec-2017,3370785-BZ00242,616.00,BREZ`S TAXIS.
Adult and Health Services,Head of Adults,Transport,230005,Contract Hire,04-Dec-2017,3371133-0001915,"1,030.00",TONY RIDLEY T/A COLORS TAXIS LTD.
Adult and Health Services,Head of Adults,Transport,230005,Contract Hire,04-Dec-2017,3370833-TH1703,"1,186.00",D IRVING T/A BJ TAXIS.
Adult and Health Services,AWH Redundant Cost Centres,Supplies and Services,384199,Miscellaneous Expenses,04-Dec-2017,3370907-3140DR,995.00,HEALTH ASSURED LTD.
Adult and Health Services,Head of Adults,Premises,106082,Centrally Controlled Rep and Maint,04-Dec-2017,3370741-28994,"3,500.00",AQUAJET DRAIN CLEANING LTD.
Adult and Health Services,Head of Adults,Supplies and Services,338366,Services,04-Dec-2017,3370798-45538,842.35,CARE ABILITY.
Adult and Health Services,Head of Adults,Supplies and Services,304259,Equipment and Materials,04-Dec-2017,3370798-45600,"1,575.00",CARE ABILITY.
Adult and Health Services,Head of Adults,Transport,230005,Contract Hire,04-Dec-2017,3371099-27995,"1,434.10",STANLEY TRAVEL (NORTH EAST) LTD.
Adult and Health Services,Commissioning inc Supporting People,Third Party Payments,479111,Purchase of Care,04-Dec-2017,3370853-5674,"1,200.00",EAST DURHAM COMMUNITY DEVELOPMENT TRUST LTD.
Adult and Health Services,Public Health,Supplies and Services,338094,Services,04-Dec-2017,3371121-4918,554.50,THE DURHAM CENTRE LTD.
Adult and Health Services,Head of Adults,Third Party Payments,478101,Purchase of Care,04-Dec-2017,3370869-003,"9,973.76",ETHICARE (DURHAM) LTD.
Children and Young Peoples Services,Head of Early Help Assessment and Safeguarding,Third Party Payments,425025,Rendered by Voluntary Organisations,04-Dec-2017,3370887-2015-06-029-28/11/17,"2,500.00",GATEWAY NORTH EAST.
Children and Young Peoples Services,Head of Education,Supplies and Services,384199,Miscellaneous Expenses,04-Dec-2017,3371091-TA549719/INVQQ4,"14,536.17",SOVEREIGN RISK MANAGEMENT LTD T/A SCHOOLS ADVISORY SERVICE.
Children and Young Peoples Services,Head of Early Help Assessment and Safeguarding,Supplies and Services,384491,Miscellaneous Expenses,04-Dec-2017,3371170-201905-NOV2017,765.00,WHEATLEY HILL COMMUNITY NURSERY LTD.
Children and Young Peoples Services,Head of Education,Transport,230008,Contract Hire,04-Dec-2017,3370755-3011017-E005,"1,320.00",AVALON TAXIS.
Children and Young Peoples Services,Head of Education,Transport,230007,Contract Hire,04-Dec-2017,3370714-NOVEMBER01,"1,980.00",A & P TAXIS.
Children and Young Peoples Services,Head of Education,Transport,230009,Contract Hire,04-Dec-2017,3370714-NOVEMBER03,"1,210.00",A & P TAXIS.
Children and Young Peoples Services,Head of Education,Construction Work,908105,Construction work,04-Dec-2017,3371036-PCA/P/9064,"2,280.00",PRE-CONSTRUCT ARCHAEOLOGY LTD.
Children and Young Peoples Services,Head of Education,Supplies and Services,338027,Services,04-Dec-2017,3371154-0000000003,500.00,VENERABLE BEDE CHURCH OF ENGLAND ACADEMY.
Children and Young Peoples Services,Head of Early Help Assessment and Safeguarding,Supplies and Services,352001,Conference Expenses,04-Dec-2017,3370761-241000730,700.00,BARNARDO SERVICES LTD.
Children and Young Peoples Services,Head of Education,Transfer Payments,510026,School Children,04-Dec-2017,3370959-0044/2017,"1,008.00",LITTLE STARS EARLY YEARS.
Children and Young Peoples Services,Head of Education,Transport,230012,Contract Hire,04-Dec-2017,3370745-NOV17-02,"1,183.60",ARMSTRONG`S TAXIS.
Children and Young Peoples Services,Head of Looked After Provision Permanence and Care Leavers,Supplies and Services,364352,Grants to Voluntary Organisations,04-Dec-2017,3370746-INV-0803,"11,600.00",ARTEMIS SUPPORT LTD.
Children and Young Peoples Services,Central Charges (CYPS),Creditors,952258,Creditor-West Durham Cluster,04-Dec-2017,3370900-FB003457,966.67,HALLGARTH MANOR HOTEL.
Children and Young Peoples Services,Head of Education,Transport,230008,Contract Hire,04-Dec-2017,3370940-A021-NOV,964.80,K & R TAXIS (STANLEY).
Children and Young Peoples Services,Head of Education,Transport,230008,Contract Hire,04-Dec-2017,3370981-W046-NOV,"1,738.00",MR NEIL FRASER ELLIS T/A MILLENNIUM CABS.
Children and Young Peoples Services,Head of Education,Transport,230008,Contract Hire,04-Dec-2017,3370785-BZ00240,"1,188.00",BREZ`S TAXIS.
Children and Young Peoples Services,Head of Education,Transport,230008,Contract Hire,04-Dec-2017,3370785-BZ00241,"1,078.00",BREZ`S TAXIS.
Children and Young Peoples Services,Head of Education,Transport,230008,Contract Hire,04-Dec-2017,3370796-BIL0116,"1,100.00",CA MUSGROVE.
Children and Young Peoples Services,Head of Education,Transport,230006,Contract Hire,04-Dec-2017,3370903-14-F729,918.00,HARDIP SINGH MAHIL T/A AMBER CARS.
Children and Young Peoples Services,Head of Education,Transport,230006,Contract Hire,04-Dec-2017,3370718-S19/SX,"2,090.00",AABAT TAXIS.
Children and Young Peoples Services,Head of Education,Transport,230006,Contract Hire,04-Dec-2017,3370718-T26/SX,"2,160.00",AABAT TAXIS.
Children and Young Peoples Services,Head of Education,Transport,230008,Contract Hire,04-Dec-2017,3370728-388952,"1,522.50",ALAN SOUTHERN T/A ALANS TAXIS PELTON FELL.
Children and Young Peoples Services,Head of Education,Transport,230008,Contract Hire,04-Dec-2017,3370755-301117,"1,870.00",AVALON TAXIS.
Children and Young Peoples Services,Head of Education,Transport,230006,Contract Hire,04-Dec-2017,3370713-68129,"1,030.00",A & C TAXIS.
Children and Young Peoples Services,Head of Early Help Assessment and Safeguarding,Premises,108099,Service Repairs and Maintenance,04-Dec-2017,3370928-15827,"7,501.34",JC MAINTENANCE SERVICES LTD.
Children and Young Peoples Services,Head of Education,Supplies and Services,384199,Miscellaneous Expenses,04-Dec-2017,3370941-17083,"1,300.00",KAREN BROWN CONSULTING LTD.
Children and Young Peoples Services,Head of Education,Transport,230006,Contract Hire,04-Dec-2017,3371029-21953,"1,190.00",PHOENIX TAXIS T/A PRATT`S TAXIS.
Children and Young Peoples Services,Head of Education,Transport,230008,Contract Hire,04-Dec-2017,3370720-O365,"1,474.00",ABC & OUSTON CABS.
Children and Young Peoples Services,Head of Education,Transport,230012,Contract Hire,04-Dec-2017,3370720-O366,"1,936.00",ABC & OUSTON CABS.
Children and Young Peoples Services,Head of Education,Transport,230008,Contract Hire,04-Dec-2017,3370720-O367,"1,738.00",ABC & OUSTON CABS.
Children and Young Peoples Services,Head of Early Help Assessment and Safeguarding,Third Party Payments,486022,Service Level Agreements,04-Dec-2017,3370883-7070,686.50,FSO FLEXIBLE SUPPORT OPTIONS UK (DOMICILARY) LTD.
Children and Young Peoples Services,Head of Education,Vehicles Equipment Furniture and Fittings,912521,Purchase-furniture and fittings,04-Dec-2017,3370914-2402,"2,667.50",HOWELL CUMMINGS CATERING EQUIPMENT LTD.
Children and Young Peoples Services,Head of Looked After Provision Permanence and Care Leavers,Third Party Payments,425021,Rendered by Voluntary Organisations,04-Dec-2017,3371004-1846,"14,013.55",NORTH LAKES CHILDREN`S SERVICES LTD.
Children and Young Peoples Services,Head of Education,Transport,230007,Contract Hire,04-Dec-2017,3370751-622,"1,089.00",AT TAXIS LTD.
Children and Young Peoples Services,Head of Education,Transport,230008,Contract Hire,04-Dec-2017,3370771-003,"1,452.00",BG TAXIS.
Children and Young Peoples Services,Head of Education,Transport,230008,Contract Hire,04-Dec-2017,3370767-72,980.00,BEELINE TAXIS.
Children and Young Peoples Services,Head of Education,Transport,230006,Contract Hire,04-Dec-2017,3370903-14,"1,006.00",HARDIP SINGH MAHIL T/A AMBER CARS.
Children and Young Peoples Services,Head of Education,Transport,230008,Contract Hire,04-Dec-2017,3370972-C1,"1,377.00",MICHAEL A BODDY T/A MBS TAXIS.
Children and Young Peoples Services,Head of Education,Transport,230006,Contract Hire,04-Dec-2017,3370976-12,780.00,MR BRIAN JOHNSON T/A BRYS TAXIS.
Children and Young Peoples Services,Head of Education,Transport,230007,Contract Hire,04-Dec-2017,3370979-73,"1,122.00",MR JOHN ALLINSON T/A AALPHA TAXIS.
Children and Young Peoples Services,Head of Education,Transport,230006,Contract Hire,04-Dec-2017,3370979-74,"1,016.00",MR JOHN ALLINSON T/A AALPHA TAXIS.
Children and Young Peoples Services,Head of Education,Transport,230008,Contract Hire,04-Dec-2017,3370993-36,"1,440.00",NEIL PASSMOOR T/A NEIL`S TAXI.
Dedicated Schools Grant,Dedicated Schools Grant,Supplies and Services,304259,Equipment and Materials,04-Dec-2017,3370963-INV-1391,"1,054.00",LYNCH HEALTHCARE LTD.
Dedicated Schools Grant,Dedicated Schools Grant,Third Party Payments,410037,Rendered by Other Local Authorities,04-Dec-2017,3371013-1007511,"8,705.00",OUR LADY & ST BEDE CATHOLIC ACADEMY.
Dedicated Schools Grant,Dedicated Schools Grant,Transport,230010,Contract Hire,04-Dec-2017,3370751-623,"1,504.20",AT TAXIS LTD.
Regeneration and Local Services,Economic Development and Housing,Construction Work,908105,Construction work,04-Dec-2017,3371126-DEMOLITIONANDASBESTOS,"12,092.00",THOMPSONS OF PRUDHOE LTD.
Regeneration and Local Services,Culture & Sport,Supplies and Services,338047,Services,04-Dec-2017,3370926-ROBINSONCRUSOE2017,"2,378.10",JAMIE BROWN.
Regeneration and Local Services,Culture & Sport,Supplies and Services,338047,Services,04-Dec-2017,3370933-GALA2017PANTO2,"2,206.87",JOHN MURDOCH.
Regeneration and Local Services,Technical Services,Employees,040149,Recruitment Instruction and Training,04-Dec-2017,3370994-SLINV/00002225,"3,584.00",NEW COLLEGE DURHAM.
Regeneration and Local Services,Technical Services,Supplies and Services,338027,Services,04-Dec-2017,3370924-B225H005-029,"19,049.85",JACOBS UK LTD.
Regeneration and Local Services,Technical Services,Supplies and Services,338027,Services,04-Dec-2017,3370924-B225H009-012,"5,632.38",JACOBS UK LTD.
Regeneration and Local Services,Technical Services,Supplies and Services,338027,Services,04-Dec-2017,3370924-B225H009-013,"1,562.08",JACOBS UK LTD.
Regeneration and Local Services,Direct Services,Stock,926900,Stock in hand-Inventory system,04-Dec-2017,3370944-SI02-0166030,523.30,KILLGERM CHEMICALS LTD.
Regeneration and Local Services,Culture & Sport,Supplies and Services,384199,Miscellaneous Expenses,04-Dec-2017,3371005-NCBF2017/010,"1,280.00",NORTHERN CHILDRENS BOOK FESTIVAL (NCBF).
Regeneration and Local Services,Culture & Sport,Premises,145023,Cleaning and Domestic Supplies,04-Dec-2017,3370784-22SI2231199,565.00,BRENNTAG UK LTD.
Regeneration and Local Services,Culture & Sport,Supplies and Services,338047,Services,04-Dec-2017,3370984-GHUTCH/2/17,"2,025.00",MR THEATRICAL AGENTS LTD T/A MR MANAGEMENT.
Regeneration and Local Services,Direct Services,Premises,120037,Energy Costs,04-Dec-2017,3370774-0000035989,"1,096.06",BILLINGTON BIOENERGY LTD.
Regeneration and Local Services,Direct Services,Supplies and Services,304221,Equipment and Materials,04-Dec-2017,3370860-059-213781,"4,970.35",EDMUNDSON ELECTRICAL LTD.
Regeneration and Local Services,Direct Services,Supplies and Services,304221,Equipment and Materials,04-Dec-2017,3370973-0000073249,807.76,MIKROFILL SYSTEMS LTD.
Regeneration and Local Services,Economic Development and Housing,Construction Work,908105,Construction work,04-Dec-2017,3371007-DI20281939,"6,562.67",NORTHERN POWERGRID (NORTHEAST) LTD.
Regeneration and Local Services,Direct Services,Supplies and Services,304259,Equipment and Materials,04-Dec-2017,3371010-CN19555559,"1,115.64",OCS GROUP UK LTD T/A CANNON HYGIENE.
Regeneration and Local Services,Culture & Sport,Supplies and Services,324117,Provisions,04-Dec-2017,3371017-22/2225959,586.05,PALMER & HARVEY MCLANE LTD.
Regeneration and Local Services,Transport and Contracted Services,Third Party Payments,430106,Rendered by Private Contractors,04-Dec-2017,3371099-28395NOV17,"10,676.57",STANLEY TRAVEL (NORTH EAST) LTD.
Regeneration and Local Services,Technical Services,Supplies and Services,304221,Equipment and Materials,04-Dec-2017,3371110-9037172185,670.00,TARMAC TRADING LTD.
Regeneration and Local Services,Technical Services,Stock,926900,Stock in hand-Inventory system,04-Dec-2017,3371110-9037173214,648.12,TARMAC TRADING LTD.
Regeneration and Local Services,Direct Services,Supplies and Services,304221,Equipment and Materials,04-Dec-2017,3371157-6890249899,"10,009.60",VIESSMANN LTD.
Regeneration and Local Services,Technical Services,Employees,040149,Recruitment Instruction and Training,04-Dec-2017,3370744-931560663,600.00,ARCO LTD.
Regeneration and Local Services,Technical Services,Stock,926900,Stock in hand-Inventory system,04-Dec-2017,3370896-06/707122,888.48,GREENHAM TRADING LTD.
Regeneration and Local Services,Culture & Sport,Premises,145023,Cleaning and Domestic Supplies,04-Dec-2017,3370896-06/707540,714.85,GREENHAM TRADING LTD.
Regeneration and Local Services,Culture & Sport,Premises,145023,Cleaning and Domestic Supplies,04-Dec-2017,3370896-06/708204,815.80,GREENHAM TRADING LTD.
Regeneration and Local Services,Direct Services,Premises,145023,Cleaning and Domestic Supplies,04-Dec-2017,3370896-06/708218,"1,468.00",GREENHAM TRADING LTD.
Regeneration and Local Services,Technical Services,Third Party Payments,430127,Rendered by Private Contractors,04-Dec-2017,3370922-0944/2017,"1,195.00",J & JG GILL & SONS LTD.
Regeneration and Local Services,Direct Services,Supplies and Services,304221,Equipment and Materials,04-Dec-2017,3370939-BAI296871,554.74,JT DOVE LTD.
Regeneration and Local Services,Culture & Sport,Premises,120009,Energy Costs,04-Dec-2017,3370953-SI-003373,534.95,LEISUREWORKS.
Regeneration and Local Services,Culture & Sport,Supplies and Services,324117,Provisions,04-Dec-2017,3370975-904202008,631.66,MOLSON COORS BREWING COMPANY (UK) LTD.
Regeneration and Local Services,Culture & Sport,Supplies and Services,384199,Miscellaneous Expenses,04-Dec-2017,3371097-00335999A,"12,706.32",STAGE ELECTRICS.
Regeneration and Local Services,Technical Services,Third Party Payments,430100,Rendered by Private Contractors,04-Dec-2017,3371153-INV044901,"4,435.09",URBIS SCHREDER LTD.
Regeneration and Local Services,Technical Services,Stock,926900,Stock in hand-Inventory system,04-Dec-2017,3371153-INV044902,"25,273.00",URBIS SCHREDER LTD.
Regeneration and Local Services,Culture & Sport,Supplies and Services,304259,Equipment and Materials,04-Dec-2017,3371181-I-0480184,"1,942.90",ZOGGS INTERNATIONAL LTD.
Regeneration and Local Services,Technical Services,Supplies and Services,304221,Equipment and Materials,04-Dec-2017,3370727-25751786,532.95,AGGREGATE INDUSTRIES UK LTD.
Regeneration and Local Services,Technical Services,Supplies and Services,304221,Equipment and Materials,04-Dec-2017,3370727-25751787,537.80,AGGREGATE INDUSTRIES UK LTD.
Regeneration and Local Services,Technical Services,Supplies and Services,304221,Equipment and Materials,04-Dec-2017,3370727-25758400,554.80,AGGREGATE INDUSTRIES UK LTD.
Regeneration and Local Services,Technical Services,Third Party Payments,430100,Rendered by Private Contractors,04-Dec-2017,3370765-INV-0258,"6,540.00",BEAVER BRIDGE HIRE LTD.
Regeneration and Local Services,Technical Services,Supplies and Services,342051,Computers and Communications,04-Dec-2017,3370955-INV-0601,"1,610.00",LIGHTING REALITY LTD.
Regeneration and Local Services,Technical Services,Stock,926900,Stock in hand-Inventory system,04-Dec-2017,3371018-XL213004,"1,237.50",PARK ELECTRICAL DISTRIBUTORS LTD.
Regeneration and Local Services,Technical Services,Stock,926900,Stock in hand-Inventory system,04-Dec-2017,3371018-XL213017,"1,508.10",PARK ELECTRICAL DISTRIBUTORS LTD.
Regeneration and Local Services,Technical Services,Stock,926900,Stock in hand-Inventory system,04-Dec-2017,3371018-XL213023,594.75,PARK ELECTRICAL DISTRIBUTORS LTD.
Regeneration and Local Services,Culture & Sport,Supplies and Services,338047,Services,04-Dec-2017,3371062-001/2017,"1,362.00",REDACTED - PAYMENT TO INDIVIDUAL
Regeneration and Local Services,Culture & Sport,Premises,106082,Centrally Controlled Rep and Maint,04-Dec-2017,3371145-80063371,943.00,TYCO FIRE & INTEGRATED SOLUTIONS (UK) LTD.
Regeneration and Local Services,Direct Services,Third Party Payments,430100,Rendered by Private Contractors,04-Dec-2017,3371149-INV-0449,"1,132.00",UK VENTILATION LTD.
Regeneration and Local Services,Technical Services,Stock,926900,Stock in hand-Inventory system,04-Dec-2017,3371174-47556410,571.56,WOLSELEY UK LTD.
Regeneration and Local Services,Culture & Sport,Supplies and Services,312013,Newspapers Books and Periodicals,04-Dec-2017,3370749-5568987,504.28,ASKEWS & HOLTS LIBRARY SERVICES LTD.
Regeneration and Local Services,Culture & Sport,Supplies and Services,312013,Newspapers Books and Periodicals,04-Dec-2017,3370749-5576058,888.48,ASKEWS & HOLTS LIBRARY SERVICES LTD.
Regeneration and Local Services,Technical Services,Supplies and Services,304358,Equipment and Materials,04-Dec-2017,3370759-MG05670,650.00,BAILEY CONCRETE PUMPING LTD.
Regeneration and Local Services,Technical Services,Third Party Payments,430100,Rendered by Private Contractors,04-Dec-2017,3370763-1733004,"4,984.85",BCE NORTHERN LTD.
Regeneration and Local Services,Technical Services,Third Party Payments,430100,Rendered by Private Contractors,04-Dec-2017,3370763-1733005,"6,478.02",BCE NORTHERN LTD.
Regeneration and Local Services,Economic Development and Housing,Supplies and Services,336005,Advertising,04-Dec-2017,3370807-049/001,680.00,CF CREATION.
Regeneration and Local Services,Spatial Policy Planning Assets & Environment,Supplies and Services,338027,Services,04-Dec-2017,3370810-3129795,"20,821.92",CIPFA BUSINESS LTD.
Regeneration and Local Services,Direct Services,Supplies and Services,304259,Equipment and Materials,04-Dec-2017,3370854-7110363,811.55,EAST RIDING HORTICULTURE LTD.
Regeneration and Local Services,Direct Services,Premises,145009,Cleaning and Domestic Supplies,04-Dec-2017,3370875-MI88635,"1,151.30",FCC RECYCLING (UK)  LTD.
Regeneration and Local Services,Economic Development and Housing,Supplies and Services,368008,Incentives to Industrialists,04-Dec-2017,3370908-30091HG,813.00,HELEN GOODWIN T/A MADE YOU LOOK.
Regeneration and Local Services,Direct Services,Supplies and Services,304221,Equipment and Materials,04-Dec-2017,3371108-2543450,733.75,T CROSSLING & CO LTD.
Regeneration and Local Services,Culture & Sport,Supplies and Services,304259,Equipment and Materials,04-Dec-2017,3370730-102974,854.50,ALISON BLACK LTD T/A SPORTMAX.
Regeneration and Local Services,Direct Services,Supplies and Services,304221,Equipment and Materials,04-Dec-2017,3370756-248063,"1,720.07",AVIRE LTD.
Regeneration and Local Services,Direct Services,Supplies and Services,304221,Equipment and Materials,04-Dec-2017,3370756-248068,"1,009.00",AVIRE LTD.
Regeneration and Local Services,Technical Services,Supplies and Services,338099,Services,04-Dec-2017,3370762-BE3994,"1,370.00",BARRETT ENVIRONMENTAL LTD.
Regeneration and Local Services,Transport and Contracted Services,Supplies and Services,338080,Services,04-Dec-2017,3370868-988591,"1,308.04",ESP SYSTEX LTD.
Regeneration and Local Services,Transport and Contracted Services,Supplies and Services,338080,Services,04-Dec-2017,3370868-988672,"2,079.72",ESP SYSTEX LTD.
Regeneration and Local Services,Direct Services,Supplies and Services,304259,Equipment and Materials,04-Dec-2017,3370899-169759,501.21,GUSTHARTS.
Regeneration and Local Services,Technical Services,Stock,926900,Stock in hand-Inventory system,04-Dec-2017,3370920-608529,"3,136.00",INSTARMAC GROUP PLC.
Regeneration and Local Services,Technical Services,Stock,926900,Stock in hand-Inventory system,04-Dec-2017,3370964-120470,"5,738.40",MALLATITE LTD T/A MALLATITE PLASTICS LTD.
Regeneration and Local Services,Technical Services,Stock,926900,Stock in hand-Inventory system,04-Dec-2017,3370964-120471,"6,305.00",MALLATITE LTD T/A MALLATITE PLASTICS LTD.
Regeneration and Local Services,Direct Services,Transport,215005,Running Costs of Vehicles,04-Dec-2017,3371011-283651,"14,531.69",OIL NRG LTD.
Regeneration and Local Services,Direct Services,Transport,215022,Running Costs of Vehicles,04-Dec-2017,3371011-283655,"2,046.29",OIL NRG LTD.
Regeneration and Local Services,Direct Services,Transport,215005,Running Costs of Vehicles,04-Dec-2017,3371011-283672,"5,862.75",OIL NRG LTD.
Regeneration and Local Services,Direct Services,Transport,215022,Running Costs of Vehicles,04-Dec-2017,3371011-283678,525.25,OIL NRG LTD.
Regeneration and Local Services,Technical Services,Third Party Payments,430100,Rendered by Private Contractors,04-Dec-2017,3371039-148172,"6,730.60",PREMIER TRAFFIC MANAGEMENT LTD.
Regeneration and Local Services,Technical Services,Stock,926900,Stock in hand-Inventory system,04-Dec-2017,3371090-191146,"2,368.80",SNAPFAST.
Regeneration and Local Services,Technical Services,Stock,926900,Stock in hand-Inventory system,04-Dec-2017,3371090-191147,"1,184.40",SNAPFAST.
Regeneration and Local Services,Technical Services,Supplies and Services,304221,Equipment and Materials,04-Dec-2017,3371147-180178,663.50,TYNEDALE ROADSTONE LTD.
Regeneration and Local Services,Technical Services,Supplies and Services,304221,Equipment and Materials,04-Dec-2017,3371147-180179,986.24,TYNEDALE ROADSTONE LTD.
Regeneration and Local Services,Technical Services,Supplies and Services,304221,Equipment and Materials,04-Dec-2017,3371147-180180,710.19,TYNEDALE ROADSTONE LTD.
Regeneration and Local Services,Technical Services,Supplies and Services,304221,Equipment and Materials,04-Dec-2017,3371147-180182,678.95,TYNEDALE ROADSTONE LTD.
Regeneration and Local Services,Technical Services,Supplies and Services,304221,Equipment and Materials,04-Dec-2017,3371147-180183,"1,029.79",TYNEDALE ROADSTONE LTD.
Regeneration and Local Services,Technical Services,Supplies and Services,304221,Equipment and Materials,04-Dec-2017,3371147-180249,693.44,TYNEDALE ROADSTONE LTD.
Regeneration and Local Services,Technical Services,Supplies and Services,304221,Equipment and Materials,04-Dec-2017,3371147-180250,"1,116.05",TYNEDALE ROADSTONE LTD.
Regeneration and Local Services,Technical Services,Supplies and Services,304221,Equipment and Materials,04-Dec-2017,3371147-180251,811.52,TYNEDALE ROADSTONE LTD.
Regeneration and Local Services,Technical Services,Supplies and Services,304221,Equipment and Materials,04-Dec-2017,3371147-180252,785.17,TYNEDALE ROADSTONE LTD.
Regeneration and Local Services,Technical Services,Supplies and Services,304221,Equipment and Materials,04-Dec-2017,3371147-180253,801.92,TYNEDALE ROADSTONE LTD.
Regeneration and Local Services,Technical Services,Supplies and Services,304221,Equipment and Materials,04-Dec-2017,3371147-180254,880.53,TYNEDALE ROADSTONE LTD.
Regeneration and Local Services,Technical Services,Supplies and Services,304221,Equipment and Materials,04-Dec-2017,3371147-180255,800.30,TYNEDALE ROADSTONE LTD.
Regeneration and Local Services,Technical Services,Supplies and Services,304221,Equipment and Materials,04-Dec-2017,3371147-180256,849.92,TYNEDALE ROADSTONE LTD.
Regeneration and Local Services,Technical Services,Supplies and Services,304221,Equipment and Materials,04-Dec-2017,3371147-180257,651.20,TYNEDALE ROADSTONE LTD.
Regeneration and Local Services,Technical Services,Supplies and Services,304221,Equipment and Materials,04-Dec-2017,3371147-180287,884.45,TYNEDALE ROADSTONE LTD.
Regeneration and Local Services,Technical Services,Supplies and Services,304221,Equipment and Materials,04-Dec-2017,3371147-180289,898.46,TYNEDALE ROADSTONE LTD.
Regeneration and Local Services,Technical Services,Supplies and Services,304221,Equipment and Materials,04-Dec-2017,3371147-180290,888.68,TYNEDALE ROADSTONE LTD.
Regeneration and Local Services,Culture & Sport,Premises,106082,Centrally Controlled Rep and Maint,04-Dec-2017,3370741-28985,600.00,AQUAJET DRAIN CLEANING LTD.
Regeneration and Local Services,Culture & Sport,Premises,106082,Centrally Controlled Rep and Maint,04-Dec-2017,3370750-12395,"1,045.00",ASTRAL CONTROL SERVICES LTD.
Regeneration and Local Services,Technical Services,Stock,926900,Stock in hand-Inventory system,04-Dec-2017,3370780-15512,560.00,BOXCLEVER TOTAL WASTE MANAGEMENT LTD.
Regeneration and Local Services,Spatial Policy Planning Assets & Environment,Supplies and Services,384899,Miscellaneous Expenses,04-Dec-2017,3370851-17140,"3,000.00",DURHAM WILDLIFE TRUST LTD.
Regeneration and Local Services,Spatial Policy Planning Assets & Environment,Supplies and Services,338066,Services,04-Dec-2017,3370886-11207,"1,320.00",GARY LINTERN.
Regeneration and Local Services,Culture & Sport,Supplies and Services,304252,Equipment and Materials,04-Dec-2017,3370916-16755,"1,504.00",HUSSEY SEATWAY LTD.
Regeneration and Local Services,Technical Services,Construction Work,908105,Construction work,04-Dec-2017,3370923-21005,"1,534.25",JACK COUPE & SONS LTD T/A COUPE LINE.
Regeneration and Local Services,Culture & Sport,Premises,106082,Centrally Controlled Rep and Maint,04-Dec-2017,3370928-15877,"6,654.12",JC MAINTENANCE SERVICES LTD.
Regeneration and Local Services,Technical Services,Supplies and Services,304358,Equipment and Materials,04-Dec-2017,3370934-27427,"2,072.00",JOHN R BUTTERFIELD LTD.
Regeneration and Local Services,Technical Services,Supplies and Services,304358,Equipment and Materials,04-Dec-2017,3370934-27430,931.00,JOHN R BUTTERFIELD LTD.
Regeneration and Local Services,Technical Services,Supplies and Services,304358,Equipment and Materials,04-Dec-2017,3370934-27464,"2,072.00",JOHN R BUTTERFIELD LTD.
Regeneration and Local Services,Technical Services,Supplies and Services,304358,Equipment and Materials,04-Dec-2017,3370934-27466,"1,043.00",JOHN R BUTTERFIELD LTD.
Regeneration and Local Services,Technical Services,Supplies and Services,304358,Equipment and Materials,04-Dec-2017,3370934-27493,"2,072.00",JOHN R BUTTERFIELD LTD.
Regeneration and Local Services,Technical Services,Supplies and Services,304358,Equipment and Materials,04-Dec-2017,3370934-27542,"2,072.00",JOHN R BUTTERFIELD LTD.
Regeneration and Local Services,Technical Services,Supplies and Services,304358,Equipment and Materials,04-Dec-2017,3370934-27570,"2,072.00",JOHN R BUTTERFIELD LTD.
Regeneration and Local Services,Technical Services,Supplies and Services,304358,Equipment and Materials,04-Dec-2017,3370934-27573,"1,043.00",JOHN R BUTTERFIELD LTD.
Regeneration and Local Services,Technical Services,Supplies and Services,304358,Equipment and Materials,04-Dec-2017,3370934-27576,"1,245.00",JOHN R BUTTERFIELD LTD.
Regeneration and Local Services,Technical Services,Supplies and Services,304358,Equipment and Materials,04-Dec-2017,3370934-27579,961.00,JOHN R BUTTERFIELD LTD.
Regeneration and Local Services,Direct Services,Premises,106082,Centrally Controlled Rep and Maint,04-Dec-2017,3370962-60423,550.00,LUCION ENVIRONMENTAL LLP LTD.
Regeneration and Local Services,Direct Services,Supplies and Services,304221,Equipment and Materials,04-Dec-2017,3371061-45039,"8,125.00",RJ UTILITY SERVICES LTD.
Regeneration and Local Services,Direct Services,Supplies and Services,384199,Miscellaneous Expenses,04-Dec-2017,3371119-29622,560.00,TEESDALE EVENT & SITE SERVICES LTD.
Regeneration and Local Services,Direct Services,Supplies and Services,384199,Miscellaneous Expenses,04-Dec-2017,3371119-29629,600.00,TEESDALE EVENT & SITE SERVICES LTD.
Regeneration and Local Services,Direct Services,Vehicles Equipment Furniture and Fittings,912529,Purchase-equipment,04-Dec-2017,3371161-89847,"2,239.35",VISION TECHNIQUES (UK) LTD.
Regeneration and Local Services,Culture & Sport,Supplies and Services,352001,Conference Expenses,04-Dec-2017,3370773-6286,632.00,BIKE RIGHT.
Regeneration and Local Services,Direct Services,Third Party Payments,430100,Rendered by Private Contractors,04-Dec-2017,3370802-3402,"1,394.55",CATHEDRAL LOCK & SAFE SERVICES LTD.
Regeneration and Local Services,Direct Services,Premises,106082,Centrally Controlled Rep and Maint,04-Dec-2017,3370802-3476,714.88,CATHEDRAL LOCK & SAFE SERVICES LTD.
Regeneration and Local Services,Culture & Sport,Supplies and Services,338047,Services,04-Dec-2017,3370867-4061,"3,000.00",ENGLISH TOURING OPERA.
Regeneration and Local Services,Technical Services,Supplies and Services,304358,Equipment and Materials,04-Dec-2017,3370967-2016,824.00,MARTIN JEWITT PLANT HIRE.
Regeneration and Local Services,Direct Services,Premises,106082,Centrally Controlled Rep and Maint,04-Dec-2017,3371038-9377,830.00,PREMIER CELL FIT T/A LIVEWIRE GATES & DOORS.
Regeneration and Local Services,Technical Services,Third Party Payments,430100,Rendered by Private Contractors,04-Dec-2017,3371074-1311,"2,150.00",SCHMUCK WHORLTON LTD.
Regeneration and Local Services,Technical Services,Third Party Payments,460224,Contract Payments,04-Dec-2017,3371074-1312,"3,475.00",SCHMUCK WHORLTON LTD.
Regeneration and Local Services,Technical Services,Supplies and Services,338027,Services,04-Dec-2017,3371074-1317,"1,095.00",SCHMUCK WHORLTON LTD.
Regeneration and Local Services,Direct Services,Third Party Payments,430100,Rendered by Private Contractors,04-Dec-2017,3371094-5909,"5,612.50",ST ASTIER LTD.
Regeneration and Local Services,Direct Services,Third Party Payments,430100,Rendered by Private Contractors,04-Dec-2017,3371094-6013,"3,882.00",ST ASTIER LTD.
Regeneration and Local Services,Culture & Sport,Supplies and Services,304259,Equipment and Materials,04-Dec-2017,3371164-5759,"3,000.00",VORTEX LIGHTING LTD.
Regeneration and Local Services,Culture & Sport,Supplies and Services,338047,Services,04-Dec-2017,3371164-5760,"5,459.40",VORTEX LIGHTING LTD.
Regeneration and Local Services,Direct Services,Premises,108099,Service Repairs and Maintenance,04-Dec-2017,3371168-7353,"1,170.00",WATERMAN ENVIRONMENTAL SERVICES.
Regeneration and Local Services,Technical Services,Third Party Payments,430100,Rendered by Private Contractors,04-Dec-2017,3371159-104,"1,407.08",VINOVIUM ASSOCIATES LTD.
Resources,Digital and Customer Services,Supplies and Services,344111,Telephones,04-Dec-2017,3370788-VP90592270M14901,"3,317.42",BRITISH TELECOMMUNICATIONS PLC.
Resources,Digital and Customer Services,Supplies and Services,304303,Equipment and Materials,04-Dec-2017,3370918-SIN417921,"2,726.00",INFORMATION & DATA NETWORK SUPPLIES LTD (IDN).
Resources,Digital and Customer Services,Supplies and Services,342051,Computers and Communications,04-Dec-2017,3371053-INV-1639,702.00,REDWOOD CABLE PROJECTS LTD.
Resources,Internal Audit and Insurance,Employees,040149,Recruitment Instruction and Training,04-Dec-2017,3370753-16100,"5,830.00",AUDITWARE SYSTEMS LTD.
Resources,Digital and Customer Services,Supplies and Services,332029,Printing Stationery and Gen Off Exps,04-Dec-2017,3370838-20852,862.50,DESIGN X PRESS LTD.
Resources,Legal & Democratic Services,Premises,125009,Rents,04-Dec-2017,3371060-9467,534.78,RIVERGREEN DEVELOPMENTS PLC.
Transformation and Partnerships,Partnerships & Community Engagement Div.,Supplies and Services,384086,Miscellaneous Expenses,04-Dec-2017,3370721-ADAE09-17HOPK09-17,995.00,ACORN RESIDENTS ASSOCIATION.
Transformation and Partnerships,Partnerships & Community Engagement Div.,Supplies and Services,384086,Miscellaneous Expenses,04-Dec-2017,3370779-DUNS02-17MCKM02-17,900.00,BOWBURN COMMUNITY ASSOCIATION.
Transformation and Partnerships,Partnerships & Community Engagement Div.,Supplies and Services,384086,Miscellaneous Expenses,04-Dec-2017,3371016-CHAR06-17MILO04-17,900.00,PACT HOUSE STANLEY.
Transformation and Partnerships,Strategy,Supplies and Services,304259,Equipment and Materials,04-Dec-2017,3370919-3626754,535.00,INSIGHT DIRECT (UK) LTD.
Transformation and Partnerships,Comms & Information Management,Supplies and Services,324500,Provisions,04-Dec-2017,3370830-771,955.50,CROOK HALL & GARDENS.
Adult and Health Services,Commissioning inc Supporting People,Debtors,930138,Debtor IC+ Residential Care Voids - CCG,05-Dec-2017,3372087-PERIOD7BELMONTGRANGE,"2,721.72",PERFECT CARE LTD T/A BELMONT GRANGE CARE HOME.
Adult and Health Services,Commissioning inc Supporting People,Debtors,930138,Debtor IC+ Residential Care Voids - CCG,05-Dec-2017,3371925-BROVOID19112017,"3,972.80",ALLIANCE CARE.
Adult and Health Services,Head of Adults,Transfer Payments,515201,Social Services Clients,05-Dec-2017,3371982-CAS-12-2017-003,"2,216.50",REDACTED - PAYMENT TO INDIVIDUAL
Adult and Health Services,Head of Adults,Supplies and Services,338066,Services,05-Dec-2017,3371983-707201715082017,"1,480.61",DR RASHEED ABUZEID.
Adult and Health Services,Commissioning inc Supporting People,Debtors,930138,Debtor IC+ Residential Care Voids - CCG,05-Dec-2017,3372141-BARVOID19112017,"6,341.20",TAMARIS HEALTHCARE LTD.
Adult and Health Services,Head of Adults,Third Party Payments,478151,Purchase of Care,05-Dec-2017,3372017-HCL75,"2,199.92",HIGHLEA CARE LTD.
Adult and Health Services,Commissioning inc Supporting People,Supplies and Services,338089,Services,05-Dec-2017,3372117-4917,"2,210.00",SIGNIS LTD.
Children and Young Peoples Services,Head of Early Help Assessment and Safeguarding,Supplies and Services,364353,Grants to Voluntary Organisations,05-Dec-2017,3371716-CAS-12-2017-007,630.00,REDACTED - PAYMENT TO INDIVIDUAL
Children and Young Peoples Services,Head of Early Help Assessment and Safeguarding,Supplies and Services,338045,Services,05-Dec-2017,3371941-141004903,"2,750.00",BARNARDO SERVICES LTD.
Children and Young Peoples Services,Head of Looked After Provision Permanence and Care Leavers,Third Party Payments,440027,Other Third Party Payments,05-Dec-2017,3371329-1244397,706.23,REDACTED - PAYMENT TO INDIVIDUAL
Children and Young Peoples Services,Head of Looked After Provision Permanence and Care Leavers,Third Party Payments,440001,Other Third Party Payments,05-Dec-2017,3371440-1242720,552.00,REDACTED - PAYMENT TO INDIVIDUAL
Children and Young Peoples Services,Head of Looked After Provision Permanence and Care Leavers,Third Party Payments,440001,Other Third Party Payments,05-Dec-2017,3371580-1242666,552.00,REDACTED - PAYMENT TO INDIVIDUAL
Children and Young Peoples Services,Head of Looked After Provision Permanence and Care Leavers,Third Party Payments,440001,Other Third Party Payments,05-Dec-2017,3371580-1242689,552.00,REDACTED - PAYMENT TO INDIVIDUAL
Children and Young Peoples Services,Head of Looked After Provision Permanence and Care Leavers,Third Party Payments,440001,Other Third Party Payments,05-Dec-2017,3371792-1242717,548.70,REDACTED - PAYMENT TO INDIVIDUAL
Children and Young Peoples Services,Head of Looked After Provision Permanence and Care Leavers,Third Party Payments,440038,Other Third Party Payments,05-Dec-2017,3371812-1244483,662.07,REDACTED - PAYMENT TO INDIVIDUAL
Regeneration and Local Services,Direct Services,Premises,135005,Water Services,05-Dec-2017,3372075-220131450024013266,663.64,NWG BUSINESS LTD (NORTHUMBRIAN WATER GROUP).
Regeneration and Local Services,Direct Services,Premises,135005,Water Services,05-Dec-2017,3372075-220131450024362457,660.01,NWG BUSINESS LTD (NORTHUMBRIAN WATER GROUP).
Regeneration and Local Services,Economic Development and Housing,Supplies and Services,384700,Miscellaneous Expenses,05-Dec-2017,3371951-RED-12-2017-015,500.00,BON BONS SWEETS & SHAKES.
Regeneration and Local Services,Economic Development and Housing,Cap Exp on Grants & Other Financial Assistance (REFCUS),918401,Capital grants,05-Dec-2017,3371959-RED-11-2017-013,"2,749.54",CAMEL ACTIVE DURHAM LTD.
Regeneration and Local Services,Culture & Sport,Supplies and Services,338047,Services,05-Dec-2017,3372028-61-100-25-09-17,"1,912.50",JAMES ROBSON (MUSICIAN).
Regeneration and Local Services,Economic Development and Housing,Supplies and Services,340001,Postages,05-Dec-2017,3372066-RED-12-2017-017,"1,000.00",NEOPOST CREDIFON.
Regeneration and Local Services,Direct Services,Supplies and Services,304221,Equipment and Materials,05-Dec-2017,3371991-059-213965,685.00,EDMUNDSON ELECTRICAL LTD.
Regeneration and Local Services,Culture & Sport,Supplies and Services,338047,Services,05-Dec-2017,3372050-4100594274,"3,487.50",MARK IAN THOMPSON.
Regeneration and Local Services,Technical Services,Construction Work,908203,Capital - Public Utilities - Water Services,05-Dec-2017,3372074-914135627,"1,168.00",NORTHUMBRIAN WATER LTD.
Regeneration and Local Services,Culture & Sport,Supplies and Services,338047,Services,05-Dec-2017,3372083-PD1718-04,"2,635.97",PAUL DUNN.
Regeneration and Local Services,Culture & Sport,Supplies and Services,338047,Services,05-Dec-2017,3372121-1181881-1,"1,892.46",SONY PICTURES RELEASING.
Regeneration and Local Services,Technical Services,Third Party Payments,460350,Contract Payments,05-Dec-2017,3372158-201007871,"3,600.00",VAISALA LTD.
Regeneration and Local Services,Direct Services,Premises,145009,Cleaning and Domestic Supplies,05-Dec-2017,3371967-CC111699,946.00,CITY CLEAN NORTHERN LTD.
Regeneration and Local Services,Direct Services,Premises,145009,Cleaning and Domestic Supplies,05-Dec-2017,3371967-CC111822,"2,395.00",CITY CLEAN NORTHERN LTD.
Regeneration and Local Services,Technical Services,Supplies and Services,304221,Equipment and Materials,05-Dec-2017,3372000-1711\064,823.17,EPPLETON QUARRY PRODUCTS LTD.
Regeneration and Local Services,Culture & Sport,Supplies and Services,338047,Services,05-Dec-2017,3372080-878-INV2,"2,025.00",OXFORD ADAMS ASSOCIATES.
Regeneration and Local Services,Culture & Sport,Supplies and Services,338047,Services,05-Dec-2017,3372128-00336024,"1,060.08",STAGE ELECTRICS.
Regeneration and Local Services,Culture & Sport,Supplies and Services,338047,Services,05-Dec-2017,3372146-LW/25887,"2,985.60",THE NARROW ROAD COMPANY.
Regeneration and Local Services,Direct Services,Supplies and Services,304221,Equipment and Materials,05-Dec-2017,3372173-47479728,727.34,WOLSELEY UK LTD.
Regeneration and Local Services,Direct Services,Supplies and Services,304221,Equipment and Materials,05-Dec-2017,3372173-47556412,609.00,WOLSELEY UK LTD.
Regeneration and Local Services,Culture & Sport,Supplies and Services,338047,Services,05-Dec-2017,3372029-XX/6978,"5,700.62",JANET PLATER MANAGEMENT LTD.
Regeneration and Local Services,Technical Services,Supplies and Services,372009,Subscriptions,05-Dec-2017,3372068-1217475,"8,625.35",NETWORK RAIL.
Regeneration and Local Services,Culture & Sport,Supplies and Services,338047,Services,05-Dec-2017,3372164-1623755,"1,720.01",WALT DISNEY CO LTD.
Regeneration and Local Services,Culture & Sport,Supplies and Services,338047,Services,05-Dec-2017,3372164-1823456,"2,676.75",WALT DISNEY CO LTD.
Regeneration and Local Services,Economic Development and Housing,Supplies and Services,377015,County Durham Development,05-Dec-2017,3371919-280759,"2,000.00",AD POINT LTD.
Regeneration and Local Services,Culture & Sport,Supplies and Services,338047,Services,05-Dec-2017,3371997-GALA15,"5,085.00",EMILY BAXENDALE.
Regeneration and Local Services,Direct Services,Transport,215005,Running Costs of Vehicles,05-Dec-2017,3372078-284848,"11,678.46",OIL NRG LTD.
Regeneration and Local Services,Direct Services,Transport,215005,Running Costs of Vehicles,05-Dec-2017,3372078-284850,"34,965.30",OIL NRG LTD.
Regeneration and Local Services,Technical Services,Supplies and Services,304221,Equipment and Materials,05-Dec-2017,3372129-099958,"1,109.72",STONEGRAVE AGGREGATES LTD.
Regeneration and Local Services,Technical Services,Supplies and Services,304221,Equipment and Materials,05-Dec-2017,3372129-100054,"1,044.80",STONEGRAVE AGGREGATES LTD.
Regeneration and Local Services,Technical Services,Supplies and Services,304221,Equipment and Materials,05-Dec-2017,3372156-180288,"1,100.00",TYNEDALE ROADSTONE LTD.
Regeneration and Local Services,Economic Development and Housing,Third Party Payments,460305,Contract Payments,05-Dec-2017,3371958-11903,"52,037.00",BUSINESS & ENTERPRISE COMMERCIAL LTD T/A BE GROUP.
Regeneration and Local Services,Technical Services,Supplies and Services,384194,Miscellaneous Expenses,05-Dec-2017,3372071-90263,"1,652.20",NIRAMAX GROUP LTD.
Regeneration and Local Services,Technical Services,Supplies and Services,384110,Miscellaneous Expenses,05-Dec-2017,3372136-26757,"1,841.23",SYMMONS MADGE ASSOCIATES LTD.
Regeneration and Local Services,Culture & Sport,Supplies and Services,384199,Miscellaneous Expenses,05-Dec-2017,3371923-2303,"4,251.00",ALAN HILLARY EVENTS LTD.
Regeneration and Local Services,Economic Development and Housing,Supplies and Services,338066,Services,05-Dec-2017,3371950-7562,"207,860.10",BLOOM PROCUREMENT SERVICES LTD (FORMERLY NEPRO LTD).
Regeneration and Local Services,Culture & Sport,Supplies and Services,338047,Services,05-Dec-2017,3371998-2/3,"1,552.50",EMMA LAVERTY.
Regeneration and Local Services,Culture & Sport,Employees,338089,Services,05-Dec-2017,3372134-118,555.00,SUZANNE QUINN.
Regeneration and Local Services,Culture & Sport,Supplies and Services,338047,Services,05-Dec-2017,3372016-2,"2,047.50",HELENA HADDEN (THEATRE CONTRACTOR).
Resources,Digital and Customer Services,Supplies and Services,304040,Equipment and Materials,05-Dec-2017,3372072-886277,"4,381.49",NITRO SOFTWARE INC.
Resources,Digital and Customer Services,Supplies and Services,342051,Computers and Communications,05-Dec-2017,3372135-126901,"25,304.79",SWITCHSHOP LTD.
Transformation and Partnerships,Partnerships & Community Engagement Div.,Transfer Payments,525030,Other,05-Dec-2017,3371978-VOUCHER17AB-DCTY001PB10,"1,500.00",COUNTY DURHAM STROKE CLUB.
Transformation and Partnerships,Partnerships & Community Engagement Div.,Transfer Payments,525030,Other,05-Dec-2017,3372126-VOUCHER17AB-DCTY001PB11,"2,500.00",ST NICHOLAS PCC.
Transformation and Partnerships,Partnerships & Community Engagement Div.,Transfer Payments,525030,Other,05-Dec-2017,3371945-VOUCHER17AB-DCTY001PB2,"2,500.00",BELMONT COMMUNITY ASSOCIATION.
Transformation and Partnerships,Partnerships & Community Engagement Div.,Transfer Payments,525030,Other,05-Dec-2017,3371961-VOUCHER17AB-DCTY001PB8,"2,270.00",CASTLE COMMUNITY ACTION.
Transformation and Partnerships,Partnerships & Community Engagement Div.,Transfer Payments,525030,Other,05-Dec-2017,3371986-VOUCHER17AB-DCTY001PB9,"2,500.00",DURHAM CHRISTIAN PARTNERSHIP.
Transformation and Partnerships,Partnerships & Community Engagement Div.,Transfer Payments,525030,Other,05-Dec-2017,3372040-VOUCHER17AB-DCTY001PB3,"2,500.00",KINGS CHURCH DURHAM.
Transformation and Partnerships,Partnerships & Community Engagement Div.,Transfer Payments,525030,Other,05-Dec-2017,3372043-VOUCHER17AB-DCTY001PB6,"2,500.00",LAUREL AVENUE COMMUNITY ASSOCIATION.
Transformation and Partnerships,Partnerships & Community Engagement Div.,Transfer Payments,525030,Other,05-Dec-2017,3372109-VOUCHER17AB-DCTY001PB5,"2,500.00",RT COMMUNITY PROJECTS LTD.
Transformation and Partnerships,Partnerships & Community Engagement Div.,Transfer Payments,525030,Other,05-Dec-2017,3372130-VOUCHER17AB-DCTY001PB7,"2,500.00",STUDENT COMMUNITY ACTION.
Transformation and Partnerships,Partnerships & Community Engagement Div.,Transfer Payments,525030,Other,05-Dec-2017,3372145-VOUCHER17AB-DCTY001PB1,"2,500.00",THE CHEESY WAFFLES PROJECT.
Adult and Health Services,Head of Adults,Supplies and Services,338045,Services,06-Dec-2017,3372440-286143/011117,550.00,PARKLANE PLOWDEN CHAMBERS (BARRISTERS).
Adult and Health Services,Commissioning inc Supporting People,Debtors,930138,Debtor IC+ Residential Care Voids - CCG,06-Dec-2017,3372446-PERIOD7,"3,604.44",PERFECT CARE LTD T/A BELMONT GRANGE CARE HOME.
Adult and Health Services,Head of Adults,Third Party Payments,478101,Purchase of Care,06-Dec-2017,308602-2414044,"1,421.20",REDACTED - PAYMENT TO INDIVIDUAL
Adult and Health Services,EnvironmentHealth & Consumer Protection,Supplies and Services,338027,Services,06-Dec-2017,3372318-12135,"5,775.00",GROUNDWORK NORTH EAST.
Children and Young Peoples Services,Head of Education,Transport,230007,Contract Hire,06-Dec-2017,3372362-RED-12-2017-018,798.00,REDACTED - PAYMENT TO INDIVIDUAL
Children and Young Peoples Services,Head of Education,Transport,230007,Contract Hire,06-Dec-2017,308579-6020-NOV,550.00,CCC SAMUEL KINGS SCHOOL.
Children and Young Peoples Services,Head of Early Help Assessment and Safeguarding,Employees,080025,Agency Staff,06-Dec-2017,3372260-1015676,"129,137.47",DE POEL MANAGED SERVICES LTD.
Children and Young Peoples Services,Head of Looked After Provision Permanence and Care Leavers,Supplies and Services,344033,Telephones,06-Dec-2017,3372545-204098,572.70,UNIFY BUSINESS SOLUTIONS LTD.
Children and Young Peoples Services,Head of Early Help Assessment and Safeguarding,Third Party Payments,486046,Service Level Agreements,06-Dec-2017,3372410-41711,"1,767.25",NATIONAL YOUTH ADVOCACY SERVICE.
Children and Young Peoples Services,Head of Early Help Assessment and Safeguarding,Transport,240045,Car Allowances,06-Dec-2017,3372520-7696,"60,339.88",SUPPORTIVE SRC LTD.
Children and Young Peoples Services,Head of Looked After Provision Permanence and Care Leavers,Supplies and Services,384302,Miscellaneous Expenses,06-Dec-2017,3372464-352,"4,810.50",RAB OUTDOOR EDUCATION LTD.
Children and Young Peoples Services,Head of Looked After Provision Permanence and Care Leavers,Supplies and Services,384302,Miscellaneous Expenses,06-Dec-2017,3372464-356,623.55,RAB OUTDOOR EDUCATION LTD.
Dedicated Schools Grant,Dedicated Schools Grant,Third Party Payments,410037,Rendered by Other Local Authorities,06-Dec-2017,3372432-NK348/AM,"3,267.72",NUNNYKIRK CENTRE FOR DYSLEXIA.
Dedicated Schools Grant,Dedicated Schools Grant,Transport,230010,Contract Hire,06-Dec-2017,308578-1-BL008,800.00,BENNETTS TAXIS.
Regeneration and Local Services,Culture & Sport,Supplies and Services,338047,Services,06-Dec-2017,3372351-ROBINSONCRUSOEINST2,"1,912.50",JAMES CARMICHAEL (THEATRE CONTRACTOR).
Regeneration and Local Services,Transport and Contracted Services,Premises,125009,Rents,06-Dec-2017,3372412-5400511/BUS/282257,"2,265.57",NETWORK RAIL.
Regeneration and Local Services,Economic Development and Housing,Cap Exp on Grants & Other Financial Assistance (REFCUS),918401,Capital grants,06-Dec-2017,3372183-RED-12-2017-025,"14,866.50",A OGILVIE BUILDING CONTRACTORS LTD.
Regeneration and Local Services,Economic Development and Housing,Cap Exp on Grants & Other Financial Assistance (REFCUS),918401,Capital grants,06-Dec-2017,3372365-RED-12-2017-028,"6,000.00",JWW BUILDING SERVICES LTD.
Regeneration and Local Services,Economic Development and Housing,Cap Exp on Grants & Other Financial Assistance (REFCUS),918401,Capital grants,06-Dec-2017,3372389-RED-12-2017-027,"2,678.00",M & R DEVELOPMENTS & CONTRACTORS LTD..
Regeneration and Local Services,Economic Development and Housing,Cap Exp on Grants & Other Financial Assistance (REFCUS),918401,Capital grants,06-Dec-2017,3372413-RED-12-2017-023,"4,810.00",NEW AGE PLUMBING & HEATING SERVICES.
Regeneration and Local Services,Economic Development and Housing,Cap Exp on Grants & Other Financial Assistance (REFCUS),918401,Capital grants,06-Dec-2017,3372444-RED-12-2017-026,"4,471.00",PEART ACCESS RAMPS.*
Regeneration and Local Services,Culture & Sport,Supplies and Services,338047,Services,06-Dec-2017,3372451-2ROBINSONCRUSOE,"3,322.52",PGI SMITH SOLUTIONS LTD.
Regeneration and Local Services,Economic Development and Housing,Cap Exp on Grants & Other Financial Assistance (REFCUS),918401,Capital grants,06-Dec-2017,3372533-RED-12-2017-020,"1,370.00",TOM GARSIDE FINANCIAL SERVICE.
Regeneration and Local Services,Spatial Policy Planning Assets & Environment,Supplies and Services,338066,Services,06-Dec-2017,3372231-BURSARYDEC17,617.19,REDACTED - PAYMENT TO INDIVIDUAL
Regeneration and Local Services,Culture & Sport,Supplies and Services,338047,Services,06-Dec-2017,3372436-811INVOICE2,"2,025.00",OXFORD ADAMS ASSOCIATES.
Regeneration and Local Services,Technical Services,Stock,926900,Stock in hand-Inventory system,06-Dec-2017,3372531-N/IN209390,578.27,THOMAS OWEN & SONS (NEWCASTLE) LTD.
Regeneration and Local Services,Technical Services,Stock,926900,Stock in hand-Inventory system,06-Dec-2017,3372204-SIN365857,628.56,ATF SUPPLIES LTD.
Regeneration and Local Services,Direct Services,Third Party Payments,430100,Rendered by Private Contractors,06-Dec-2017,3372211-366104601,"4,638.62",BELL TRUCK SALES LTD T/A BELL TRUCK & VAN.
Regeneration and Local Services,Technical Services,Stock,926900,Stock in hand-Inventory system,06-Dec-2017,3372315-06/706847,"3,013.05",GREENHAM TRADING LTD.
Regeneration and Local Services,Culture & Sport,Supplies and Services,338047,Services,06-Dec-2017,3372327-0090INST2,"2,531.25",HEATHER ROBERTSON.
Regeneration and Local Services,Direct Services,Supplies and Services,304221,Equipment and Materials,06-Dec-2017,3372364-BII242506,"1,342.33",JT DOVE LTD.
Regeneration and Local Services,Technical Services,Supplies and Services,304221,Equipment and Materials,06-Dec-2017,3372547-INV044330,"2,015.71",URBIS SCHREDER LTD.
Regeneration and Local Services,Culture & Sport,Supplies and Services,304337,Equipment and Materials,06-Dec-2017,3372570-I-0480920,818.00,ZOGGS INTERNATIONAL LTD.
Regeneration and Local Services,Technical Services,Supplies and Services,304221,Equipment and Materials,06-Dec-2017,3372189-25767356,603.36,AGGREGATE INDUSTRIES UK LTD.
Regeneration and Local Services,Direct Services,Transport,210057,Repair and Maintenance of Vehicles,06-Dec-2017,3372211-15122431,685.00,BELL TRUCK SALES LTD T/A BELL TRUCK & VAN.
Regeneration and Local Services,Direct Services,Transport,210057,Repair and Maintenance of Vehicles,06-Dec-2017,3372211-35143509,567.88,BELL TRUCK SALES LTD T/A BELL TRUCK & VAN.
Regeneration and Local Services,Culture & Sport,Premises,120037,Energy Costs,06-Dec-2017,3372222-29812640,620.84,CALOR GAS LTD.
Regeneration and Local Services,Culture & Sport,Supplies and Services,304040,Equipment and Materials,06-Dec-2017,3372233-CC111999,"1,179.63",CITY CLEAN NORTHERN LTD.
Regeneration and Local Services,Direct Services,Third Party Payments,430100,Rendered by Private Contractors,06-Dec-2017,3372265-96349126,693.72,DENNIS EAGLE LTD T/A TERBERG MATEC (UK) LTD.
Regeneration and Local Services,Direct Services,Third Party Payments,430101,Rendered by Private Contractors,06-Dec-2017,3372270-IV941241,"1,551.75",DIRECT TYRE MANAGEMENT (DTM).
Regeneration and Local Services,Transport and Contracted Services,Supplies and Services,384540,Miscellaneous Expenses,06-Dec-2017,3372317-INV-0009,"2,775.00",GRM MAPPING LTD.
Regeneration and Local Services,Transport and Contracted Services,Supplies and Services,336005,Advertising,06-Dec-2017,3372415-22508579,737.59,NEWSQUEST (YORKSHIRE & NORTH EAST) LTD.
Regeneration and Local Services,Technical Services,Third Party Payments,430100,Rendered by Private Contractors,06-Dec-2017,3372191-J1772/A,"3,730.00",AK (LIGHTING & SIGNS) LTD.
Regeneration and Local Services,Direct Services,Transport,210057,Repair and Maintenance of Vehicles,06-Dec-2017,3372281-S196780,918.98,ECON ENGINEERING LTD.
Regeneration and Local Services,Direct Services,Supplies and Services,304221,Equipment and Materials,06-Dec-2017,3372384-4152106,"1,959.59",LONDON GENERAL SALES LTD.
Regeneration and Local Services,Direct Services,Supplies and Services,304221,Equipment and Materials,06-Dec-2017,3372384-4152107,546.00,LONDON GENERAL SALES LTD.
Regeneration and Local Services,Direct Services,Supplies and Services,304221,Equipment and Materials,06-Dec-2017,3372384-4156546,"5,438.06",LONDON GENERAL SALES LTD.
Regeneration and Local Services,Direct Services,Supplies and Services,304221,Equipment and Materials,06-Dec-2017,3372521-2509102,757.14,T CROSSLING & CO LTD.
Regeneration and Local Services,Economic Development and Housing,Supplies and Services,384199,Miscellaneous Expenses,06-Dec-2017,308608-VIS1117,"1,030.00",PEOPLE INTO ENTERPRISE LTD.
Regeneration and Local Services,Technical Services,Stock,926900,Stock in hand-Inventory system,06-Dec-2017,3372238-204312,631.20,COLAS LTD.
Regeneration and Local Services,Direct Services,Supplies and Services,338045,Services,06-Dec-2017,3372406-246734,"1,500.00",REDACTED - PAYMENT TO INDIVIDUAL
Regeneration and Local Services,Technical Services,Supplies and Services,304221,Equipment and Materials,06-Dec-2017,3372445-306395,857.68,PEART FENCING LTD.
Regeneration and Local Services,Technical Services,Stock,926900,Stock in hand-Inventory system,06-Dec-2017,3372508-191170,"1,184.40",SNAPFAST.
Regeneration and Local Services,Technical Services,Supplies and Services,304221,Equipment and Materials,06-Dec-2017,3372542-180291,"1,130.00",TYNEDALE ROADSTONE LTD.
Regeneration and Local Services,Technical Services,Supplies and Services,304221,Equipment and Materials,06-Dec-2017,3372542-180292,"1,030.70",TYNEDALE ROADSTONE LTD.
Regeneration and Local Services,Technical Services,Supplies and Services,304221,Equipment and Materials,06-Dec-2017,3372542-180293,"1,099.10",TYNEDALE ROADSTONE LTD.
Regeneration and Local Services,Technical Services,Supplies and Services,304221,Equipment and Materials,06-Dec-2017,3372542-180294,696.98,TYNEDALE ROADSTONE LTD.
Regeneration and Local Services,Technical Services,Supplies and Services,304221,Equipment and Materials,06-Dec-2017,3372542-180295,"1,100.00",TYNEDALE ROADSTONE LTD.
Regeneration and Local Services,Technical Services,Supplies and Services,304221,Equipment and Materials,06-Dec-2017,3372542-180296,"1,087.40",TYNEDALE ROADSTONE LTD.
Regeneration and Local Services,Technical Services,Supplies and Services,304221,Equipment and Materials,06-Dec-2017,3372542-180297,882.56,TYNEDALE ROADSTONE LTD.
Regeneration and Local Services,Technical Services,Supplies and Services,304221,Equipment and Materials,06-Dec-2017,3372542-180298,790.40,TYNEDALE ROADSTONE LTD.
Regeneration and Local Services,Technical Services,Supplies and Services,304221,Equipment and Materials,06-Dec-2017,3372542-180299,"1,015.00",TYNEDALE ROADSTONE LTD.
Regeneration and Local Services,Technical Services,Supplies and Services,304221,Equipment and Materials,06-Dec-2017,3372542-180300,686.72,TYNEDALE ROADSTONE LTD.
Regeneration and Local Services,Technical Services,Supplies and Services,304221,Equipment and Materials,06-Dec-2017,3372542-180301,"1,108.80",TYNEDALE ROADSTONE LTD.
Regeneration and Local Services,Technical Services,Supplies and Services,304221,Equipment and Materials,06-Dec-2017,3372542-180342,844.16,TYNEDALE ROADSTONE LTD.
Regeneration and Local Services,Direct Services,Third Party Payments,430100,Rendered by Private Contractors,06-Dec-2017,3372192-52629,795.39,ALAN REED LTD.
Regeneration and Local Services,Economic Development and Housing,Supplies and Services,384199,Miscellaneous Expenses,06-Dec-2017,3372309-12580,"6,750.00",GEOCAST TV LTD.
Regeneration and Local Services,Culture & Sport,Supplies and Services,328041,Clothing Uniforms and Laundry,06-Dec-2017,3372442-53409,"6,021.50",PBL PRINT.
Regeneration and Local Services,Direct Services,Transport,210057,Repair and Maintenance of Vehicles,06-Dec-2017,3372449-96811,"1,061.74",PETERLEE GLASS CO LTD.
Regeneration and Local Services,Direct Services,Construction Work,908105,Construction work,06-Dec-2017,3372484-3732,"7,328.00",SAFE STRIP UK LTD.
Regeneration and Local Services,Spatial Policy Planning Assets & Environment,Construction Work,908105,Construction work,06-Dec-2017,3372329-244,"12,065.00",HERITAGE BUILDING & CONSERVATION.
Regeneration and Local Services,Culture & Sport,Supplies and Services,338047,Services,06-Dec-2017,3372261-2,"1,912.50",DEAN STOCKDALE..
Resources,Legal & Democratic Services,Supplies and Services,340001,Postages,06-Dec-2017,3372480-9055513584,"1,353.33",ROYAL MAIL GROUP PLC.
Resources,Digital and Customer Services,Supplies and Services,304303,Equipment and Materials,06-Dec-2017,3372343-SIN418026,791.00,INFORMATION & DATA NETWORK SUPPLIES LTD (IDN).
Resources,Financial Services,Supplies and Services,312009,Newspapers Books and Periodicals,06-Dec-2017,3372230-SI170644,"2,511.33",CHILD POVERTY ACTION GROUP.
Resources,Legal & Democratic Services,Supplies and Services,338042,Services,06-Dec-2017,308597-247528,650.00,MISS KATHERINE WOOD.
Resources,Financial Services,Transport,235058,Public Transport,06-Dec-2017,3372348-90,549.00,JACKS DIRECT TAXI.
Transformation and Partnerships,Comms & Information Management,Supplies and Services,336005,Advertising,06-Dec-2017,3372425-0000613827C,"1,488.11",NORTHERN FLAGS.
Transformation and Partnerships,Comms & Information Management,Supplies and Services,336005,Advertising,06-Dec-2017,3372425-0000613827,"1,633.16",NORTHERN FLAGS.
Transformation and Partnerships,Transformation,Employees,040149,Recruitment Instruction and Training,06-Dec-2017,3372461-ISL144914,"4,999.00",QA LTD.
Transformation and Partnerships,Comms & Information Management,Supplies and Services,338099,Services,06-Dec-2017,3372344-3845,"6,250.80",INGRAM AV LTD T/A INGRAMSOUNDS.
Adult and Health Services,Head of Adults,Transport,230005,Contract Hire,07-Dec-2017,3372622-DCC11NOVEMBER17,"1,080.00",ATLAS TAXIS BISHOP AUCKLAND.
Adult and Health Services,Head of Adults,Income,720044,Fees and Charges,07-Dec-2017,3372888-CAS-12-2017-032,"17,951.14",LIFEWAYS COMMUNITY CARE LTD.
Adult and Health Services,Head of Adults,Transport,230005,Contract Hire,07-Dec-2017,3372622-DCC3NOVEMBER17,700.00,ATLAS TAXIS BISHOP AUCKLAND.
Adult and Health Services,Public Health,Supplies and Services,338094,Services,07-Dec-2017,3372796-INV-000694,"1,000.00",GRAPHIC CHANGE LTD.
Adult and Health Services,Head of Adults,Transport,230005,Contract Hire,07-Dec-2017,3372645-1342NOV17,"1,089.00",BOBBY DOVE.
Adult and Health Services,Head of Adults,Transport,230005,Contract Hire,07-Dec-2017,3372684-003-NOV17,880.00,CHRISTOPHER JEFFREY HALL T/A SODA TAXIS.
Adult and Health Services,Head of Adults,Transport,230005,Contract Hire,07-Dec-2017,3372937-JK44NOV17,"1,760.00",MR JOHN KNIGHTON T/A JK TAXIS.
Adult and Health Services,Head of Adults,Supplies and Services,384504,Miscellaneous Expenses,07-Dec-2017,3372623-AHS01661,"1,098.64",AUCKLAND HOME SOLUTIONS CIC.
Adult and Health Services,Head of Adults,Transport,230005,Contract Hire,07-Dec-2017,3372826-IR171104,"1,685.00",I & R EXECUTIVE TRAVEL.
Adult and Health Services,Head of Adults,Transport,230005,Contract Hire,07-Dec-2017,3372852-21-NOV17,600.00,JOHN CRAKE & SONS MINI BUSES LTD.
Adult and Health Services,Head of Adults,Transport,230005,Contract Hire,07-Dec-2017,3372853-01112017,875.00,JOHN HUBBLE T/A HUBB`S TAXIS.
Adult and Health Services,Commissioning inc Supporting People,Third Party Payments,479111,Purchase of Care,07-Dec-2017,3372690-17/1402,500.00,CJ INTERPRETING SERVICE LTD.
Adult and Health Services,Head of Adults,Transport,230005,Contract Hire,07-Dec-2017,3372858-EAS1504,520.00,JOVIAL PRIVATE HIRE.
Adult and Health Services,Head of Adults,Transport,230005,Contract Hire,07-Dec-2017,3373147-0001920,"1,260.00",TONY RIDLEY T/A COLORS TAXIS LTD.
Adult and Health Services,Head of Adults,Transport,230005,Contract Hire,07-Dec-2017,3372576-111703,955.50,24/7 TAXI SERVICES LTD.
Adult and Health Services,Head of Adults,Transport,230005,Contract Hire,07-Dec-2017,3372625-3NOV17,754.00,AXLE TAXIS.
Adult and Health Services,Head of Adults,Transport,230005,Contract Hire,07-Dec-2017,3372938-201739,700.00,MR JR FORT T/A JRF TAXIS.
Adult and Health Services,Head of Adults,Transport,230005,Contract Hire,07-Dec-2017,3372876-KW803,660.00,KWIK CABS.
Adult and Health Services,Head of Adults,Transport,230005,Contract Hire,07-Dec-2017,3372876-KW805,660.00,KWIK CABS.
Adult and Health Services,Head of Adults,Transport,230005,Contract Hire,07-Dec-2017,3372596-0003,"1,540.00",AIRPORT TAXIS 4U.
Adult and Health Services,Head of Adults,Transport,230005,Contract Hire,07-Dec-2017,3372642-0061,784.00,BIRDS TAXIS LTD.
Adult and Health Services,Head of Adults,Transport,230005,Contract Hire,07-Dec-2017,3372642-0062,616.00,BIRDS TAXIS LTD.
Adult and Health Services,Head of Adults,Transport,230005,Contract Hire,07-Dec-2017,3372845-1216,"1,320.00",JDS PRIVATE HIRE DURHAM.
Adult and Health Services,Head of Adults,Transport,230005,Contract Hire,07-Dec-2017,3373060-1249,675.00,ROAD RUNNERS (NE) LTD.
Adult and Health Services,Head of Adults,Transport,230005,Contract Hire,07-Dec-2017,3373060-1254,792.00,ROAD RUNNERS (NE) LTD.
Adult and Health Services,Head of Adults,Transport,230005,Contract Hire,07-Dec-2017,3373183-6011,616.50,WEARDALE PRIVATE HIRE.
Adult and Health Services,Head of Adults,Transport,230005,Contract Hire,07-Dec-2017,3373187-1117,630.00,WEST AUCKLAND TOWN TRAVEL (WATT).
Adult and Health Services,Head of Adults,Transport,230005,Contract Hire,07-Dec-2017,3372915-129,594.00,MICHAEL COBB (T/A HAIL TAXIS).
Adult and Health Services,Head of Adults,Transport,230005,Contract Hire,07-Dec-2017,3372926-765,"2,112.00",MOLLYS TAXIS.
Adult and Health Services,Head of Adults,Transport,230005,Contract Hire,07-Dec-2017,3373019-3,600.00,PETER`S TAXIS.
Children and Young Peoples Services,Head of Education,Transport,230008,Contract Hire,07-Dec-2017,3372632-SMITH1/NOVEMBER17,"1,950.00",BEELINE PRIVATE HIRE.
Children and Young Peoples Services,Head of Education,Transport,230007,Contract Hire,07-Dec-2017,3372944-1101/17-NOV17,"1,320.00",MR REES WILKINSON T/A B & L MINIBUS HIRE.
Children and Young Peoples Services,Head of Education,Transport,230007,Contract Hire,07-Dec-2017,3372961-1-NOVEMBER17,690.00,NC TAXI`S.
Children and Young Peoples Services,Head of Education,Transport,230008,Contract Hire,07-Dec-2017,3373122-DCC/2017/015,"1,584.00",TAYLOR`S TAXIS.
Children and Young Peoples Services,Head of Education,Transport,230008,Contract Hire,07-Dec-2017,3373122-DCC/2017/016,"2,268.00",TAYLOR`S TAXIS.
Children and Young Peoples Services,Head of Education,Transport,230008,Contract Hire,07-Dec-2017,3372710-N069/NOV/17,"1,691.80",CRAIG RAMSHAW T/A CRAIG`S CABS.
Children and Young Peoples Services,Head of Education,Transport,230006,Contract Hire,07-Dec-2017,3372759-N220/NOV/17,934.56,EMMA RAMSHAW T/A EMMA`S CABS.
Children and Young Peoples Services,Head of Education,Construction Work,908105,Construction work,07-Dec-2017,3372879-INV01511417,"1,200.00",LANES GROUP PLC.
Children and Young Peoples Services,Head of Education,Transport,230008,Contract Hire,07-Dec-2017,3373122-DCC/2017/13,"1,716.00",TAYLOR`S TAXIS.
Children and Young Peoples Services,Head of Education,Transport,230008,Contract Hire,07-Dec-2017,3372622-DCC05NOV17,"2,126.25",ATLAS TAXIS BISHOP AUCKLAND.
Children and Young Peoples Services,Head of Education,Transport,230008,Contract Hire,07-Dec-2017,3372622-DCC10NOV17,"1,760.00",ATLAS TAXIS BISHOP AUCKLAND.
Children and Young Peoples Services,Head of Education,Transport,230008,Contract Hire,07-Dec-2017,3372622-DCC12NOV17,"2,080.00",ATLAS TAXIS BISHOP AUCKLAND.
Children and Young Peoples Services,Head of Education,Transport,230003,Contract Hire,07-Dec-2017,3372783-19888/3020,"3,190.00",GARNETTS LTD (COACHES).
Children and Young Peoples Services,Head of Education,Transport,230003,Contract Hire,07-Dec-2017,3372783-19888/3024,"3,058.00",GARNETTS LTD (COACHES).
Children and Young Peoples Services,Head of Education,Transport,230003,Contract Hire,07-Dec-2017,3372783-19888/3027,"3,058.00",GARNETTS LTD (COACHES).
Children and Young Peoples Services,Head of Education,Transport,230003,Contract Hire,07-Dec-2017,3372783-19888/3028,"3,168.00",GARNETTS LTD (COACHES).
Children and Young Peoples Services,Head of Education,Transport,230007,Contract Hire,07-Dec-2017,3372783-19888/3029,"3,168.00",GARNETTS LTD (COACHES).
Children and Young Peoples Services,Head of Education,Transport,230007,Contract Hire,07-Dec-2017,3372783-19894/4034,"2,410.80",GARNETTS LTD (COACHES).
Children and Young Peoples Services,Head of Education,Transport,230007,Contract Hire,07-Dec-2017,3372783-19894/4035,"2,410.80",GARNETTS LTD (COACHES).
Children and Young Peoples Services,Head of Education,Transport,230007,Contract Hire,07-Dec-2017,3372783-19894/4036,"2,410.80",GARNETTS LTD (COACHES).
Children and Young Peoples Services,Head of Education,Transport,230007,Contract Hire,07-Dec-2017,3372783-19894/4037,"4,821.60",GARNETTS LTD (COACHES).
Children and Young Peoples Services,Head of Education,Transport,230007,Contract Hire,07-Dec-2017,3372783-19894/4038,"2,410.80",GARNETTS LTD (COACHES).
Children and Young Peoples Services,Head of Education,Transport,230007,Contract Hire,07-Dec-2017,3372783-19897-3065,"3,058.00",GARNETTS LTD (COACHES).
Children and Young Peoples Services,Head of Education,Transport,230003,Contract Hire,07-Dec-2017,3372783-19911/3004,"2,919.00",GARNETTS LTD (COACHES).
Children and Young Peoples Services,Head of Education,Transport,230003,Contract Hire,07-Dec-2017,3372783-19911/3008,"3,129.00",GARNETTS LTD (COACHES).
Children and Young Peoples Services,Head of Education,Transport,230003,Contract Hire,07-Dec-2017,3372783-19911/3203,"2,919.00",GARNETTS LTD (COACHES).
Children and Young Peoples Services,Head of Education,Transport,230003,Contract Hire,07-Dec-2017,3372783-19911/3333,"2,478.00",GARNETTS LTD (COACHES).
Children and Young Peoples Services,Head of Education,Transport,230007,Contract Hire,07-Dec-2017,3372783-19913-3182,"2,499.00",GARNETTS LTD (COACHES).
Children and Young Peoples Services,Head of Education,Transport,230008,Contract Hire,07-Dec-2017,3372622-DCC1NOV17,"1,862.50",ATLAS TAXIS BISHOP AUCKLAND.
Children and Young Peoples Services,Head of Education,Transport,230008,Contract Hire,07-Dec-2017,3372622-DCC4NOV17,"1,958.00",ATLAS TAXIS BISHOP AUCKLAND.
Children and Young Peoples Services,Head of Education,Transport,230008,Contract Hire,07-Dec-2017,3372622-DCC6NOV17,"2,970.00",ATLAS TAXIS BISHOP AUCKLAND.
Children and Young Peoples Services,Head of Education,Transport,230008,Contract Hire,07-Dec-2017,3372622-DCC7NOV17,"1,980.00",ATLAS TAXIS BISHOP AUCKLAND.
Children and Young Peoples Services,Head of Education,Transport,230008,Contract Hire,07-Dec-2017,3372684-134-NOV17,728.00,CHRISTOPHER JEFFREY HALL T/A SODA TAXIS.
Children and Young Peoples Services,Head of Education,Transport,230008,Contract Hire,07-Dec-2017,3372826-IR1711001,"2,222.00",I & R EXECUTIVE TRAVEL.
Children and Young Peoples Services,Head of Education,Transport,230008,Contract Hire,07-Dec-2017,3372826-IR1711002,"2,090.00",I & R EXECUTIVE TRAVEL.
Children and Young Peoples Services,Head of Education,Transport,230008,Contract Hire,07-Dec-2017,3372826-IR1711003,"1,760.00",I & R EXECUTIVE TRAVEL.
Children and Young Peoples Services,Head of Education,Transport,230008,Contract Hire,07-Dec-2017,3372845-1203-M027,"2,860.00",JDS PRIVATE HIRE DURHAM.
Children and Young Peoples Services,Head of Education,Transport,230008,Contract Hire,07-Dec-2017,3372850-30/11/17A,"3,036.00",JL EBDON. T/A DIAL-A-CAB.
Children and Young Peoples Services,Head of Education,Transport,230008,Contract Hire,07-Dec-2017,3372850-30/11/17C,"1,320.00",JL EBDON. T/A DIAL-A-CAB.
Children and Young Peoples Services,Head of Education,Transport,230008,Contract Hire,07-Dec-2017,3372850-30/11/17D,"2,156.00",JL EBDON. T/A DIAL-A-CAB.
Children and Young Peoples Services,Head of Education,Transport,230003,Contract Hire,07-Dec-2017,3372882-4508-SL02,"2,968.00",LEE`S COACHES LTD.
Children and Young Peoples Services,Head of Education,Transport,230003,Contract Hire,07-Dec-2017,3372882-4508-SL05,"2,938.00",LEE`S COACHES LTD.
Children and Young Peoples Services,Head of Education,Transport,230003,Contract Hire,07-Dec-2017,3372882-4508-SL06,"2,838.00",LEE`S COACHES LTD.
Children and Young Peoples Services,Head of Education,Transport,230003,Contract Hire,07-Dec-2017,3372882-4508-SL15,"2,616.00",LEE`S COACHES LTD.
Children and Young Peoples Services,Head of Education,Transport,230008,Contract Hire,07-Dec-2017,3372923-KDC-01117,"1,760.00",MJ TIMNEY T/A KDC & C&M TAXIS.
Children and Young Peoples Services,Head of Education,Transport,230010,Contract Hire,07-Dec-2017,3372937-JK229-NOV,840.00,MR JOHN KNIGHTON T/A JK TAXIS.
Children and Young Peoples Services,Head of Education,Transport,230007,Contract Hire,07-Dec-2017,3373127-5050/TBW3,"3,140.00",TED WILFORD COACHES.
Children and Young Peoples Services,Head of Education,Transport,230007,Contract Hire,07-Dec-2017,3373183-6004-4042,"1,977.80",WEARDALE PRIVATE HIRE.
Children and Young Peoples Services,Head of Education,Transport,230007,Contract Hire,07-Dec-2017,3373183-6004-4071,990.00,WEARDALE PRIVATE HIRE.
Children and Young Peoples Services,Head of Education,Transport,230007,Contract Hire,07-Dec-2017,3373183-6004-4127,990.00,WEARDALE PRIVATE HIRE.
Children and Young Peoples Services,Head of Education,Transport,230006,Contract Hire,07-Dec-2017,3372582-HA220794,"1,089.00",A MURRAY TRAVEL.
Children and Young Peoples Services,Head of Education,Transport,230006,Contract Hire,07-Dec-2017,3372641-F732/NOV,"1,358.00",BIG MAMA`S TAXI.
Children and Young Peoples Services,Head of Education,Transport,230008,Contract Hire,07-Dec-2017,3372696-001/N036,"1,870.00",COLIN HOLMES.
Children and Young Peoples Services,Head of Education,Transport,230008,Contract Hire,07-Dec-2017,3372811-N054-NOV,"1,540.00",HIPPY`S TAXI.
Children and Young Peoples Services,Head of Education,Transport,230008,Contract Hire,07-Dec-2017,3372864-N012-NOV,"2,112.00",K & R TAXIS (STANLEY).
Children and Young Peoples Services,Head of Education,Transport,230008,Contract Hire,07-Dec-2017,3372866-003NOV17,"2,441.60",KDH TAXIS.
Children and Young Peoples Services,Head of Education,Supplies and Services,304259,Equipment and Materials,07-Dec-2017,3373011-1725628A,"1,200.00",PEARSON EDUCATION LTD.
Children and Young Peoples Services,Head of Education,Transport,230003,Contract Hire,07-Dec-2017,3373066-ROXDCC26,"5,456.00",ROXBYS BUS HIRE.
Children and Young Peoples Services,Head of Education,Transport,230008,Contract Hire,07-Dec-2017,3373148-TS-15/14,"1,056.00",TOP STAR TRAVEL.
Children and Young Peoples Services,Head of Education,Transport,230012,Contract Hire,07-Dec-2017,3373148-TS-18/14,"1,320.00",TOP STAR TRAVEL.
Children and Young Peoples Services,Head of Education,Transport,230008,Contract Hire,07-Dec-2017,3372582-A220792,"1,474.00",A MURRAY TRAVEL.
Children and Young Peoples Services,Head of Education,Transport,230008,Contract Hire,07-Dec-2017,3372586-11/1/17,"1,540.00",ABA TAXIS.
Children and Young Peoples Services,Head of Education,Transport,230006,Contract Hire,07-Dec-2017,3372660-W153014,"1,148.00",C & R TAXIS.
Children and Young Peoples Services,Head of Education,Transport,230008,Contract Hire,07-Dec-2017,3372805-14NOV17,990.00,HENRY FOREMAN T/A HENRY`S TAXIS.
Children and Young Peoples Services,Head of Education,Transport,230008,Contract Hire,07-Dec-2017,3372865-03-N083,"1,870.00",KD TAXIS.
Children and Young Peoples Services,Head of Education,Transport,230008,Contract Hire,07-Dec-2017,3372935-0304864,"1,540.00",MR GN ROBBINS T/A GNR MINIBUS HIRE.
Children and Young Peoples Services,Head of Education,Transport,230008,Contract Hire,07-Dec-2017,3372935-0304865,"1,540.00",MR GN ROBBINS T/A GNR MINIBUS HIRE.
Children and Young Peoples Services,Head of Education,Transport,230008,Contract Hire,07-Dec-2017,3373108-13NOV17,"1,540.00",STEELYS TAXIS.
Children and Young Peoples Services,Head of Education,Transport,230008,Contract Hire,07-Dec-2017,3373147-0001921,"1,260.00",TONY RIDLEY T/A COLORS TAXIS LTD.
Children and Young Peoples Services,Head of Education,Transport,230008,Contract Hire,07-Dec-2017,3373148-TS21/14,"1,056.00",TOP STAR TRAVEL.
Children and Young Peoples Services,Head of Education,Transport,230008,Contract Hire,07-Dec-2017,3373148-TS22-03,"1,188.00",TOP STAR TRAVEL.
Children and Young Peoples Services,Head of Education,Transport,230008,Contract Hire,07-Dec-2017,3373148-TS40/14,"1,092.00",TOP STAR TRAVEL.
Children and Young Peoples Services,Head of Education,Transport,230008,Contract Hire,07-Dec-2017,3373156-03-A133,"2,520.00",TRIDENT TAXIS.
Children and Young Peoples Services,Head of Education,Transport,230007,Contract Hire,07-Dec-2017,3373179-97NOV17,"1,056.00",WALTONS TAXIS.
Children and Young Peoples Services,Head of Education,Transport,230007,Contract Hire,07-Dec-2017,3373179-98NOV17,"1,056.00",WALTONS TAXIS.
Children and Young Peoples Services,Head of Education,Transport,230008,Contract Hire,07-Dec-2017,3372576-111705,"2,156.00",24/7 TAXI SERVICES LTD.
Children and Young Peoples Services,Head of Education,Transport,230006,Contract Hire,07-Dec-2017,3372576-111707,880.00,24/7 TAXI SERVICES LTD.
Children and Young Peoples Services,Head of Education,Transport,230008,Contract Hire,07-Dec-2017,3372576-111712,"1,958.00",24/7 TAXI SERVICES LTD.
Children and Young Peoples Services,Head of Education,Transport,230008,Contract Hire,07-Dec-2017,3372599-153952,"1,612.50",ALAN SOUTHERN T/A ALANS TAXIS PELTON FELL.
Children and Young Peoples Services,Head of Education,Transport,230008,Contract Hire,07-Dec-2017,3372655-3/A072,"1,452.00",BRIAN PURVIS T/A BJ`S TAXIS.
Children and Young Peoples Services,Head of Education,Transport,230008,Contract Hire,07-Dec-2017,3372660-A02803,"1,430.00",C & R TAXIS.
Children and Young Peoples Services,Head of Education,Transport,230008,Contract Hire,07-Dec-2017,3372660-S02603,"1,430.00",C & R TAXIS.
Children and Young Peoples Services,Head of Education,Transport,230008,Contract Hire,07-Dec-2017,3372660-W07803,"2,640.00",C & R TAXIS.
Children and Young Peoples Services,Head of Early Help Assessment and Safeguarding,Supplies and Services,338044,Services,07-Dec-2017,3372699-100994,952.10,COMPLEMENT GENOMICS LTD.
Children and Young Peoples Services,Head of Education,Transport,230008,Contract Hire,07-Dec-2017,3372794-000038,"1,620.00",GP TAXIS.
Children and Young Peoples Services,Head of Education,Transport,230006,Contract Hire,07-Dec-2017,3372823-INV175,"1,421.00",HORNDALE TAXIS LTD.
Children and Young Peoples Services,Head of Education,Transport,230009,Contract Hire,07-Dec-2017,3372858-723112,"1,430.00",JOVIAL PRIVATE HIRE.
Children and Young Peoples Services,Head of Education,Transport,230008,Contract Hire,07-Dec-2017,3372858-M00903,"1,430.00",JOVIAL PRIVATE HIRE.
Children and Young Peoples Services,Head of Education,Transport,230008,Contract Hire,07-Dec-2017,3372858-M01503,"1,298.00",JOVIAL PRIVATE HIRE.
Children and Young Peoples Services,Head of Education,Transport,230008,Contract Hire,07-Dec-2017,3372858-M01703,968.00,JOVIAL PRIVATE HIRE.
Children and Young Peoples Services,Head of Education,Transport,230008,Contract Hire,07-Dec-2017,3372869-011117,"2,446.50",KEVIN EDMUNDSON.
Children and Young Peoples Services,Head of Education,Transport,230007,Contract Hire,07-Dec-2017,3372875-3-1220,"1,100.00",KT TAXIS.
Children and Young Peoples Services,Head of Education,Transport,230008,Contract Hire,07-Dec-2017,3372931-3-W028,"1,320.00",MR BW YOUNG T/A ESH TAXIS.
Children and Young Peoples Services,Head of Education,Transport,230008,Contract Hire,07-Dec-2017,3373002-SC-304,"1,760.00",PAUL BURRELL T/A PAUL BURRELL TAXIS.
Children and Young Peoples Services,Head of Education,Transport,230008,Contract Hire,07-Dec-2017,3373008-DCC168,"1,760.00",PAUL`S TAXIS..
Children and Young Peoples Services,Head of Education,Transport,230008,Contract Hire,07-Dec-2017,3373008-DCC171,"2,940.00",PAUL`S TAXIS..
Children and Young Peoples Services,Head of Early Help Assessment and Safeguarding,Third Party Payments,425023,Rendered by Voluntary Organisations,07-Dec-2017,3373012-280621,"14,171.43",PEARTREE PROJECTS LTD.
Children and Young Peoples Services,Head of Education,Transport,230006,Contract Hire,07-Dec-2017,3373050-RDS031,"1,050.00",RDS TAXI.
Children and Young Peoples Services,Head of Education,Transport,230007,Contract Hire,07-Dec-2017,3373154-114617,660.00,TRANSPORT.ADVENTURE.XI.
Children and Young Peoples Services,Head of Education,Transport,230008,Contract Hire,07-Dec-2017,3373154-114817,550.00,TRANSPORT.ADVENTURE.XI.
Children and Young Peoples Services,Head of Education,Transport,230003,Contract Hire,07-Dec-2017,3372689-46070,"3,278.00",CJ GRIERSON T/A GRIERSONS COACHES.
Children and Young Peoples Services,Head of Education,Transport,230003,Contract Hire,07-Dec-2017,3372689-46072,"8,184.00",CJ GRIERSON T/A GRIERSONS COACHES.
Children and Young Peoples Services,Head of Education,Transport,230007,Contract Hire,07-Dec-2017,3372689-46073,"2,750.00",CJ GRIERSON T/A GRIERSONS COACHES.
Children and Young Peoples Services,Head of Education,Transport,230003,Contract Hire,07-Dec-2017,3372689-46074,"3,080.00",CJ GRIERSON T/A GRIERSONS COACHES.
Children and Young Peoples Services,Head of Education,Transport,230003,Contract Hire,07-Dec-2017,3372741-25567,"2,970.00",DURHAM CITY COACHES.
Children and Young Peoples Services,Head of Looked After Provision Permanence and Care Leavers,Third Party Payments,425021,Rendered by Voluntary Organisations,07-Dec-2017,3372748-CD004,"17,357.14",DUTY OF CARE LTD.
Children and Young Peoples Services,Head of Looked After Provision Permanence and Care Leavers,Third Party Payments,425021,Rendered by Voluntary Organisations,07-Dec-2017,3372748-MP007,"12,857.14",DUTY OF CARE LTD.
Children and Young Peoples Services,Head of Education,Transport,230007,Contract Hire,07-Dec-2017,3372783-19882,"3,927.00",GARNETTS LTD (COACHES).
Children and Young Peoples Services,Head of Education,Transport,230007,Contract Hire,07-Dec-2017,3372783-19883,"2,563.00",GARNETTS LTD (COACHES).
Children and Young Peoples Services,Head of Education,Transport,230007,Contract Hire,07-Dec-2017,3372783-19884,"4,642.00",GARNETTS LTD (COACHES).
Children and Young Peoples Services,Head of Education,Transport,230003,Contract Hire,07-Dec-2017,3372783-19888,"2,838.00",GARNETTS LTD (COACHES).
Children and Young Peoples Services,Head of Education,Transport,230008,Contract Hire,07-Dec-2017,3372840-A088C,"1,540.00",JAFFAS TAXIS.
Children and Young Peoples Services,Head of Education,Transport,230008,Contract Hire,07-Dec-2017,3372876-KW799,550.00,KWIK CABS.
Children and Young Peoples Services,Head of Education,Transport,230008,Contract Hire,07-Dec-2017,3372876-KW800,"1,320.00",KWIK CABS.
Children and Young Peoples Services,Head of Education,Transport,230008,Contract Hire,07-Dec-2017,3372876-KW802,"1,100.00",KWIK CABS.
Children and Young Peoples Services,Head of Education,Transport,230008,Contract Hire,07-Dec-2017,3372917-00924,"3,366.00",MICHAELS TRAVEL.
Children and Young Peoples Services,Head of Education,Transport,230006,Contract Hire,07-Dec-2017,3372930-AT138,550.00,MR AG WILSON T/A ALAN`S TAXIS (DURHAM CITY).
Children and Young Peoples Services,Head of Education,Transport,230006,Contract Hire,07-Dec-2017,3372942-00243,836.00,REDACTED - PAYMENT TO INDIVIDUAL
Children and Young Peoples Services,Head of Education,Transport,230006,Contract Hire,07-Dec-2017,3372942-00244,880.00,REDACTED - PAYMENT TO INDIVIDUAL
Children and Young Peoples Services,Head of Education,Transport,230008,Contract Hire,07-Dec-2017,3372947-AA392,"1,540.00",REDACTED - PAYMENT TO INDIVIDUAL
Children and Young Peoples Services,Head of Education,Transport,230008,Contract Hire,07-Dec-2017,3372597-0021,910.00,AJ`S TAXIS.
Children and Young Peoples Services,Head of Education,Transport,230006,Contract Hire,07-Dec-2017,3372607-0040,"1,280.00",ANDREW SIMPSON T/A ANDY`S CABS.
Children and Young Peoples Services,Head of Education,Transport,230008,Contract Hire,07-Dec-2017,3372645-1444,"1,650.00",BOBBY DOVE.
Children and Young Peoples Services,Head of Education,Transport,230008,Contract Hire,07-Dec-2017,3372683-SW14,756.00,CHIPPERS TAXIS.
Children and Young Peoples Services,Head of Education,Transport,230003,Contract Hire,07-Dec-2017,3372689-5191,"2,860.00",CJ GRIERSON T/A GRIERSONS COACHES.
Children and Young Peoples Services,Head of Education,Transport,230007,Contract Hire,07-Dec-2017,3372691-1004,"1,100.00",CLIVE HUBERY.
Children and Young Peoples Services,Head of Education,Transport,230008,Contract Hire,07-Dec-2017,3372701-1284,"2,024.00",CONNORS MINI BUSES.*
Children and Young Peoples Services,Head of Education,Transport,230008,Contract Hire,07-Dec-2017,3372701-1285,"1,936.00",CONNORS MINI BUSES.*
Children and Young Peoples Services,Head of Education,Transport,230008,Contract Hire,07-Dec-2017,3372701-1287,"2,200.00",CONNORS MINI BUSES.*
Children and Young Peoples Services,Head of Education,Transport,230008,Contract Hire,07-Dec-2017,3372719-1552,"1,650.00",DA TAXIS.
Children and Young Peoples Services,Head of Education,Transport,230008,Contract Hire,07-Dec-2017,3372723-3214,"1,738.00",DAVES MINIBUSES.
Children and Young Peoples Services,Head of Education,Transport,230008,Contract Hire,07-Dec-2017,3372723-3216,"1,672.00",DAVES MINIBUSES.
Children and Young Peoples Services,Head of Education,Transport,230007,Contract Hire,07-Dec-2017,3372760-0736,880.00,EN ROUTE TRAVEL.
Children and Young Peoples Services,Head of Education,Transport,230008,Contract Hire,07-Dec-2017,3372760-0737,"1,540.00",EN ROUTE TRAVEL.
Children and Young Peoples Services,Head of Education,Transport,230008,Contract Hire,07-Dec-2017,3372775-0400,"1,628.00",FMR SILVA PITA.
Children and Young Peoples Services,Head of Education,Transport,230007,Contract Hire,07-Dec-2017,3372775-0402,680.00,FMR SILVA PITA.
Children and Young Peoples Services,Head of Education,Transport,230007,Contract Hire,07-Dec-2017,3372775-0403,528.00,FMR SILVA PITA.
Children and Young Peoples Services,Head of Education,Transport,230008,Contract Hire,07-Dec-2017,3372838-5026,"1,104.00",J YOUNG T/A VIP TAXIS.
Children and Young Peoples Services,Head of Education,Transport,230008,Contract Hire,07-Dec-2017,3372838-5027,"1,386.00",J YOUNG T/A VIP TAXIS.
Children and Young Peoples Services,Head of Education,Transport,230008,Contract Hire,07-Dec-2017,3372838-5028,"1,232.00",J YOUNG T/A VIP TAXIS.
Children and Young Peoples Services,Head of Education,Transport,230007,Contract Hire,07-Dec-2017,3372838-5031,616.00,J YOUNG T/A VIP TAXIS.
Children and Young Peoples Services,Head of Education,Transport,230007,Contract Hire,07-Dec-2017,3372845-1204,"1,508.00",JDS PRIVATE HIRE DURHAM.
Children and Young Peoples Services,Head of Education,Transport,230007,Contract Hire,07-Dec-2017,3372845-1205,"1,144.00",JDS PRIVATE HIRE DURHAM.
Children and Young Peoples Services,Head of Education,Transport,230007,Contract Hire,07-Dec-2017,3372845-1206,"1,320.00",JDS PRIVATE HIRE DURHAM.
Children and Young Peoples Services,Head of Education,Transport,230008,Contract Hire,07-Dec-2017,3372845-1207,"1,650.00",JDS PRIVATE HIRE DURHAM.
Children and Young Peoples Services,Head of Education,Transport,230008,Contract Hire,07-Dec-2017,3372845-1208,"1,276.00",JDS PRIVATE HIRE DURHAM.
Children and Young Peoples Services,Head of Education,Transport,230008,Contract Hire,07-Dec-2017,3372845-1209,"1,474.00",JDS PRIVATE HIRE DURHAM.
Children and Young Peoples Services,Head of Education,Transport,230008,Contract Hire,07-Dec-2017,3372845-1210,"1,672.00",JDS PRIVATE HIRE DURHAM.
Children and Young Peoples Services,Head of Education,Transport,230008,Contract Hire,07-Dec-2017,3372845-1211,"1,672.00",JDS PRIVATE HIRE DURHAM.
Children and Young Peoples Services,Head of Education,Transport,230008,Contract Hire,07-Dec-2017,3372845-1212,"1,518.00",JDS PRIVATE HIRE DURHAM.
Children and Young Peoples Services,Head of Education,Transport,230008,Contract Hire,07-Dec-2017,3372845-1213,"2,200.00",JDS PRIVATE HIRE DURHAM.
Children and Young Peoples Services,Head of Education,Transport,230008,Contract Hire,07-Dec-2017,3372845-1214,"1,564.00",JDS PRIVATE HIRE DURHAM.
Children and Young Peoples Services,Head of Education,Transport,230008,Contract Hire,07-Dec-2017,3372845-1215,"2,024.00",JDS PRIVATE HIRE DURHAM.
Children and Young Peoples Services,Head of Education,Transport,230008,Contract Hire,07-Dec-2017,3372845-1220,972.00,JDS PRIVATE HIRE DURHAM.
Children and Young Peoples Services,Head of Education,Transport,230008,Contract Hire,07-Dec-2017,3372845-1221,"1,170.00",JDS PRIVATE HIRE DURHAM.
Children and Young Peoples Services,Head of Education,Transport,230007,Contract Hire,07-Dec-2017,3372891-3703,"1,309.00",LINCAB TAXIS.
Children and Young Peoples Services,Head of Education,Transport,230012,Contract Hire,07-Dec-2017,3372891-3704,"1,589.70",LINCAB TAXIS.
Children and Young Peoples Services,Head of Education,Transport,230006,Contract Hire,07-Dec-2017,3372933-1711,"1,795.00",REDACTED - PAYMENT TO INDIVIDUAL
Children and Young Peoples Services,Head of Education,Transport,230006,Contract Hire,07-Dec-2017,3372937-JK14,880.00,MR JOHN KNIGHTON T/A JK TAXIS.
Children and Young Peoples Services,Head of Education,Transport,230007,Contract Hire,07-Dec-2017,3373005-1609,"2,420.00",PAUL WATSON TRAVEL.
Children and Young Peoples Services,Head of Education,Transport,230007,Contract Hire,07-Dec-2017,3373005-1611,"2,640.00",PAUL WATSON TRAVEL.
Children and Young Peoples Services,Head of Education,Transport,230008,Contract Hire,07-Dec-2017,3373018-0594,"2,200.00",PETER`S PRIVATE HIRE/PETER BEST.
Children and Young Peoples Services,Head of Education,Transport,230008,Contract Hire,07-Dec-2017,3373018-0595,"1,584.00",PETER`S PRIVATE HIRE/PETER BEST.
Children and Young Peoples Services,Head of Education,Transport,230008,Contract Hire,07-Dec-2017,3373018-0596,"1,848.00",PETER`S PRIVATE HIRE/PETER BEST.
Children and Young Peoples Services,Head of Education,Transport,230006,Contract Hire,07-Dec-2017,3373018-0598,"1,584.00",PETER`S PRIVATE HIRE/PETER BEST.
Children and Young Peoples Services,Head of Education,Transport,230009,Contract Hire,07-Dec-2017,3373018-0599,"1,478.00",PETER`S PRIVATE HIRE/PETER BEST.
Children and Young Peoples Services,Head of Education,Transport,230008,Contract Hire,07-Dec-2017,3373053-3095,836.00,RICHIES TAXIS.
Children and Young Peoples Services,Head of Education,Transport,230008,Contract Hire,07-Dec-2017,3373060-1232,"1,276.00",ROAD RUNNERS (NE) LTD.
Children and Young Peoples Services,Head of Education,Transport,230008,Contract Hire,07-Dec-2017,3373060-1233,924.00,ROAD RUNNERS (NE) LTD.
Children and Young Peoples Services,Head of Education,Transport,230008,Contract Hire,07-Dec-2017,3373060-1238,"1,100.00",ROAD RUNNERS (NE) LTD.
Children and Young Peoples Services,Head of Education,Transport,230008,Contract Hire,07-Dec-2017,3373060-1239,"1,980.00",ROAD RUNNERS (NE) LTD.
Children and Young Peoples Services,Head of Education,Transport,230008,Contract Hire,07-Dec-2017,3373060-1240,"2,640.00",ROAD RUNNERS (NE) LTD.
Children and Young Peoples Services,Head of Education,Transport,230008,Contract Hire,07-Dec-2017,3373060-1241,"1,254.00",ROAD RUNNERS (NE) LTD.
Children and Young Peoples Services,Head of Education,Transport,230012,Contract Hire,07-Dec-2017,3373060-1243,540.00,ROAD RUNNERS (NE) LTD.
Children and Young Peoples Services,Head of Education,Transport,230008,Contract Hire,07-Dec-2017,3373060-1245,"2,562.00",ROAD RUNNERS (NE) LTD.
Children and Young Peoples Services,Head of Education,Transport,230008,Contract Hire,07-Dec-2017,3373060-1248,"1,584.00",ROAD RUNNERS (NE) LTD.
Children and Young Peoples Services,Head of Education,Transport,230006,Contract Hire,07-Dec-2017,3373060-1252,924.00,ROAD RUNNERS (NE) LTD.
Children and Young Peoples Services,Head of Education,Transport,230008,Contract Hire,07-Dec-2017,3373060-1257,"1,958.00",ROAD RUNNERS (NE) LTD.
Children and Young Peoples Services,Head of Education,Transport,230008,Contract Hire,07-Dec-2017,3373064-0045,"2,422.50",RONS TAXI (CHESTER LE ST).
Children and Young Peoples Services,Head of Education,Transport,230008,Contract Hire,07-Dec-2017,3373065-1724,"4,200.00",RON`S TAXIS (FISHBURN).
Children and Young Peoples Services,Head of Education,Transport,230007,Contract Hire,07-Dec-2017,3373109-5561,"1,496.00",STEPHEN MAUDE LTD T/A MAUDES COACHES.
Children and Young Peoples Services,Head of Education,Transport,230007,Contract Hire,07-Dec-2017,3373182-1062,"1,100.00",WE CONNOR.
Children and Young Peoples Services,Head of Education,Transport,230006,Contract Hire,07-Dec-2017,3373182-1063,646.00,WE CONNOR.
Children and Young Peoples Services,Head of Education,Transport,230007,Contract Hire,07-Dec-2017,3373183-6002,"1,056.00",WEARDALE PRIVATE HIRE.
Children and Young Peoples Services,Head of Education,Transport,230007,Contract Hire,07-Dec-2017,3373183-6003,"1,067.00",WEARDALE PRIVATE HIRE.
Children and Young Peoples Services,Head of Education,Transport,230006,Contract Hire,07-Dec-2017,3373187-1711,810.00,WEST AUCKLAND TOWN TRAVEL (WATT).
Children and Young Peoples Services,Head of Education,Transport,230007,Contract Hire,07-Dec-2017,3372580-561,660.00,A BARKER.
Children and Young Peoples Services,Head of Education,Transport,230006,Contract Hire,07-Dec-2017,3372591-567,880.00,ADAMSONS TAXIS.
Children and Young Peoples Services,Head of Education,Transport,230008,Contract Hire,07-Dec-2017,3372608-129,"1,540.00",ANDY CABS.
Children and Young Peoples Services,Head of Education,Transport,230008,Contract Hire,07-Dec-2017,3372620-621,"1,958.00",AT TAXIS LTD.
Children and Young Peoples Services,Head of Education,Transport,230008,Contract Hire,07-Dec-2017,3372631-716,"1,648.46",BEELINE MINI BUSES.
Children and Young Peoples Services,Head of Education,Transport,230008,Contract Hire,07-Dec-2017,3372631-717,768.02,BEELINE MINI BUSES.
Children and Young Peoples Services,Head of Education,Transport,230008,Contract Hire,07-Dec-2017,3372631-718,678.70,BEELINE MINI BUSES.
Children and Young Peoples Services,Head of Education,Transport,230008,Contract Hire,07-Dec-2017,3372631-719,734.58,BEELINE MINI BUSES.
Children and Young Peoples Services,Head of Education,Transport,230007,Contract Hire,07-Dec-2017,3372649-002,660.00,BOWBURN TAXIS.
Children and Young Peoples Services,Head of Education,Transport,230008,Contract Hire,07-Dec-2017,3372677-003,"1,881.00",CHANNER`S CABS.
Children and Young Peoples Services,Head of Education,Transport,230008,Contract Hire,07-Dec-2017,3372720-248,"1,276.00",DA TRAVEL.
Children and Young Peoples Services,Head of Education,Transport,230008,Contract Hire,07-Dec-2017,3372720-249,"1,302.00",DA TRAVEL.
Children and Young Peoples Services,Head of Education,Transport,230008,Contract Hire,07-Dec-2017,3372724-A39,"2,090.00",DAVES TAXIS.
Children and Young Peoples Services,Head of Education,Transport,230008,Contract Hire,07-Dec-2017,3372724-A40,"1,430.00",DAVES TAXIS.
Children and Young Peoples Services,Head of Education,Transport,230008,Contract Hire,07-Dec-2017,3372724-A41,770.00,DAVES TAXIS.
Children and Young Peoples Services,Head of Education,Transport,230008,Contract Hire,07-Dec-2017,3372793-057,"1,669.00",GMC TAXIS NORTH EAST.
Children and Young Peoples Services,Head of Education,Transport,230008,Contract Hire,07-Dec-2017,3372898-100,"1,320.00",M BUTCHER T/A M & M`S TAXIS.
Children and Young Peoples Services,Head of Education,Transport,230007,Contract Hire,07-Dec-2017,3372919-005,"1,320.00",MILLIE`S TAXIS.
Children and Young Peoples Services,Head of Education,Transport,230008,Contract Hire,07-Dec-2017,3372926-764,"2,640.00",MOLLYS TAXIS.
Children and Young Peoples Services,Head of Education,Transport,230008,Contract Hire,07-Dec-2017,3372926-766,"2,420.00",MOLLYS TAXIS.
Children and Young Peoples Services,Head of Education,Transport,230006,Contract Hire,07-Dec-2017,3372926-767,"2,420.00",MOLLYS TAXIS.
Children and Young Peoples Services,Head of Education,Transport,230006,Contract Hire,07-Dec-2017,3372932-127,830.00,REDACTED - PAYMENT TO INDIVIDUAL
Children and Young Peoples Services,Head of Education,Transport,230008,Contract Hire,07-Dec-2017,3372940-060,"1,672.00",MR LJ TARRY T/A TARRY`S TAXI`S.
Children and Young Peoples Services,Head of Education,Transport,230008,Contract Hire,07-Dec-2017,3372965-036,"1,320.00",NEIL PASSMOOR T/A NEIL`S TAXI.
Children and Young Peoples Services,Head of Early Help Assessment and Safeguarding,Supplies and Services,352001,Conference Expenses,07-Dec-2017,3372968-981,900.00,NEPACS.
Children and Young Peoples Services,Head of Education,Transport,230008,Contract Hire,07-Dec-2017,3373047-03A,"1,760.00",RAYNERS COACHES.
Children and Young Peoples Services,Head of Education,Transport,230007,Contract Hire,07-Dec-2017,3373047-56C,"4,444.00",RAYNERS COACHES.
Children and Young Peoples Services,Head of Education,Transport,230008,Contract Hire,07-Dec-2017,3373061-199,638.00,ROBBIE`S PRIVATE HIRE.
Children and Young Peoples Services,Head of Education,Transport,230008,Contract Hire,07-Dec-2017,3373061-200,"2,002.50",ROBBIE`S PRIVATE HIRE.
Children and Young Peoples Services,Head of Education,Transport,230006,Contract Hire,07-Dec-2017,3372678-04,845.00,CHAPMAN TRAVEL.
Children and Young Peoples Services,Head of Education,Transport,230007,Contract Hire,07-Dec-2017,3372678-05,"1,320.00",CHAPMAN TRAVEL.
Children and Young Peoples Services,Head of Education,Transport,230008,Contract Hire,07-Dec-2017,3372716-29,"1,628.00",CUTHBERT CABS.
Children and Young Peoples Services,Head of Education,Transport,230008,Contract Hire,07-Dec-2017,3372717-03,"1,320.00",D CROOK T/A CK TAXIS.
Children and Young Peoples Services,Head of Education,Transport,230008,Contract Hire,07-Dec-2017,3372852-44,"1,760.00",JOHN CRAKE & SONS MINI BUSES LTD.
Children and Young Peoples Services,Head of Education,Transport,230008,Contract Hire,07-Dec-2017,3372901-13,"1,613.20",M&C`S CABS LTD.
Children and Young Peoples Services,Head of Education,Transport,230008,Contract Hire,07-Dec-2017,3372904-35,"1,760.00",MALCOLM CARR T/A CARLY CABS.
Children and Young Peoples Services,Head of Education,Transport,230007,Contract Hire,07-Dec-2017,3372946-15,"1,320.00",REDACTED - PAYMENT TO INDIVIDUAL
Children and Young Peoples Services,Head of Education,Transport,230007,Contract Hire,07-Dec-2017,3372961-1,660.00,NC TAXI`S.
Children and Young Peoples Services,Head of Education,Transport,230007,Contract Hire,07-Dec-2017,3373019-2,780.00,PETER`S TAXIS.
Children and Young Peoples Services,Head of Education,Transport,230008,Contract Hire,07-Dec-2017,3373142-3,"1,760.00",THOMAS GLEN.
Dedicated Schools Grant,Dedicated Schools Grant,Transport,230010,Contract Hire,07-Dec-2017,3372864-PL006-NOV,"1,332.00",K & R TAXIS (STANLEY).
Dedicated Schools Grant,Dedicated Schools Grant,Supplies and Services,304259,Equipment and Materials,07-Dec-2017,3372897-INV-1451,"2,592.00",LYNCH HEALTHCARE LTD.
Dedicated Schools Grant,Dedicated Schools Grant,Third Party Payments,410037,Rendered by Other Local Authorities,07-Dec-2017,3372892-1000634,"1,833.82",LINGFIELD EDUCATION TRUST T/A MOUNT PLEASANT PRIMARY SCHOOL.
Dedicated Schools Grant,Dedicated Schools Grant,Transport,230010,Contract Hire,07-Dec-2017,3372845-1218,912.00,JDS PRIVATE HIRE DURHAM.
Dedicated Schools Grant,Dedicated Schools Grant,Transport,230010,Contract Hire,07-Dec-2017,3373053-3096,"1,035.00",RICHIES TAXIS.
Dedicated Schools Grant,Dedicated Schools Grant,Transport,230010,Contract Hire,07-Dec-2017,3373060-1260,"1,368.00",ROAD RUNNERS (NE) LTD.
Dedicated Schools Grant,Dedicated Schools Grant,Transport,230010,Contract Hire,07-Dec-2017,3372919-004,836.00,MILLIE`S TAXIS.
Regeneration and Local Services,Culture & Sport,Supplies and Services,304221,Equipment and Materials,07-Dec-2017,3372943-DRS/DCC/05/SERVICING,"1,245.50",MR PT STOCKDALE T/A DR SPOKES (BICYCLE REPAIR & INSTRUCTION).
Regeneration and Local Services,Economic Development and Housing,Cap Exp on Grants & Other Financial Assistance (REFCUS),918401,Capital grants,07-Dec-2017,3372595-RED-12-2017-047,"2,740.45",AGV INNOVATIVE SOLUTIONS LTD.
Regeneration and Local Services,Economic Development and Housing,Cap Exp on Grants & Other Financial Assistance (REFCUS),918401,Capital grants,07-Dec-2017,3372606-RED-12-2017-029,"5,000.00",REDACTED - PAYMENT TO INDIVIDUAL
Regeneration and Local Services,Economic Development and Housing,Cap Exp on Grants & Other Financial Assistance (REFCUS),918401,Capital grants,07-Dec-2017,3372789-RED-12-2017-030,"5,000.00",REDACTED - PAYMENT TO INDIVIDUAL
Regeneration and Local Services,Economic Development and Housing,Cap Exp on Grants & Other Financial Assistance (REFCUS),918401,Capital grants,07-Dec-2017,3372806-RED-12-2017-032,"3,762.00",HES GROUP UK LTD.
Regeneration and Local Services,Economic Development and Housing,Cap Exp on Grants & Other Financial Assistance (REFCUS),918401,Capital grants,07-Dec-2017,3372806-RED-12-2017-033,"3,235.00",HES GROUP UK LTD.
Regeneration and Local Services,Economic Development and Housing,Cap Exp on Grants & Other Financial Assistance (REFCUS),918401,Capital grants,07-Dec-2017,3372806-RED-12-2017-034,"3,349.67",HES GROUP UK LTD.
Regeneration and Local Services,Economic Development and Housing,Cap Exp on Grants & Other Financial Assistance (REFCUS),918401,Capital grants,07-Dec-2017,3372806-RED-12-2017-036,"3,535.00",HES GROUP UK LTD.
Regeneration and Local Services,Economic Development and Housing,Cap Exp on Grants & Other Financial Assistance (REFCUS),918401,Capital grants,07-Dec-2017,3372806-RED-12-2017-037,"3,985.00",HES GROUP UK LTD.
Regeneration and Local Services,Economic Development and Housing,Cap Exp on Grants & Other Financial Assistance (REFCUS),918401,Capital grants,07-Dec-2017,3372806-RED-12-2017-038,"3,554.00",HES GROUP UK LTD.
Regeneration and Local Services,Economic Development and Housing,Cap Exp on Grants & Other Financial Assistance (REFCUS),918401,Capital grants,07-Dec-2017,3372806-RED-12-2017-039,"2,887.00",HES GROUP UK LTD.
Regeneration and Local Services,Economic Development and Housing,Cap Exp on Grants & Other Financial Assistance (REFCUS),918401,Capital grants,07-Dec-2017,3372907-RED-12-2017-031,"5,000.00",REDACTED - PAYMENT TO INDIVIDUAL
Regeneration and Local Services,Economic Development and Housing,Cap Exp on Grants & Other Financial Assistance (REFCUS),918401,Capital grants,07-Dec-2017,3373063-RED-11-2017-283,"2,923.00",RONDEN PROPERTIES LTD.
Regeneration and Local Services,Economic Development and Housing,Cap Exp on Grants & Other Financial Assistance (REFCUS),918401,Capital grants,07-Dec-2017,3373144-RED-12-2017-035,"2,859.00",THYSSENKRUPP ENCASA A DIVISION OF THYSSENKRUPP ACCESS LTD.
Regeneration and Local Services,Economic Development and Housing,Cap Exp on Grants & Other Financial Assistance (REFCUS),918401,Capital grants,07-Dec-2017,3373144-RED-12-2017-040,"1,395.00",THYSSENKRUPP ENCASA A DIVISION OF THYSSENKRUPP ACCESS LTD.
Regeneration and Local Services,Economic Development and Housing,Cap Exp on Grants & Other Financial Assistance (REFCUS),918401,Capital grants,07-Dec-2017,3373144-RED-12-2017-041,"2,382.00",THYSSENKRUPP ENCASA A DIVISION OF THYSSENKRUPP ACCESS LTD.
Regeneration and Local Services,Economic Development and Housing,Cap Exp on Grants & Other Financial Assistance (REFCUS),918401,Capital grants,07-Dec-2017,3373144-RED-12-2017-042,"4,127.63",THYSSENKRUPP ENCASA A DIVISION OF THYSSENKRUPP ACCESS LTD.
Regeneration and Local Services,Economic Development and Housing,Cap Exp on Grants & Other Financial Assistance (REFCUS),918401,Capital grants,07-Dec-2017,3373144-RED-12-2017-043,"2,002.00",THYSSENKRUPP ENCASA A DIVISION OF THYSSENKRUPP ACCESS LTD.
Regeneration and Local Services,Economic Development and Housing,Supplies and Services,384999,Miscellaneous Expenses,07-Dec-2017,3373161-RED-12-2017-048,"1,125.50",TYNESIDE CINEMA.
Regeneration and Local Services,Spatial Policy Planning Assets & Environment,Supplies and Services,384700,Miscellaneous Expenses,07-Dec-2017,3373110-BURSARYNOV17,593.69,REDACTED - PAYMENT TO INDIVIDUAL
Regeneration and Local Services,Technical Services,Third Party Payments,430100,Rendered by Private Contractors,07-Dec-2017,3373044-2800/171033,"178,585.26",RAINTON CONSTRUCTION LTD.
Regeneration and Local Services,Culture & Sport,Third Party Payments,430100,Rendered by Private Contractors,07-Dec-2017,3372698-PSINV02645,"84,494.36",COMPETITION LINE UK LTD T/A LIFESTYLE FITNESS.
Regeneration and Local Services,Culture & Sport,Third Party Payments,430100,Rendered by Private Contractors,07-Dec-2017,3372698-PSINV02646,"7,780.61",COMPETITION LINE UK LTD T/A LIFESTYLE FITNESS.
Regeneration and Local Services,Culture & Sport,Income,720810,Fees and Charges,07-Dec-2017,3372698-PSINV02647,"28,595.81",COMPETITION LINE UK LTD T/A LIFESTYLE FITNESS.
Regeneration and Local Services,Culture & Sport,Income,720810,Fees and Charges,07-Dec-2017,3372698-PSINV02648,"4,452.55",COMPETITION LINE UK LTD T/A LIFESTYLE FITNESS.
Regeneration and Local Services,Culture & Sport,Supplies and Services,338047,Services,07-Dec-2017,3372745-4100601670,"2,191.78",DURHAM DRAMATIC SOCIETY.
Regeneration and Local Services,Direct Services,Supplies and Services,304221,Equipment and Materials,07-Dec-2017,3372751-059-214748,668.10,EDMUNDSON ELECTRICAL LTD.
Regeneration and Local Services,Direct Services,Transport,210057,Repair and Maintenance of Vehicles,07-Dec-2017,3373095-SI-2245806,678.55,SPALDINGS (UK) LTD.
Regeneration and Local Services,Direct Services,Supplies and Services,304221,Equipment and Materials,07-Dec-2017,3373171-6890250137,"2,490.22",VIESSMANN LTD.
Regeneration and Local Services,Economic Development and Housing,Fees,901002,Professional fees,07-Dec-2017,3372784-107632422,602.55,GATESHEAD COUNCIL.
Regeneration and Local Services,Economic Development and Housing,Supplies and Services,336005,Advertising,07-Dec-2017,3372856-MPB716347,900.00,JOHNSTON PUBLISHING LTD.
Regeneration and Local Services,Technical Services,Third Party Payments,430100,Rendered by Private Contractors,07-Dec-2017,3373074-SC17-1770,"5,621.00",SAFECOTE LTD.
Regeneration and Local Services,Economic Development and Housing,Supplies and Services,324117,Provisions,07-Dec-2017,3372639-77421897,778.36,BIDFOOD.
Regeneration and Local Services,Direct Services,Third Party Payments,430101,Rendered by Private Contractors,07-Dec-2017,3372733-IV945358,905.95,DIRECT TYRE MANAGEMENT (DTM).
Regeneration and Local Services,Direct Services,Third Party Payments,430101,Rendered by Private Contractors,07-Dec-2017,3372733-IV945360,"2,168.35",DIRECT TYRE MANAGEMENT (DTM).
Regeneration and Local Services,Technical Services,Supplies and Services,304221,Equipment and Materials,07-Dec-2017,3372861-GO1612/D,813.36,JT DOVE LTD.
Regeneration and Local Services,Technical Services,Premises,120009,Energy Costs,07-Dec-2017,3372984-NNO72W42,"178,283.49",NPOWER.
Regeneration and Local Services,Technical Services,Stock,926900,Stock in hand-Inventory system,07-Dec-2017,3372998-XL213201,"1,822.50",PARK ELECTRICAL DISTRIBUTORS LTD.
Regeneration and Local Services,Direct Services,Transport,230005,Contract Hire,07-Dec-2017,3373057-IV355504,"5,060.00",RIVERSIDE TRUCK RENTAL LTD (RTR).
Regeneration and Local Services,Direct Services,Transport,230005,Contract Hire,07-Dec-2017,3373057-IV355506,"4,600.00",RIVERSIDE TRUCK RENTAL LTD (RTR).
Regeneration and Local Services,Direct Services,Transport,230005,Contract Hire,07-Dec-2017,3373057-IV355574,"3,410.00",RIVERSIDE TRUCK RENTAL LTD (RTR).
Regeneration and Local Services,Direct Services,Transport,230005,Contract Hire,07-Dec-2017,3373057-IV359968,"1,344.00",RIVERSIDE TRUCK RENTAL LTD (RTR).
Regeneration and Local Services,Direct Services,Transport,230005,Contract Hire,07-Dec-2017,3373084-10889433,642.84,SHB HIRE LTD.
Regeneration and Local Services,Direct Services,Transport,230005,Contract Hire,07-Dec-2017,3373084-10889434,642.84,SHB HIRE LTD.
Regeneration and Local Services,Direct Services,Supplies and Services,304221,Equipment and Materials,07-Dec-2017,3372692-8118683,"2,257.86",CLOVER CONTROLS LTD.
Regeneration and Local Services,Direct Services,Transport,210057,Repair and Maintenance of Vehicles,07-Dec-2017,3372854-1998321,932.78,JOHN NIXON LTD.
Regeneration and Local Services,Direct Services,Supplies and Services,304221,Equipment and Materials,07-Dec-2017,3372894-4125996,"1,273.74",LONDON GENERAL SALES LTD.
Regeneration and Local Services,Direct Services,Transport,210057,Repair and Maintenance of Vehicles,07-Dec-2017,3372668-222053,750.00,CARRS BILLINGTON AGRICULTURE.
Regeneration and Local Services,Direct Services,Transport,230005,Contract Hire,07-Dec-2017,3372727-670691,501.43,DAWSONRENTALS VANS LTD.*
Regeneration and Local Services,Direct Services,Transport,230005,Contract Hire,07-Dec-2017,3372727-670692,534.00,DAWSONRENTALS VANS LTD.*
Regeneration and Local Services,Culture & Sport,Supplies and Services,304259,Equipment and Materials,07-Dec-2017,3372859-872246,"4,176.01",JP LENNARD LTD.
Regeneration and Local Services,Direct Services,Transport,215005,Running Costs of Vehicles,07-Dec-2017,3372990-286021,"12,610.00",OIL NRG LTD.
Regeneration and Local Services,Direct Services,Transport,215022,Running Costs of Vehicles,07-Dec-2017,3372990-286022,"2,035.60",OIL NRG LTD.
Regeneration and Local Services,Technical Services,Third Party Payments,430100,Rendered by Private Contractors,07-Dec-2017,3373029-148601,"28,461.05",PREMIER TRAFFIC MANAGEMENT LTD.
Regeneration and Local Services,Direct Services,Supplies and Services,328041,Clothing Uniforms and Laundry,07-Dec-2017,3373120-522378,637.50,SWIFT INDUSTRIAL SUPPLIES LTD.
Regeneration and Local Services,Technical Services,Supplies and Services,304221,Equipment and Materials,07-Dec-2017,3373160-180386,712.07,TYNEDALE ROADSTONE LTD.
Regeneration and Local Services,Technical Services,Supplies and Services,304221,Equipment and Materials,07-Dec-2017,3373160-180387,"1,130.00",TYNEDALE ROADSTONE LTD.
Regeneration and Local Services,Technical Services,Supplies and Services,304221,Equipment and Materials,07-Dec-2017,3373160-180388,787.52,TYNEDALE ROADSTONE LTD.
Regeneration and Local Services,Technical Services,Supplies and Services,304221,Equipment and Materials,07-Dec-2017,3373160-180389,860.60,TYNEDALE ROADSTONE LTD.
Regeneration and Local Services,Technical Services,Supplies and Services,304221,Equipment and Materials,07-Dec-2017,3373160-180390,947.90,TYNEDALE ROADSTONE LTD.
Regeneration and Local Services,Technical Services,Supplies and Services,304221,Equipment and Materials,07-Dec-2017,3373160-180391,561.05,TYNEDALE ROADSTONE LTD.
Regeneration and Local Services,Technical Services,Supplies and Services,304221,Equipment and Materials,07-Dec-2017,3373160-180392,797.12,TYNEDALE ROADSTONE LTD.
Regeneration and Local Services,Direct Services,Stock,926004,Stock,07-Dec-2017,3373197-113206,643.11,ZOELLER WASTE SYSTEMS LTD.
Regeneration and Local Services,Transport and Contracted Services,Supplies and Services,384540,Miscellaneous Expenses,07-Dec-2017,3372643-08933,"1,480.00",BISSELL DISPLAY.
Regeneration and Local Services,Technical Services,Construction Work,908105,Construction work,07-Dec-2017,3372839-21002,"1,135.51",JACK COUPE & SONS LTD T/A COUPE LINE.
Regeneration and Local Services,Technical Services,Construction Work,908105,Construction work,07-Dec-2017,3372839-21042,542.11,JACK COUPE & SONS LTD T/A COUPE LINE.
Regeneration and Local Services,Technical Services,Construction Work,908105,Construction work,07-Dec-2017,3372839-21046,969.52,JACK COUPE & SONS LTD T/A COUPE LINE.
Regeneration and Local Services,Technical Services,Supplies and Services,304358,Equipment and Materials,07-Dec-2017,3372900-MS659,590.63,M SPENCE SURFACING LTD.
Regeneration and Local Services,Technical Services,Supplies and Services,304358,Equipment and Materials,07-Dec-2017,3372900-MS685,513.00,M SPENCE SURFACING LTD.
Regeneration and Local Services,Technical Services,Supplies and Services,304358,Equipment and Materials,07-Dec-2017,3372900-MS686,891.00,M SPENCE SURFACING LTD.
Regeneration and Local Services,Technical Services,Supplies and Services,304358,Equipment and Materials,07-Dec-2017,3372900-MS688,"1,244.25",M SPENCE SURFACING LTD.
Regeneration and Local Services,Direct Services,Transport,210057,Repair and Maintenance of Vehicles,07-Dec-2017,3372955-74572,616.83,MTS BOBCAT.
Regeneration and Local Services,Technical Services,Third Party Payments,460224,Contract Payments,07-Dec-2017,3373082-18789,"54,633.15",SEYMOUR (CIVIL ENGINEERING CONTRACTORS) LTD.
Regeneration and Local Services,Direct Services,Supplies and Services,304221,Equipment and Materials,07-Dec-2017,3373150-31334,"3,875.00",TOTAL PUMP SOLUTIONS LTD.
Regeneration and Local Services,Direct Services,Third Party Payments,430100,Rendered by Private Contractors,07-Dec-2017,3372579-2457,820.00,A & J GUTHRIE.
Regeneration and Local Services,Direct Services,Third Party Payments,430100,Rendered by Private Contractors,07-Dec-2017,3372579-2460,"1,950.00",A & J GUTHRIE.
Regeneration and Local Services,Economic Development and Housing,Supplies and Services,336005,Advertising,07-Dec-2017,3372624-1753,676.00,AUTO ITEMS LTD.
Regeneration and Local Services,Direct Services,Third Party Payments,430100,Rendered by Private Contractors,07-Dec-2017,3372670-3418,"3,269.38",CATHEDRAL LOCK & SAFE SERVICES LTD.
Regeneration and Local Services,Economic Development and Housing,Supplies and Services,377015,County Durham Development,07-Dec-2017,3372721-1261,"1,320.00",DAN PRINCE PHOTOGRAPHY LTD.
Regeneration and Local Services,Technical Services,Third Party Payments,430100,Rendered by Private Contractors,07-Dec-2017,3372809-2719,"5,568.47",HIGHWAY CONSTRUCTION SERVICES LTD.
Regeneration and Local Services,Direct Services,Supplies and Services,304259,Equipment and Materials,07-Dec-2017,3373024-1232,"2,040.00",POSTPULLERS (UK) LTD.
Regeneration and Local Services,Direct Services,Supplies and Services,304358,Equipment and Materials,07-Dec-2017,3373049-9855,"1,670.00",RD KEARTON & SONS LTD.
Regeneration and Local Services,Technical Services,Construction Work,908105,Construction work,07-Dec-2017,3373117-8433,960.00,SURVEY & MARKETING SERVICES LTD T/A SMS MARKET RESEARCH.
Regeneration and Local Services,Spatial Policy Planning Assets & Environment,Supplies and Services,384199,Miscellaneous Expenses,07-Dec-2017,3373196-7671,850.00,YOUNGS RPS LLP.
Regeneration and Local Services,Direct Services,Third Party Payments,430105,Rendered by Private Contractors,07-Dec-2017,3372963-433,"1,378.99",NE GREEN WASTE RECYCLING LTD.
Resources,Legal & Democratic Services,Supplies and Services,338042,Services,07-Dec-2017,3372730-331198/INVEMC160,"2,880.00",DERE STREET BARRISTERS.
Resources,Legal & Democratic Services,Supplies and Services,338042,Services,07-Dec-2017,3372730-334444/INVEMC161,540.00,DERE STREET BARRISTERS.
Resources,Legal & Democratic Services,Supplies and Services,338042,Services,07-Dec-2017,3372730-329120/INVTD446,540.00,DERE STREET BARRISTERS.
Resources,Legal & Democratic Services,Creditors,952238,Chairmans Charity,07-Dec-2017,3373045-INV46695,"1,553.33",RAMSIDE HALL HOTEL & GOLF CLUB.*
Resources,Digital and Customer Services,Stock,926900,Stock in hand-Inventory system,07-Dec-2017,3372831-3634360,790.00,INSIGHT DIRECT (UK) LTD.
Resources,Digital and Customer Services,Supplies and Services,304245,Equipment and Materials,07-Dec-2017,3373028-9000139,543.53,PREMIER PAPER GROUP LTD.
Resources,Digital and Customer Services,Supplies and Services,332029,Printing Stationery and Gen Off Exps,07-Dec-2017,3372732-20892,636.00,DESIGN X PRESS LTD.
Resources - C A C,Centrally Administered costs,Supplies and Services,338013,Services,07-Dec-2017,3372911-1326713,"12,079.00",MAZARS LLP.
Resources - C A C,Centrally Administered costs,Supplies and Services,338013,Services,07-Dec-2017,3372911-1335826,"12,079.00",MAZARS LLP.
Resources - C A C,Centrally Administered costs,Supplies and Services,338013,Services,07-Dec-2017,3372911-1335827,"25,068.00",MAZARS LLP.
Transformation and Partnerships,Partnerships & Community Engagement Div.,Transfer Payments,525030,Other,07-Dec-2017,3372676-VOUCHER17YF-WEAR001,"3,000.00",CHANGING RELATIONS CIC.
Transformation and Partnerships,Partnerships & Community Engagement Div.,Transfer Payments,525030,Other,07-Dec-2017,3372769-VOUCHER17AB-4TOG012,"7,000.00",FERRYHILL LADDER CENTRE LTD.
Transformation and Partnerships,Partnerships & Community Engagement Div.,Transfer Payments,525030,Other,07-Dec-2017,3372797-VOUCHER17AB-GAMP003,"6,351.00",GREAT AYCLIFFE CANCER SUPPORT GROUP.
Transformation and Partnerships,Partnerships & Community Engagement Div.,Cap Exp on Grants & Other Financial Assistance (REFCUS),918004,Contributions to other bodies,07-Dec-2017,3372798-VOUCHER17NB-3TWN003,"10,000.00",GREATER WILLINGTON TOWN COUNCIL.
Transformation and Partnerships,Partnerships & Community Engagement Div.,Cap Exp on Grants & Other Financial Assistance (REFCUS),918004,Contributions to other bodies,07-Dec-2017,3372880-VOUCHER17NB-DCTY010,"1,500.00",LAUREL AVENUE COMMUNITY ASSOCIATION.
Transformation and Partnerships,Partnerships & Community Engagement Div.,Transfer Payments,525030,Other,07-Dec-2017,3372887-VOUCHER17AB-GAMP007,"4,988.00",LIFELINE COMMUNITY ACTION.
Transformation and Partnerships,Partnerships & Community Engagement Div.,Cap Exp on Grants & Other Financial Assistance (REFCUS),918004,Contributions to other bodies,07-Dec-2017,3373078-VOUCHER17AB-GAMP005,"11,299.00",SCHOOL AYCLIFFE COMMUNITY ASSOCIATION.
Transformation and Partnerships,Partnerships & Community Engagement Div.,Transfer Payments,525030,Other,07-Dec-2017,3372686-VOUCHER17AB,"34,968.10",CITIZENS ADVICE COUNTY DURHAM.
Transformation and Partnerships,Partnerships & Community Engagement Div.,Construction Work,908105,Construction work,07-Dec-2017,3372738-158699,"2,200.00",DUNHOUSE QUARRY CO LTD.
Transformation and Partnerships,Comms & Information Management,Supplies and Services,336005,Advertising,07-Dec-2017,3373158-S59244,"1,300.00",TRINITY MIRROR PUBLISHING LTD.*
Transformation and Partnerships,Comms & Information Management,Supplies and Services,384199,Miscellaneous Expenses,07-Dec-2017,3372739-938,"3,282.17",DURHAM CATHEDRAL LTD.
Adult and Health Services,Public Health,Third Party Payments,460803,Contract Payments,08-Dec-2017,3373735-SI-TPL-00024713,"1,855.00",TURNING POINT (SERVICES) LTD.
Adult and Health Services,Head of Adults,Transport,230005,Contract Hire,08-Dec-2017,3373669-DCC103/SLD005,"1,716.00",STEPHEN COXON.
Adult and Health Services,Head of Adults,Transport,230005,Contract Hire,08-Dec-2017,3373689-1488-30/11/17,864.00,TALBOTS TAXIS.
Adult and Health Services,Head of Adults,Transport,230005,Contract Hire,08-Dec-2017,3373302-WV120/1117,510.00,COLVIN`S CABS.
Adult and Health Services,Head of Adults,Transport,230005,Contract Hire,08-Dec-2017,3373756-1122NOV17,500.00,WAYNE`S TAXIS.
Adult and Health Services,Head of Adults,Transport,230005,Contract Hire,08-Dec-2017,3373757-NCL017/03,"2,610.00",WAYSIDE TAXIS.
Adult and Health Services,Head of Adults,Transport,230005,Contract Hire,08-Dec-2017,3373509-MCD37135,700.00,MCDONALD TRAVEL.
Adult and Health Services,Head of Adults,Transport,230005,Contract Hire,08-Dec-2017,3373521-CA111-17,"1,469.60",MR CT WALKER T/A CW TAXIS.
Adult and Health Services,Head of Adults,Transport,230005,Contract Hire,08-Dec-2017,3373521-PG111-17,"1,010.94",MR CT WALKER T/A CW TAXIS.
Adult and Health Services,Head of Adults,Transport,230005,Contract Hire,08-Dec-2017,3373321-100616,"1,829.68",CROFT BUSINESS SERVICES (UK) LTD T/A CROFT TAXIS.
Adult and Health Services,Head of Adults,Transport,230005,Contract Hire,08-Dec-2017,3373398-100545,"1,628.00",G & P JOHNSON LTD T/A NIGHTINGALE COACHES.
Adult and Health Services,Head of Adults,Transport,230005,Contract Hire,08-Dec-2017,3373398-100546,"1,352.00",G & P JOHNSON LTD T/A NIGHTINGALE COACHES.
Adult and Health Services,Head of Adults,Transport,230005,Contract Hire,08-Dec-2017,3373398-100547,858.00,G & P JOHNSON LTD T/A NIGHTINGALE COACHES.
Adult and Health Services,Head of Adults,Transport,230005,Contract Hire,08-Dec-2017,3373398-100548,880.00,G & P JOHNSON LTD T/A NIGHTINGALE COACHES.
Adult and Health Services,Head of Adults,Transport,230005,Contract Hire,08-Dec-2017,3373673-171120,540.00,STEVEN PRATT T/A PTL TAXIS DURHAM.
Adult and Health Services,Head of Adults,Transport,230005,Contract Hire,08-Dec-2017,3373673-171121,510.00,STEVEN PRATT T/A PTL TAXIS DURHAM.
Adult and Health Services,Head of Adults,Transport,230005,Contract Hire,08-Dec-2017,3373240-03660,714.00,ATLAS TAXIS CONSETT.
Adult and Health Services,Head of Adults,Supplies and Services,338367,Services,08-Dec-2017,3373279-45641,675.00,CARE ABILITY.
Adult and Health Services,Head of Adults,Transport,230005,Contract Hire,08-Dec-2017,3373442-5025,"1,100.00",J YOUNG T/A VIP TAXIS.
Adult and Health Services,Head of Adults,Transport,230005,Contract Hire,08-Dec-2017,3373442-5033,612.00,J YOUNG T/A VIP TAXIS.
Adult and Health Services,Head of Adults,Transport,230005,Contract Hire,08-Dec-2017,3373690-B916,"1,650.00",TALBOTS TRAVEL LTD.
Adult and Health Services,Head of Adults,Transport,230005,Contract Hire,08-Dec-2017,3373756-1121,"1,590.00",WAYNE`S TAXIS.
Adult and Health Services,Head of Adults,Transport,230005,Contract Hire,08-Dec-2017,3373371-TO6,660.00,ELITE TAXIS.
Adult and Health Services,Head of Adults,Transport,230005,Contract Hire,08-Dec-2017,3373527-004,"1,545.00",MR NEIL LEONARD T/A LENNY`S TAXIS.
Adult and Health Services,Head of Adults,Transport,230005,Contract Hire,08-Dec-2017,3373714-185,680.00,THE TAXI COMPANY (MURTON) LTD.
Adult and Health Services,Head of Adults,Transport,230005,Contract Hire,08-Dec-2017,3373630-27,972.00,ROUTE 1.
Children and Young Peoples Services,Head of Education,Transport,230008,Contract Hire,08-Dec-2017,3373249-SMITH2/NOVEMBER17,"1,010.50",BEELINE PRIVATE HIRE.
Children and Young Peoples Services,Head of Education,Transport,230008,Contract Hire,08-Dec-2017,3373519-CEW43NOVEMBER2017,"1,870.00",MOOR PRIVATE HIRE.
Children and Young Peoples Services,Head of Education,Transport,230008,Contract Hire,08-Dec-2017,3373583-DCC/M003/11/2017,"1,430.00",PB PRIVATE HIRE.
Children and Young Peoples Services,Head of Education,Transport,230008,Contract Hire,08-Dec-2017,3373583-DCC/N096/11/2017,"1,958.00",PB PRIVATE HIRE.
Children and Young Peoples Services,Head of Education,Transport,230008,Contract Hire,08-Dec-2017,3373583-DCC/S030/11/2017,840.00,PB PRIVATE HIRE.
Children and Young Peoples Services,Head of Early Help Assessment and Safeguarding,Supplies and Services,384302,Miscellaneous Expenses,08-Dec-2017,3373270-CAS-12-2017-039,549.00,BRIGHT STAR NURSERY.
Children and Young Peoples Services,Head of Education,Transport,230007,Contract Hire,08-Dec-2017,3373313-DCC/4003/NOV17,"2,002.00",COUNTY COACHES.
Children and Young Peoples Services,Head of Education,Transport,230007,Contract Hire,08-Dec-2017,3373313-DCC/4118/NOV17,"5,192.00",COUNTY COACHES.
Children and Young Peoples Services,Head of Education,Premises,145015,Cleaning and Domestic Supplies,08-Dec-2017,3373557-C67750NOV2017,863.92,NUMATIC INTERNATIONAL LTD.
Children and Young Peoples Services,Head of Education,Transport,230007,Contract Hire,08-Dec-2017,3373689-1489-30/11/17,660.00,TALBOTS TAXIS.
Children and Young Peoples Services,Head of Education,Transport,230008,Contract Hire,08-Dec-2017,3373761-WESTLEA301117,"1,308.00",WESTLEA TAXIS.
Children and Young Peoples Services,Head of Education,Transport,230007,Contract Hire,08-Dec-2017,3373345-11/2017-3343,"1,380.00",DIANE GOOCH T/A COLLINS TAXIS.
Children and Young Peoples Services,Head of Education,Transport,230008,Contract Hire,08-Dec-2017,3373473-3A-NO71NOV17,"1,870.00",L & R PRIVATE HIRE.
Children and Young Peoples Services,Head of Education,Transport,230008,Contract Hire,08-Dec-2017,3373635-W052/14NOV17,"2,090.00",S & S TRAVEL LTD.
Children and Young Peoples Services,Head of Education,Transport,230008,Contract Hire,08-Dec-2017,3373696-DCC/2017/012,"1,880.00",TAYLOR`S TAXIS.
Children and Young Peoples Services,Head of Education,Transport,230008,Contract Hire,08-Dec-2017,3373696-DCC/2017/014,"1,795.80",TAYLOR`S TAXIS.
Children and Young Peoples Services,Head of Early Help Assessment and Safeguarding,Premises,155001,Insurance of Premises,08-Dec-2017,3373748-201700001962,550.85,VINE PROPERTY MANAGEMENT LLP.
Children and Young Peoples Services,Head of Early Help Assessment and Safeguarding,Premises,125009,Rents,08-Dec-2017,3373748-201700002322,"13,687.50",VINE PROPERTY MANAGEMENT LLP.
Children and Young Peoples Services,Head of Early Help Assessment and Safeguarding,Premises,150005,Apportioned Exps of Operational Blds,08-Dec-2017,3373748-201700002344,"1,967.50",VINE PROPERTY MANAGEMENT LLP.
Children and Young Peoples Services,Head of Looked After Provision Permanence and Care Leavers,Construction Work,908105,Construction work,08-Dec-2017,3373213-37029201-61,616.78,ADT FIRE & SECURITY PLC.
Children and Young Peoples Services,Head of Education,Transport,230008,Contract Hire,08-Dec-2017,3373693-11/2017/004,"1,080.00",TARNS TAXIS LTD.
Children and Young Peoples Services,Head of Education,Transport,230008,Contract Hire,08-Dec-2017,3373693-11/2017/005,"1,416.00",TARNS TAXIS LTD.
Children and Young Peoples Services,Head of Education,Transport,230007,Contract Hire,08-Dec-2017,3373693-11/2017/006,"1,408.00",TARNS TAXIS LTD.
Children and Young Peoples Services,Head of Education,Transport,230008,Contract Hire,08-Dec-2017,3373209-R10/SL/NOV,"1,097.50",AABAT TAXIS.
Children and Young Peoples Services,Head of Education,Third Party Payments,440999,Other Third Party Payments,08-Dec-2017,3373388-1-15/11/17,"5,616.00",FIRST POINT TRAINING T/A POSITIVE DIRECTIONS.
Children and Young Peoples Services,Head of Education,Transport,230007,Contract Hire,08-Dec-2017,3373401-19898/3195,"3,069.00",GARNETTS LTD (COACHES).
Children and Young Peoples Services,Head of Education,Transport,230003,Contract Hire,08-Dec-2017,3373401-19899/3301,"3,498.00",GARNETTS LTD (COACHES).
Children and Young Peoples Services,Head of Education,Transport,230003,Contract Hire,08-Dec-2017,3373401-19899/3303,"3,498.00",GARNETTS LTD (COACHES).
Children and Young Peoples Services,Head of Education,Transport,230003,Contract Hire,08-Dec-2017,3373401-19899/3335,"3,179.00",GARNETTS LTD (COACHES).
Children and Young Peoples Services,Head of Education,Transport,230008,Contract Hire,08-Dec-2017,3373472-KW788-S006,810.00,KWIK CABS.
Children and Young Peoples Services,Head of Education,Transport,230008,Contract Hire,08-Dec-2017,3373652-N065-11-17,"1,166.00",SIMON ELLIFF.
Children and Young Peoples Services,Head of Education,Transport,230003,Contract Hire,08-Dec-2017,3373686-10911-SL12,"1,980.00",T MOORE & SON.
Children and Young Peoples Services,Head of Education,Transport,230003,Contract Hire,08-Dec-2017,3373686-10911-SL13,"2,150.56",T MOORE & SON.
Children and Young Peoples Services,Head of Education,Transport,230007,Contract Hire,08-Dec-2017,3373762-DCC45/4309,660.00,WEZ CABS.
Children and Young Peoples Services,Head of Education,Transport,230007,Contract Hire,08-Dec-2017,3373209-R4/SD/NOV,"2,090.00",AABAT TAXIS.
Children and Young Peoples Services,Head of Education,Transport,230008,Contract Hire,08-Dec-2017,3373209-R7/SH/NOV,"1,880.00",AABAT TAXIS.
Children and Young Peoples Services,Head of Education,Transport,230008,Contract Hire,08-Dec-2017,3373209-R9/SK/NOV,"1,650.00",AABAT TAXIS.
Children and Young Peoples Services,Head of Education,Transport,230003,Contract Hire,08-Dec-2017,3373293-143-NOV17,862.00,CHRISTOPHER JEFFREY HALL T/A SODA TAXIS.
Children and Young Peoples Services,Head of Education,Transport,230007,Contract Hire,08-Dec-2017,3373302-3219/1117,630.00,COLVIN`S CABS.
Children and Young Peoples Services,Head of Education,Transport,230007,Contract Hire,08-Dec-2017,3373373-5124/1117,869.00,ELLIOTTS OF TRIMDON.
Children and Young Peoples Services,Head of Education,Transport,230008,Contract Hire,08-Dec-2017,3373373-E014/1117,"1,905.20",ELLIOTTS OF TRIMDON.
Children and Young Peoples Services,Head of Education,Transport,230006,Contract Hire,08-Dec-2017,3373373-E122/1117,"1,298.00",ELLIOTTS OF TRIMDON.
Children and Young Peoples Services,Head of Education,Transport,230008,Contract Hire,08-Dec-2017,3373453-30/11/17B,"1,496.00",JL EBDON. T/A DIAL-A-CAB.
Children and Young Peoples Services,Head of Education,Transport,230008,Contract Hire,08-Dec-2017,3373453-30/11/17E,"1,936.00",JL EBDON. T/A DIAL-A-CAB.
Children and Young Peoples Services,Head of Education,Transport,230012,Contract Hire,08-Dec-2017,3373453-30/11/17F,"1,176.00",JL EBDON. T/A DIAL-A-CAB.
Children and Young Peoples Services,Head of Education,Transport,230008,Contract Hire,08-Dec-2017,3373453-30/11/17G,"2,190.00",JL EBDON. T/A DIAL-A-CAB.
Children and Young Peoples Services,Head of Education,Transport,230007,Contract Hire,08-Dec-2017,3373481-4498-4010,"6,600.00",LEE`S COACHES LTD.
Children and Young Peoples Services,Head of Education,Transport,230007,Contract Hire,08-Dec-2017,3373481-4498-4226,"4,400.00",LEE`S COACHES LTD.
Children and Young Peoples Services,Head of Education,Transport,230007,Contract Hire,08-Dec-2017,3373481-4498-4227,"3,190.00",LEE`S COACHES LTD.
Children and Young Peoples Services,Head of Education,Transport,230008,Contract Hire,08-Dec-2017,3373524-SFB/11/17,"1,848.00",MR J AGAR T/A PARK TAXIS.
Children and Young Peoples Services,Head of Education,Transport,230008,Contract Hire,08-Dec-2017,3373756-1120NOV17,"2,520.00",WAYNE`S TAXIS.
Children and Young Peoples Services,Head of Education,Transport,230008,Contract Hire,08-Dec-2017,3373207-EA220788,"1,518.00",A MURRAY TRAVEL.
Children and Young Peoples Services,Head of Education,Transport,230007,Contract Hire,08-Dec-2017,3373210-615/2065,520.00,AC TAXIS.
Children and Young Peoples Services,Head of Education,Transport,230006,Contract Hire,08-Dec-2017,3373215-F677/NOV,"1,408.00",AIRPORT CARS DURHAM
Children and Young Peoples Services,Head of Education,Transport,230008,Contract Hire,08-Dec-2017,3373234-NOV17-01,"1,566.00",ARMSTRONG`S TAXIS.
Children and Young Peoples Services,Head of Education,Transport,230008,Contract Hire,08-Dec-2017,3373261-M024/NOV,"2,145.00",BLACKS PRIVATE HIRE.
Children and Young Peoples Services,Head of Education,Transport,230008,Contract Hire,08-Dec-2017,3373293-013NOV17,924.00,CHRISTOPHER JEFFREY HALL T/A SODA TAXIS.
Children and Young Peoples Services,Head of Education,Transport,230007,Contract Hire,08-Dec-2017,3373382-4357-003,"1,012.00",FERRYHILL VILLAGE TRAVEL.
Children and Young Peoples Services,Head of Education,Transport,230008,Contract Hire,08-Dec-2017,3373382-N042-003,"1,995.00",FERRYHILL VILLAGE TRAVEL.
Children and Young Peoples Services,Head of Education,Transport,230008,Contract Hire,08-Dec-2017,3373382-N060-014,"2,760.00",FERRYHILL VILLAGE TRAVEL.
Children and Young Peoples Services,Head of Education,Transport,230008,Contract Hire,08-Dec-2017,3373382-W053-014,"1,655.50",FERRYHILL VILLAGE TRAVEL.
Children and Young Peoples Services,Head of Education,Transport,230007,Contract Hire,08-Dec-2017,3373425-INV174/2,741.00,HORNDALE TAXIS LTD.
Children and Young Peoples Services,Head of Education,Transport,230008,Contract Hire,08-Dec-2017,3373466-S027-NOV,"2,090.00",KEITH GIBSON T/A KEITH`S TAXIS.
Children and Young Peoples Services,Head of Education,Transport,230008,Contract Hire,08-Dec-2017,3373509-MCD37137,"1,672.00",MCDONALD TRAVEL.
Children and Young Peoples Services,Head of Education,Transport,230008,Contract Hire,08-Dec-2017,3373509-MCD37138,"1,992.00",MCDONALD TRAVEL.
Children and Young Peoples Services,Head of Education,Transport,230008,Contract Hire,08-Dec-2017,3373509-MCD73136,"1,628.00",MCDONALD TRAVEL.
Children and Young Peoples Services,Head of Education,Transport,230008,Contract Hire,08-Dec-2017,3373521-EL111-17,"1,702.30",MR CT WALKER T/A CW TAXIS.
Children and Young Peoples Services,Head of Education,Transport,230008,Contract Hire,08-Dec-2017,3373521-EL211-17,"2,103.00",MR CT WALKER T/A CW TAXIS.
Children and Young Peoples Services,Head of Education,Transport,230008,Contract Hire,08-Dec-2017,3373524-CT/11/17,760.00,MR J AGAR T/A PARK TAXIS.
Children and Young Peoples Services,Head of Education,Transport,230006,Contract Hire,08-Dec-2017,3373524-OC/11/17,"1,150.20",MR J AGAR T/A PARK TAXIS.
Children and Young Peoples Services,Head of Education,Transport,230008,Contract Hire,08-Dec-2017,3373618-003NOV17,"1,276.00",RAYMOND CHURNSIDE T/A S & L TAXI.
Children and Young Peoples Services,Head of Education,Transport,230007,Contract Hire,08-Dec-2017,3373631-ROXDCC27,"1,600.00",ROXBYS BUS HIRE.
Children and Young Peoples Services,Head of Education,Transport,230003,Contract Hire,08-Dec-2017,3373677-STNE0728,"1,518.00",STYLE TRAVEL NORTH EAST.
Children and Young Peoples Services,Head of Education,Transport,230007,Contract Hire,08-Dec-2017,3373702-4055/B10,"2,750.00",TED WILFORD COACHES.
Children and Young Peoples Services,Head of Education,Transport,230006,Contract Hire,08-Dec-2017,3373767-F673/NOV,"1,290.00",WOLSINGHAM TAXIS.
Children and Young Peoples Services,Head of Education,Transport,230007,Contract Hire,08-Dec-2017,3373215-ESH1117,660.00,AIRPORT CARS DURHAM
Children and Young Peoples Services,Head of Education,Transport,230007,Contract Hire,08-Dec-2017,3373260-47NOV17,"1,320.00",BL TAXIS.
Children and Young Peoples Services,Head of Education,Transport,230007,Contract Hire,08-Dec-2017,3373277-BIL0117,"1,028.80",CA MUSGROVE.
Children and Young Peoples Services,Head of Education,Transport,230003,Contract Hire,08-Dec-2017,3373300-C/10048,"2,827.00",COCHRANES T/A KELVIN TRAVEL.
Children and Young Peoples Services,Head of Education,Transport,230007,Contract Hire,08-Dec-2017,3373300-C/10049,"3,707.00",COCHRANES T/A KELVIN TRAVEL.
Children and Young Peoples Services,Head of Education,Transport,230008,Contract Hire,08-Dec-2017,3373326-HOW1703,"1,100.00",D IRVING T/A BJ TAXIS.
Children and Young Peoples Services,Head of Education,Transport,230008,Contract Hire,08-Dec-2017,3373343-E011/02,"2,310.00",DEXTERS PRIVATE HIRE.
Children and Young Peoples Services,Head of Education,Transport,230008,Contract Hire,08-Dec-2017,3373465-03-N058,"3,920.00",KD TAXIS.
Children and Young Peoples Services,Head of Education,Transport,230008,Contract Hire,08-Dec-2017,3373521-GP11-17,853.60,MR CT WALKER T/A CW TAXIS.
Children and Young Peoples Services,Head of Education,Transport,230008,Contract Hire,08-Dec-2017,3373530-3A-N031,"1,786.00",REDACTED - PAYMENT TO INDIVIDUAL
Children and Young Peoples Services,Head of Education,Transport,230007,Contract Hire,08-Dec-2017,3373619-03A-NOV,"2,552.00",RAYNERS COACHES.
Children and Young Peoples Services,Head of Education,Transport,230003,Contract Hire,08-Dec-2017,3373635-3208/14,"1,958.00",S & S TRAVEL LTD.
Children and Young Peoples Services,Head of Education,Transport,230009,Contract Hire,08-Dec-2017,3373635-7317/01,540.00,S & S TRAVEL LTD.
Children and Young Peoples Services,Head of Education,Transport,230006,Contract Hire,08-Dec-2017,3373635-F725/03,"2,200.00",S & S TRAVEL LTD.
Children and Young Peoples Services,Head of Education,Transport,230008,Contract Hire,08-Dec-2017,3373635-S017/14,"1,848.00",S & S TRAVEL LTD.
Children and Young Peoples Services,Head of Education,Transport,230008,Contract Hire,08-Dec-2017,3373635-S020/03,"2,090.00",S & S TRAVEL LTD.
Children and Young Peoples Services,Head of Education,Transport,230008,Contract Hire,08-Dec-2017,3373635-W048/14,"1,958.00",S & S TRAVEL LTD.
Children and Young Peoples Services,Head of Education,Transport,230008,Contract Hire,08-Dec-2017,3373635-W056/14,"2,288.00",S & S TRAVEL LTD.
Children and Young Peoples Services,Head of Education,Transport,230008,Contract Hire,08-Dec-2017,3373647-003/NOV,"1,100.00",SHOEY`S TAXIS.
Children and Young Peoples Services,Head of Education,Transport,230003,Contract Hire,08-Dec-2017,3373677-STNE079,"1,738.00",STYLE TRAVEL NORTH EAST.
Children and Young Peoples Services,Head of Looked After Provision Permanence and Care Leavers,Employees,080025,Agency Staff,08-Dec-2017,3373699-2116170,990.00,TEACHING PERSONNEL LTD.
Children and Young Peoples Services,Head of Education,Transport,230006,Contract Hire,08-Dec-2017,3373719-0001919,980.00,TONY RIDLEY T/A COLORS TAXIS LTD.
Children and Young Peoples Services,Head of Education,Transport,230006,Contract Hire,08-Dec-2017,3373719-0001922,"1,540.00",TONY RIDLEY T/A COLORS TAXIS LTD.
Children and Young Peoples Services,Head of Education,Transport,230008,Contract Hire,08-Dec-2017,3373720-TS40/09,782.00,TOP STAR TRAVEL.
Children and Young Peoples Services,Head of Education,Transport,230007,Contract Hire,08-Dec-2017,3373757-5219/03,880.00,WAYSIDE TAXIS.
Children and Young Peoples Services,Head of Education,Transport,230008,Contract Hire,08-Dec-2017,3373757-A128/22,"1,650.00",WAYSIDE TAXIS.
Children and Young Peoples Services,Head of Education,Transport,230008,Contract Hire,08-Dec-2017,3373757-S025/02,"2,420.00",WAYSIDE TAXIS.
Children and Young Peoples Services,Head of Education,Transport,230008,Contract Hire,08-Dec-2017,3373202-111706,"1,102.50",24/7 TAXI SERVICES LTD.
Children and Young Peoples Services,Head of Education,Transport,230008,Contract Hire,08-Dec-2017,3373209-R14/SQ,"1,793.00",AABAT TAXIS.
Children and Young Peoples Services,Head of Education,Transport,230006,Contract Hire,08-Dec-2017,3373209-R17/ST,"2,376.00",AABAT TAXIS.
Children and Young Peoples Services,Head of Education,Transport,235073,Public Transport,08-Dec-2017,3373235-113115,"2,995.00",ARRIVA NORTH EAST LTD.
Children and Young Peoples Services,Head of Education,Transport,230007,Contract Hire,08-Dec-2017,3373321-107181,723.36,CROFT BUSINESS SERVICES (UK) LTD T/A CROFT TAXIS.
Children and Young Peoples Services,Head of Education,Transport,230008,Contract Hire,08-Dec-2017,3373321-107185,"2,077.26",CROFT BUSINESS SERVICES (UK) LTD T/A CROFT TAXIS.
Children and Young Peoples Services,Head of Education,Transport,230008,Contract Hire,08-Dec-2017,3373321-107186,"3,106.82",CROFT BUSINESS SERVICES (UK) LTD T/A CROFT TAXIS.
Children and Young Peoples Services,Head of Education,Transport,230008,Contract Hire,08-Dec-2017,3373321-107187,"4,152.06",CROFT BUSINESS SERVICES (UK) LTD T/A CROFT TAXIS.
Children and Young Peoples Services,Head of Education,Transport,230008,Contract Hire,08-Dec-2017,3373321-107195,"1,251.14",CROFT BUSINESS SERVICES (UK) LTD T/A CROFT TAXIS.
Children and Young Peoples Services,Head of Education,Transport,230008,Contract Hire,08-Dec-2017,3373321-107197,"2,190.54",CROFT BUSINESS SERVICES (UK) LTD T/A CROFT TAXIS.
Children and Young Peoples Services,Head of Education,Transport,230008,Contract Hire,08-Dec-2017,3373321-107198,"1,942.82",CROFT BUSINESS SERVICES (UK) LTD T/A CROFT TAXIS.
Children and Young Peoples Services,Head of Education,Transport,230008,Contract Hire,08-Dec-2017,3373398-100534,990.00,G & P JOHNSON LTD T/A NIGHTINGALE COACHES.
Children and Young Peoples Services,Head of Education,Transport,230008,Contract Hire,08-Dec-2017,3373398-100535,"1,870.00",G & P JOHNSON LTD T/A NIGHTINGALE COACHES.
Children and Young Peoples Services,Head of Education,Transport,230008,Contract Hire,08-Dec-2017,3373398-100536,"1,518.00",G & P JOHNSON LTD T/A NIGHTINGALE COACHES.
Children and Young Peoples Services,Head of Education,Transport,230008,Contract Hire,08-Dec-2017,3373398-100537,"1,716.00",G & P JOHNSON LTD T/A NIGHTINGALE COACHES.
Children and Young Peoples Services,Head of Education,Transport,230008,Contract Hire,08-Dec-2017,3373398-100538,968.00,G & P JOHNSON LTD T/A NIGHTINGALE COACHES.
Children and Young Peoples Services,Head of Education,Transport,230008,Contract Hire,08-Dec-2017,3373398-100541,"2,478.00",G & P JOHNSON LTD T/A NIGHTINGALE COACHES.
Children and Young Peoples Services,Head of Education,Transport,230008,Contract Hire,08-Dec-2017,3373398-100542,"1,862.00",G & P JOHNSON LTD T/A NIGHTINGALE COACHES.
Children and Young Peoples Services,Head of Education,Transport,230003,Contract Hire,08-Dec-2017,3373398-100543,"4,356.00",G & P JOHNSON LTD T/A NIGHTINGALE COACHES.
Children and Young Peoples Services,Head of Education,Transport,230008,Contract Hire,08-Dec-2017,3373398-100552,"1,474.00",G & P JOHNSON LTD T/A NIGHTINGALE COACHES.
Children and Young Peoples Services,Head of Education,Transport,230008,Contract Hire,08-Dec-2017,3373398-100553,"1,232.00",G & P JOHNSON LTD T/A NIGHTINGALE COACHES.
Children and Young Peoples Services,Head of Education,Transport,230008,Contract Hire,08-Dec-2017,3373398-100554,"1,540.00",G & P JOHNSON LTD T/A NIGHTINGALE COACHES.
Children and Young Peoples Services,Head of Education,Transport,230008,Contract Hire,08-Dec-2017,3373398-100555,"1,078.00",G & P JOHNSON LTD T/A NIGHTINGALE COACHES.
Children and Young Peoples Services,Head of Education,Transport,230008,Contract Hire,08-Dec-2017,3373425-INV173,"1,482.00",HORNDALE TAXIS LTD.
Children and Young Peoples Services,Head of Education,Transport,230008,Contract Hire,08-Dec-2017,3373505-000017,"2,480.00",MARK HUSBAND T/A TEAK`S TAXIS.
Children and Young Peoples Services,Head of Education,Transport,230008,Contract Hire,08-Dec-2017,3373530-3B-NOV,"1,760.00",REDACTED - PAYMENT TO INDIVIDUAL
Children and Young Peoples Services,Head of Education,Transport,230012,Contract Hire,08-Dec-2017,3373577-SC-305,"2,200.00",PAUL BURRELL T/A PAUL BURRELL TAXIS.
Children and Young Peoples Services,Head of Education,Transport,230008,Contract Hire,08-Dec-2017,3373582-DCC169,"1,584.00",PAUL`S TAXIS..
Children and Young Peoples Services,Head of Education,Transport,230007,Contract Hire,08-Dec-2017,3373627-170919,"2,524.50",ROBERTS TOURS.
Children and Young Peoples Services,Head of Education,Transport,230007,Contract Hire,08-Dec-2017,3373627-170920,"3,025.00",ROBERTS TOURS.
Children and Young Peoples Services,Head of Education,Transport,230007,Contract Hire,08-Dec-2017,3373627-170921,"3,190.00",ROBERTS TOURS.
Children and Young Peoples Services,Head of Education,Transport,230008,Contract Hire,08-Dec-2017,3373660-042196,"1,040.00",SPENNYMOOR TAXIS.
Children and Young Peoples Services,Head of Education,Transport,230008,Contract Hire,08-Dec-2017,3373660-841963,"1,584.00",SPENNYMOOR TAXIS.
Children and Young Peoples Services,Head of Education,Transport,230008,Contract Hire,08-Dec-2017,3373660-941113,"1,785.00",SPENNYMOOR TAXIS.
Children and Young Peoples Services,Head of Education,Transport,230008,Contract Hire,08-Dec-2017,3373673-171118,"1,980.00",STEVEN PRATT T/A PTL TAXIS DURHAM.
Children and Young Peoples Services,Head of Education,Transport,230008,Contract Hire,08-Dec-2017,3373673-171123,"1,320.00",STEVEN PRATT T/A PTL TAXIS DURHAM.
Children and Young Peoples Services,Head of Education,Transport,230007,Contract Hire,08-Dec-2017,3373673-171126,880.00,STEVEN PRATT T/A PTL TAXIS DURHAM.
Children and Young Peoples Services,Head of Education,Transport,230008,Contract Hire,08-Dec-2017,3373736-3-W033,"1,669.20",TW TINKLER T/A TT TAXIS.
Children and Young Peoples Services,Head of Education,Transport,230008,Contract Hire,08-Dec-2017,3373759-6010/2,506.00,WEARDALE PRIVATE HIRE.
Children and Young Peoples Services,Head of Education,Transport,230008,Contract Hire,08-Dec-2017,3373207-GC003,"1,089.00",A MURRAY TRAVEL.
Children and Young Peoples Services,Head of Education,Transport,230008,Contract Hire,08-Dec-2017,3373209-R1/SA,"2,592.00",AABAT TAXIS.
Children and Young Peoples Services,Head of Education,Transport,230008,Contract Hire,08-Dec-2017,3373209-R2/SB,"1,323.00",AABAT TAXIS.
Children and Young Peoples Services,Head of Looked After Provision Permanence and Care Leavers,Supplies and Services,338078,Services,08-Dec-2017,3373220-07233,"1,503.60",ALL EVENTS SECURITY LTD (AES).
Children and Young Peoples Services,Head of Looked After Provision Permanence and Care Leavers,Supplies and Services,338078,Services,08-Dec-2017,3373220-07239,"1,503.60",ALL EVENTS SECURITY LTD (AES).
Children and Young Peoples Services,Head of Education,Transport,230007,Contract Hire,08-Dec-2017,3373222-177AT,"1,100.00",AMBER TRAVEL.
Children and Young Peoples Services,Head of Education,Transport,230007,Contract Hire,08-Dec-2017,3373240-03657,740.00,ATLAS TAXIS CONSETT.
Children and Young Peoples Services,Head of Education,Transport,230004,Contract Hire,08-Dec-2017,3373240-03661,966.00,ATLAS TAXIS CONSETT.
Children and Young Peoples Services,Head of Education,Transport,230009,Contract Hire,08-Dec-2017,3373240-03662,993.60,ATLAS TAXIS CONSETT.
Children and Young Peoples Services,Head of Education,Transport,230006,Contract Hire,08-Dec-2017,3373240-03663,728.00,ATLAS TAXIS CONSETT.
Children and Young Peoples Services,Head of Education,Transport,230007,Contract Hire,08-Dec-2017,3373240-03664,657.90,ATLAS TAXIS CONSETT.
Children and Young Peoples Services,Head of Education,Transport,230008,Contract Hire,08-Dec-2017,3373297-CJ003,"2,728.00",CJ COACHES.
Children and Young Peoples Services,Head of Education,Transport,230010,Contract Hire,08-Dec-2017,3373348-17/37,"1,337.60",DMG PRIVATE HIRE.
Children and Young Peoples Services,Head of Education,Transport,230008,Contract Hire,08-Dec-2017,3373401-19889,"1,760.00",GARNETTS LTD (COACHES).
Children and Young Peoples Services,Head of Education,Transport,230007,Contract Hire,08-Dec-2017,3373401-19898,"3,399.00",GARNETTS LTD (COACHES).
Children and Young Peoples Services,Head of Education,Transport,230007,Contract Hire,08-Dec-2017,3373401-19912,"2,478.00",GARNETTS LTD (COACHES).
Children and Young Peoples Services,Head of Education,Transport,230003,Contract Hire,08-Dec-2017,3373405-63862,"3,644.00",GO GATESHEAD LTD.
Children and Young Peoples Services,Head of Education,Transport,230008,Contract Hire,08-Dec-2017,3373414-HT299,"1,980.00",HARRY`S TAXI`S.
Children and Young Peoples Services,Head of Education,Transport,230008,Contract Hire,08-Dec-2017,3373414-HT300,"2,860.00",HARRY`S TAXI`S.
Children and Young Peoples Services,Head of Education,Transport,230008,Contract Hire,08-Dec-2017,3373414-HT301,"2,860.00",HARRY`S TAXI`S.
Children and Young Peoples Services,Head of Education,Transport,230008,Contract Hire,08-Dec-2017,3373414-HT303,"2,244.00",HARRY`S TAXI`S.
Children and Young Peoples Services,Head of Education,Transport,230008,Contract Hire,08-Dec-2017,3373472-KW801,"1,210.00",KWIK CABS.
Children and Young Peoples Services,Head of Education,Transport,230008,Contract Hire,08-Dec-2017,3373514-00927,"2,878.00",MICHAELS TRAVEL.
Children and Young Peoples Services,Head of Education,Transport,230008,Contract Hire,08-Dec-2017,3373526-JK101,"1,364.00",MR JOHN KNIGHTON T/A JK TAXIS.
Children and Young Peoples Services,Head of Education,Transport,230006,Contract Hire,08-Dec-2017,3373591-22294,720.00,PHOENIX TAXIS T/A PRATT`S TAXIS.
Children and Young Peoples Services,Head of Education,Transport,230006,Contract Hire,08-Dec-2017,3373591-22295,"1,008.00",PHOENIX TAXIS T/A PRATT`S TAXIS.
Children and Young Peoples Services,Head of Education,Transport,230006,Contract Hire,08-Dec-2017,3373617-17112,831.00,RAPID MINIBUSES.
Children and Young Peoples Services,Head of Education,Transport,230009,Contract Hire,08-Dec-2017,3373649-72879,585.00,SHOTTON PRIVATE HIRE.
Children and Young Peoples Services,Head of Education,Transport,230008,Contract Hire,08-Dec-2017,3373649-72880,"2,550.00",SHOTTON PRIVATE HIRE.
Children and Young Peoples Services,Head of Education,Transport,230012,Contract Hire,08-Dec-2017,3373649-72882,"1,787.50",SHOTTON PRIVATE HIRE.
Children and Young Peoples Services,Head of Education,Transport,230008,Contract Hire,08-Dec-2017,3373649-72883,"2,800.00",SHOTTON PRIVATE HIRE.
Children and Young Peoples Services,Head of Education,Transport,230008,Contract Hire,08-Dec-2017,3373660-32363,"1,960.00",SPENNYMOOR TAXIS.
Children and Young Peoples Services,Head of Education,Transport,230006,Contract Hire,08-Dec-2017,3373674-00078,660.00,STEVES TAXIS.
Children and Young Peoples Services,Head of Education,Transport,230003,Contract Hire,08-Dec-2017,3373686-100SA,"1,518.00",T MOORE & SON.
Children and Young Peoples Services,Head of Looked After Provision Permanence and Care Leavers,Third Party Payments,425040,Rendered by Voluntary Organisations,08-Dec-2017,3373700-32181,648.00,TEAM FOSTERING.
Children and Young Peoples Services,Head of Education,Transport,230008,Contract Hire,08-Dec-2017,3373225-0041,624.00,ANDREW SIMPSON T/A ANDY`S CABS.
Children and Young Peoples Services,Head of Education,Transport,230007,Contract Hire,08-Dec-2017,3373263-1924,"2,860.00",BOB SMITH COACHES.
Children and Young Peoples Services,Head of Education,Transport,230008,Contract Hire,08-Dec-2017,3373264-1443,"3,321.00",BOBBY DOVE.
Children and Young Peoples Services,Head of Education,Transport,230008,Contract Hire,08-Dec-2017,3373307-1286,"1,954.00",CONNORS MINI BUSES.*
Children and Young Peoples Services,Head of Education,Transport,230008,Contract Hire,08-Dec-2017,3373329-1550,"1,623.00",DA TAXIS.
Children and Young Peoples Services,Head of Education,Transport,230007,Contract Hire,08-Dec-2017,3373329-1551,880.00,DA TAXIS.
Children and Young Peoples Services,Head of Education,Transport,230008,Contract Hire,08-Dec-2017,3373332-3215,"1,202.00",DAVES MINIBUSES.
Children and Young Peoples Services,Head of Education,Transport,230008,Contract Hire,08-Dec-2017,3373332-3217,"1,755.00",DAVES MINIBUSES.
Children and Young Peoples Services,Head of Education,Transport,230007,Contract Hire,08-Dec-2017,3373390-0401,800.00,FMR SILVA PITA.
Children and Young Peoples Services,Head of Education,Transport,230008,Contract Hire,08-Dec-2017,3373394-2008,"1,980.00",FRANK ATKINSON T/A FJ MINIBUS TRAVEL.
Children and Young Peoples Services,Head of Education,Transport,230003,Contract Hire,08-Dec-2017,3373403-4186,"1,594.60",GEM TRAVEL.
Children and Young Peoples Services,Head of Education,Transport,230008,Contract Hire,08-Dec-2017,3373442-5029,880.00,J YOUNG T/A VIP TAXIS.
Children and Young Peoples Services,Head of Education,Transport,230007,Contract Hire,08-Dec-2017,3373442-5032,924.00,J YOUNG T/A VIP TAXIS.
Children and Young Peoples Services,Head of Education,Transport,230007,Contract Hire,08-Dec-2017,3373448-2704,"2,834.79",JEFF ANDERSON COACHES LTD.
Children and Young Peoples Services,Head of Education,Transport,230007,Contract Hire,08-Dec-2017,3373448-2705,"2,068.08",JEFF ANDERSON COACHES LTD.
Children and Young Peoples Services,Head of Education,Transport,230007,Contract Hire,08-Dec-2017,3373448-2707,"1,973.79",JEFF ANDERSON COACHES LTD.
Children and Young Peoples Services,Head of Education,Transport,230008,Contract Hire,08-Dec-2017,3373477-1139,"1,540.00",LD TAXIS.
Children and Young Peoples Services,Head of Education,Transport,230006,Contract Hire,08-Dec-2017,3373477-1140,"1,936.00",LD TAXIS.
Children and Young Peoples Services,Head of Education,Transport,230003,Contract Hire,08-Dec-2017,3373481-4500,"2,838.00",LEE`S COACHES LTD.
Children and Young Peoples Services,Head of Education,Transport,230006,Contract Hire,08-Dec-2017,3373486-3701,"2,158.20",LINCAB TAXIS.
Children and Young Peoples Services,Head of Education,Transport,230007,Contract Hire,08-Dec-2017,3373486-3702,"1,515.80",LINCAB TAXIS.
Children and Young Peoples Services,Head of Education,Transport,230008,Contract Hire,08-Dec-2017,3373486-3705,"2,361.80",LINCAB TAXIS.
Children and Young Peoples Services,Head of Education,Transport,230012,Contract Hire,08-Dec-2017,3373486-3706,"1,438.70",LINCAB TAXIS.
Children and Young Peoples Services,Head of Education,Transport,230008,Contract Hire,08-Dec-2017,3373489-3665,"1,872.00",LOCAL TRANSPORT LTD.
Children and Young Peoples Services,Head of Education,Transport,230008,Contract Hire,08-Dec-2017,3373489-3666,"1,980.00",LOCAL TRANSPORT LTD.
Children and Young Peoples Services,Head of Education,Transport,230008,Contract Hire,08-Dec-2017,3373489-3667,"2,076.00",LOCAL TRANSPORT LTD.
Children and Young Peoples Services,Head of Education,Transport,230007,Contract Hire,08-Dec-2017,3373516-0101,"1,232.00",MICKS TAXIS - MURTON.
Children and Young Peoples Services,Head of Education,Transport,230007,Contract Hire,08-Dec-2017,3373516-0104,624.00,MICKS TAXIS - MURTON.
Children and Young Peoples Services,Head of Education,Transport,230007,Contract Hire,08-Dec-2017,3373528-1613,"1,100.00",REDACTED - PAYMENT TO INDIVIDUAL
Children and Young Peoples Services,Head of Education,Transport,230012,Contract Hire,08-Dec-2017,3373528-1614,"1,286.20",REDACTED - PAYMENT TO INDIVIDUAL
Children and Young Peoples Services,Head of Education,Transport,230008,Contract Hire,08-Dec-2017,3373529-0029,"1,653.30",MR PM MULLEN T/A CATHEDRAL TAXIS.
Children and Young Peoples Services,Head of Education,Transport,230007,Contract Hire,08-Dec-2017,3373580-1610,"2,860.00",PAUL WATSON TRAVEL.
Children and Young Peoples Services,Head of Education,Transport,230008,Contract Hire,08-Dec-2017,3373590-0597,"2,277.00",PETER`S PRIVATE HIRE/PETER BEST.
Children and Young Peoples Services,Head of Education,Transport,230008,Contract Hire,08-Dec-2017,3373599-1262,"2,090.00",PODA TAXIS LTD.
Children and Young Peoples Services,Head of Education,Transport,230008,Contract Hire,08-Dec-2017,3373599-1263,"1,320.00",PODA TAXIS LTD.
Children and Young Peoples Services,Head of Education,Transport,230012,Contract Hire,08-Dec-2017,3373599-1264,"1,364.00",PODA TAXIS LTD.
Children and Young Peoples Services,Head of Education,Transport,230008,Contract Hire,08-Dec-2017,3373626-1234,"1,320.00",ROAD RUNNERS (NE) LTD.
Children and Young Peoples Services,Head of Education,Transport,230008,Contract Hire,08-Dec-2017,3373626-1235,"1,232.00",ROAD RUNNERS (NE) LTD.
Children and Young Peoples Services,Head of Education,Transport,230008,Contract Hire,08-Dec-2017,3373626-1236,"1,233.00",ROAD RUNNERS (NE) LTD.
Children and Young Peoples Services,Head of Education,Transport,230008,Contract Hire,08-Dec-2017,3373626-1237,"1,567.00",ROAD RUNNERS (NE) LTD.
Children and Young Peoples Services,Head of Education,Transport,230008,Contract Hire,08-Dec-2017,3373626-1256,"3,286.00",ROAD RUNNERS (NE) LTD.
Children and Young Peoples Services,Head of Education,Transport,230008,Contract Hire,08-Dec-2017,3373656-503A,"1,575.00",SJ MACKENZIE T/A SCOTTS TAXIS.
Children and Young Peoples Services,Head of Education,Transport,230008,Contract Hire,08-Dec-2017,3373656-504A,"1,260.00",SJ MACKENZIE T/A SCOTTS TAXIS.
Children and Young Peoples Services,Head of Education,Transport,230008,Contract Hire,08-Dec-2017,3373656-505A,"1,760.00",SJ MACKENZIE T/A SCOTTS TAXIS.
Children and Young Peoples Services,Head of Education,Transport,230008,Contract Hire,08-Dec-2017,3373656-507A,"2,950.00",SJ MACKENZIE T/A SCOTTS TAXIS.
Children and Young Peoples Services,Head of Education,Transport,230008,Contract Hire,08-Dec-2017,3373656-508A,"2,200.00",SJ MACKENZIE T/A SCOTTS TAXIS.
Children and Young Peoples Services,Head of Education,Transport,230008,Contract Hire,08-Dec-2017,3373656-509A,"1,980.00",SJ MACKENZIE T/A SCOTTS TAXIS.
Children and Young Peoples Services,Head of Education,Transport,230008,Contract Hire,08-Dec-2017,3373656-510A,"1,260.00",SJ MACKENZIE T/A SCOTTS TAXIS.
Children and Young Peoples Services,Head of Education,Transport,230006,Contract Hire,08-Dec-2017,3373656-511A,"1,650.00",SJ MACKENZIE T/A SCOTTS TAXIS.
Children and Young Peoples Services,Head of Education,Transport,230008,Contract Hire,08-Dec-2017,3373656-516A,"1,210.00",SJ MACKENZIE T/A SCOTTS TAXIS.
Children and Young Peoples Services,Head of Education,Transport,230008,Contract Hire,08-Dec-2017,3373656-517A,"1,680.00",SJ MACKENZIE T/A SCOTTS TAXIS.
Children and Young Peoples Services,Head of Early Help Assessment and Safeguarding,Third Party Payments,425020,Rendered by Voluntary Organisations,08-Dec-2017,3373665-6515,"7,656.00",ST OSWALD`S HOSPICE.
Children and Young Peoples Services,Head of Education,Transport,230008,Contract Hire,08-Dec-2017,3373686-980S,"1,857.90",T MOORE & SON.
Children and Young Peoples Services,Head of Education,Transport,230007,Contract Hire,08-Dec-2017,3373686-99SB,"1,760.00",T MOORE & SON.
Children and Young Peoples Services,Head of Education,Transport,230008,Contract Hire,08-Dec-2017,3373688-2007,"1,826.00",TAILORMADE TRAVEL.
Children and Young Peoples Services,Head of Education,Transport,230008,Contract Hire,08-Dec-2017,3373690-B913,"1,120.00",TALBOTS TRAVEL LTD.
Children and Young Peoples Services,Head of Education,Transport,230008,Contract Hire,08-Dec-2017,3373690-B917,"1,584.00",TALBOTS TRAVEL LTD.
Children and Young Peoples Services,Head of Education,Transport,230008,Contract Hire,08-Dec-2017,3373690-B918,"1,300.00",TALBOTS TRAVEL LTD.
Children and Young Peoples Services,Head of Education,Transport,230008,Contract Hire,08-Dec-2017,3373759-6010,"1,611.00",WEARDALE PRIVATE HIRE.
Children and Young Peoples Services,Head of Education,Transfer Payments,510026,School Children,08-Dec-2017,3373316-114,"1,440.00",CRAGHEAD DEVELOPMENT TRUST.
Children and Young Peoples Services,Head of Education,Transport,230007,Contract Hire,08-Dec-2017,3373327-199,692.00,D MCDONNELL.
Children and Young Peoples Services,Head of Education,Transport,230008,Contract Hire,08-Dec-2017,3373330-250,"1,386.00",DA TRAVEL.
Children and Young Peoples Services,Head of Education,Transport,230007,Contract Hire,08-Dec-2017,3373371-SM4,550.00,ELITE TAXIS.
Children and Young Peoples Services,Head of Education,Transport,230008,Contract Hire,08-Dec-2017,3373419-468,"2,175.00",HEPWORTHS LUXURY TRAVEL.
Children and Young Peoples Services,Head of Education,Transport,230007,Contract Hire,08-Dec-2017,3373419-469,"1,760.00",HEPWORTHS LUXURY TRAVEL.
Children and Young Peoples Services,Head of Education,Transport,230008,Contract Hire,08-Dec-2017,3373482-200,"2,832.50",LEE`S TAXIS (SACRISTON).
Children and Young Peoples Services,Head of Education,Transport,230012,Contract Hire,08-Dec-2017,3373500-652,"1,615.00",MACS TAXIS DURHAM LTD.
Children and Young Peoples Services,Head of Education,Transport,230006,Contract Hire,08-Dec-2017,3373512-30A,"1,948.10",MICHAEL A BODDY T/A MBS TAXIS.
Children and Young Peoples Services,Head of Education,Transport,230006,Contract Hire,08-Dec-2017,3373512-30B,550.00,MICHAEL A BODDY T/A MBS TAXIS.
Children and Young Peoples Services,Head of Education,Transport,230008,Contract Hire,08-Dec-2017,3373520-NO3,703.80,MR ALAN CARR FEATONBY T/A ALAN`S LUXURY PRIVATE HIRE.
Children and Young Peoples Services,Head of Looked After Provision Permanence and Care Leavers,Employees,040149,Recruitment Instruction and Training,08-Dec-2017,3373537-855,"8,950.00",NECC TRAINING & ASSESSMENT CENTRE LTD.
Children and Young Peoples Services,Head of Education,Transport,230008,Contract Hire,08-Dec-2017,3373589-565,"1,320.00",PETERLEE EXECUTIVE CARS.
Children and Young Peoples Services,Head of Education,Transport,230007,Contract Hire,08-Dec-2017,3373619-56A,"1,408.00",RAYNERS COACHES.
Children and Young Peoples Services,Head of Education,Transport,230008,Contract Hire,08-Dec-2017,3373653-850,"1,210.00",SIMONS TAXIS.
Children and Young Peoples Services,Head of Education,Transport,230008,Contract Hire,08-Dec-2017,3373653-851,"1,892.00",SIMONS TAXIS.
Children and Young Peoples Services,Head of Education,Transport,230006,Contract Hire,08-Dec-2017,3373653-853,"1,188.00",SIMONS TAXIS.
Children and Young Peoples Services,Head of Education,Transport,230006,Contract Hire,08-Dec-2017,3373206-27,774.00,A HJ JOBLING T/A CASTLE TAXIS.
Children and Young Peoples Services,Head of Education,Transport,230006,Contract Hire,08-Dec-2017,3373257-98,880.00,BILL SCOTT TAXIS LTD.
Children and Young Peoples Services,Head of Education,Transport,230008,Contract Hire,08-Dec-2017,3373430-47,"1,430.00",IAN SHEPLEY T/A SHEPPA`S TAXIS.
Children and Young Peoples Services,Head of Education,Transport,230008,Contract Hire,08-Dec-2017,3373492-23,"1,980.00",LORRAINES TAXIS.
Children and Young Peoples Services,Head of Education,Transport,230007,Contract Hire,08-Dec-2017,3373672-19,622.80,STEVEN HENDERSON T/A HENDYS TAXIS.
Children and Young Peoples Services,Head of Education,Transport,230008,Contract Hire,08-Dec-2017,3373683-03,"1,012.00",SWIFT TAXIS.
Children and Young Peoples Services,Head of Education,Transport,230008,Contract Hire,08-Dec-2017,3373579-3,"1,439.00",PAUL ROSE T/A PAUL`S TAXIS.
Children and Young Peoples Services,Head of Education,Supplies and Services,384302,Miscellaneous Expenses,08-Dec-2017,3373727-0,500.00,TREDU (TOM ROBSON EDUCATION).
Dedicated Schools Grant,Dedicated Schools Grant,Transport,230010,Contract Hire,08-Dec-2017,3373431-BRIDGE003A,"1,270.00",IAN SOULSBY.
Dedicated Schools Grant,Dedicated Schools Grant,Transport,230010,Contract Hire,08-Dec-2017,3373523-KDK/NOV17A,"1,101.00",MR IAN KELSEY T/A KDK TAXIS.
Dedicated Schools Grant,Dedicated Schools Grant,Transport,230010,Contract Hire,08-Dec-2017,3373581-B005-NOV17,"2,230.00",PAUL WILSON.
Dedicated Schools Grant,Dedicated Schools Grant,Supplies and Services,304259,Equipment and Materials,08-Dec-2017,3373592-2591920441,"13,826.10",PHONAK UK LTD.
Dedicated Schools Grant,Dedicated Schools Grant,Transport,230010,Contract Hire,08-Dec-2017,3373431-BRIDGE003,705.00,IAN SOULSBY.
Dedicated Schools Grant,Dedicated Schools Grant,Transport,230010,Contract Hire,08-Dec-2017,3373523-KDK/NOV17,525.00,MR IAN KELSEY T/A KDK TAXIS.
Dedicated Schools Grant,Dedicated Schools Grant,Third Party Payments,410037,Rendered by Other Local Authorities,08-Dec-2017,3373642-01-OCT17,"2,340.00",SHARON HOWARD T/A SH COUNSELLING SERVICES.
Dedicated Schools Grant,Dedicated Schools Grant,Transport,230010,Contract Hire,08-Dec-2017,3373321-107196,"2,007.50",CROFT BUSINESS SERVICES (UK) LTD T/A CROFT TAXIS.
Dedicated Schools Grant,Dedicated Schools Grant,Transport,230010,Contract Hire,08-Dec-2017,3373726-26015,"1,236.00",TRAVEL 6.
Dedicated Schools Grant,Dedicated Schools Grant,Transport,230010,Contract Hire,08-Dec-2017,3373726-27013,"1,328.00",TRAVEL 6.
Dedicated Schools Grant,Dedicated Schools Grant,Transport,230010,Contract Hire,08-Dec-2017,3373726-30003,"1,388.00",TRAVEL 6.
Dedicated Schools Grant,Dedicated Schools Grant,Transport,230010,Contract Hire,08-Dec-2017,3373486-3707,"2,264.85",LINCAB TAXIS.
Dedicated Schools Grant,Dedicated Schools Grant,Transport,230010,Contract Hire,08-Dec-2017,3373626-1251,"2,471.00",ROAD RUNNERS (NE) LTD.
Dedicated Schools Grant,Dedicated Schools Grant,Third Party Payments,440080,Other Third Party Payments,08-Dec-2017,3373711-6679,"3,104.45",THE ROYAL NATIONAL COLLEGE FOR THE BLIND.
Dedicated Schools Grant,Dedicated Schools Grant,Transport,230010,Contract Hire,08-Dec-2017,3373539-220,"1,446.00",NEVILLE FORBES T/A FORBES TAXIS.
Dedicated Schools Grant,Dedicated Schools Grant,Transport,230010,Contract Hire,08-Dec-2017,3373265-64,"1,400.00",BOBS TAXIS.
Dedicated Schools Grant,Dedicated Schools Grant,Transport,230010,Contract Hire,08-Dec-2017,3373495-67,836.00,LUMLEY TAXIS.
Regeneration and Local Services,Direct Services,Construction Work,908105,Construction work,08-Dec-2017,3373239-INS2REPLACEMENTCREMATOR,"123,327.85",ATI ENVIRONMENTAL UK LTD.
Regeneration and Local Services,Economic Development and Housing,Supplies and Services,384700,Miscellaneous Expenses,08-Dec-2017,3373226-RED-12-2017-053,500.00,REDACTED - PAYMENT TO INDIVIDUAL
Regeneration and Local Services,Economic Development and Housing,Cap Exp on Grants & Other Financial Assistance (REFCUS),918501,Exp assets not owned by authority,08-Dec-2017,3373497-RED-12-2017-056,"9,030.00",M & R DEVELOPMENTS & CONTRACTORS LTD..
Regeneration and Local Services,Economic Development and Housing,Cap Exp on Grants & Other Financial Assistance (REFCUS),918401,Capital grants,08-Dec-2017,3373659-RED-12-2017-055,"15,000.00",SOLAR DESIGN & DEVELOPMENT.
Regeneration and Local Services,Direct Services,Third Party Payments,430100,Rendered by Private Contractors,08-Dec-2017,3373334-20111700000200,"7,325.00",DE LAGE LANDEN LEASING LTD.
Regeneration and Local Services,Technical Services,Employees,040149,Recruitment Instruction and Training,08-Dec-2017,3373540-SLINV/00002229,"1,020.00",NEW COLLEGE DURHAM.
Regeneration and Local Services,Technical Services,Employees,040149,Recruitment Instruction and Training,08-Dec-2017,3373540-SLINV/00002230,"1,760.00",NEW COLLEGE DURHAM.
Regeneration and Local Services,Direct Services,Third Party Payments,430120,Rendered by Private Contractors,08-Dec-2017,3373386-CTIN06520348,"3,428.15",FINNING (UK) LTD.
Regeneration and Local Services,Direct Services,Third Party Payments,430120,Rendered by Private Contractors,08-Dec-2017,3373386-CTIN06520349,"6,894.25",FINNING (UK) LTD.
Regeneration and Local Services,Direct Services,Third Party Payments,430120,Rendered by Private Contractors,08-Dec-2017,3373386-CTIN06520350,"3,617.90",FINNING (UK) LTD.
Regeneration and Local Services,Direct Services,Third Party Payments,430120,Rendered by Private Contractors,08-Dec-2017,3373386-CTIN06524969,"6,249.10",FINNING (UK) LTD.
Regeneration and Local Services,Direct Services,Third Party Payments,430120,Rendered by Private Contractors,08-Dec-2017,3373386-CTIN06524970,"11,119.35",FINNING (UK) LTD.
Regeneration and Local Services,Direct Services,Supplies and Services,304221,Equipment and Materials,08-Dec-2017,3373645-CD970580994,"3,227.84",SHERRIFF AMENITY.
Regeneration and Local Services,Direct Services,Supplies and Services,304221,Equipment and Materials,08-Dec-2017,3373367-059-214834,821.02,EDMUNDSON ELECTRICAL LTD.
Regeneration and Local Services,Technical Services,Third Party Payments,430100,Rendered by Private Contractors,08-Dec-2017,3373554-DI20282275,566.49,NORTHERN POWERGRID (NORTHEAST) LTD.
Regeneration and Local Services,Technical Services,Third Party Payments,430100,Rendered by Private Contractors,08-Dec-2017,3373554-DI20282277,"2,049.80",NORTHERN POWERGRID (NORTHEAST) LTD.
Regeneration and Local Services,Technical Services,Stock,926900,Stock in hand-Inventory system,08-Dec-2017,3373716-N/IN209551,530.70,THOMAS OWEN & SONS (NEWCASTLE) LTD.
Regeneration and Local Services,Direct Services,Supplies and Services,372009,Subscriptions,08-Dec-2017,3373376-Y01185626,"1,980.00",ENVIRONMENT AGENCY.
Regeneration and Local Services,Technical Services,Supplies and Services,304357,Equipment and Materials,08-Dec-2017,3373400-DCC121117,"20,836.91",GAP GROUP LTD.
Regeneration and Local Services,Technical Services,Supplies and Services,304357,Equipment and Materials,08-Dec-2017,3373400-DCC191117,"26,959.08",GAP GROUP LTD.
Regeneration and Local Services,Technical Services,Stock,926900,Stock in hand-Inventory system,08-Dec-2017,3373407-06/708642,786.46,GREENHAM TRADING LTD.
Regeneration and Local Services,Technical Services,Stock,926900,Stock in hand-Inventory system,08-Dec-2017,3373407-06/709224,845.85,GREENHAM TRADING LTD.
Regeneration and Local Services,Culture & Sport,Supplies and Services,332029,Printing Stationery and Gen Off Exps,08-Dec-2017,3373304-INV02656,"1,946.75",COMPETITION LINE UK LTD T/A LIFESTYLE FITNESS.
Regeneration and Local Services,Economic Development and Housing,Premises,120021,Energy Costs,08-Dec-2017,3373311-12569087,844.37,CORONA ENERGY RETAIL 2 LTD.
Regeneration and Local Services,Economic Development and Housing,Premises,120021,Energy Costs,08-Dec-2017,3373311-12569541,766.77,CORONA ENERGY RETAIL 2 LTD.
Regeneration and Local Services,Economic Development and Housing,Premises,120021,Energy Costs,08-Dec-2017,3373311-12574326,958.64,CORONA ENERGY RETAIL 2 LTD.
Regeneration and Local Services,Economic Development and Housing,Premises,120021,Energy Costs,08-Dec-2017,3373311-12582940,610.69,CORONA ENERGY RETAIL 2 LTD.
Regeneration and Local Services,Culture & Sport,Supplies and Services,338047,Services,08-Dec-2017,3373515-INV-0093,"5,537.49",MICK PERRIN WORLDWIDE LTD (THEATRE CONTRACTOR).
Regeneration and Local Services,Direct Services,Employees,040149,Recruitment Instruction and Training,08-Dec-2017,3373541-1E003108,855.00,NEWCASTLE COLLEGE.
Regeneration and Local Services,Spatial Policy Planning Assets & Environment,Supplies and Services,384540,Miscellaneous Expenses,08-Dec-2017,3373544-22382277,750.00,NEWSQUEST (YORKSHIRE & NORTH EAST) LTD.
Regeneration and Local Services,Direct Services,Premises,145009,Cleaning and Domestic Supplies,08-Dec-2017,3373381-MI87592,"1,578.45",FCC RECYCLING (UK)  LTD.
Regeneration and Local Services,Culture & Sport,Supplies and Services,338047,Services,08-Dec-2017,3373224-18-010,"2,587.50",REDACTED - PAYMENT TO INDIVIDUAL
Regeneration and Local Services,Direct Services,Transport,210057,Repair and Maintenance of Vehicles,08-Dec-2017,3373290-354937,796.80,CHATFIELDS.
Regeneration and Local Services,Spatial Policy Planning Assets & Environment,Premises,120021,Energy Costs,08-Dec-2017,3373322-342765,839.31,CROWN OIL LTD.
Regeneration and Local Services,Direct Services,Supplies and Services,304221,Equipment and Materials,08-Dec-2017,3373402-814301,"2,016.00",GARTEC LTD.
Regeneration and Local Services,Technical Services,Stock,926900,Stock in hand-Inventory system,08-Dec-2017,3373436-609199,915.60,INSTARMAC GROUP PLC.
Regeneration and Local Services,Direct Services,Transport,215005,Running Costs of Vehicles,08-Dec-2017,3373561-285805,990.00,OIL NRG LTD.
Regeneration and Local Services,Direct Services,Transport,215005,Running Costs of Vehicles,08-Dec-2017,3373561-285851,"4,871.95",OIL NRG LTD.
Regeneration and Local Services,Direct Services,Transport,215022,Running Costs of Vehicles,08-Dec-2017,3373561-285852,"1,042.80",OIL NRG LTD.
Regeneration and Local Services,Direct Services,Transport,215005,Running Costs of Vehicles,08-Dec-2017,3373561-286025,"17,368.82",OIL NRG LTD.
Regeneration and Local Services,Direct Services,Third Party Payments,430100,Rendered by Private Contractors,08-Dec-2017,3373573-118405,764.00,PALINTEST LTD.
Regeneration and Local Services,Technical Services,Third Party Payments,430100,Rendered by Private Contractors,08-Dec-2017,3373605-148659,"27,850.80",PREMIER TRAFFIC MANAGEMENT LTD.
Regeneration and Local Services,Technical Services,Stock,926900,Stock in hand-Inventory system,08-Dec-2017,3373657-191186,"2,645.28",SNAPFAST.
Regeneration and Local Services,Technical Services,Stock,926900,Stock in hand-Inventory system,08-Dec-2017,3373657-191187,"1,133.28",SNAPFAST.
Regeneration and Local Services,Culture & Sport,Supplies and Services,324117,Provisions,08-Dec-2017,3373718-291514,864.48,TOMMY TUCKER LTD.
Regeneration and Local Services,Technical Services,Supplies and Services,304221,Equipment and Materials,08-Dec-2017,3373739-180440,714.61,TYNEDALE ROADSTONE LTD.
Regeneration and Local Services,Technical Services,Supplies and Services,304221,Equipment and Materials,08-Dec-2017,3373739-180441,"1,045.00",TYNEDALE ROADSTONE LTD.
Regeneration and Local Services,Technical Services,Supplies and Services,304221,Equipment and Materials,08-Dec-2017,3373739-180442,"1,028.90",TYNEDALE ROADSTONE LTD.
Regeneration and Local Services,Technical Services,Supplies and Services,304221,Equipment and Materials,08-Dec-2017,3373739-180443,983.90,TYNEDALE ROADSTONE LTD.
Regeneration and Local Services,Technical Services,Supplies and Services,304221,Equipment and Materials,08-Dec-2017,3373739-180444,747.20,TYNEDALE ROADSTONE LTD.
Regeneration and Local Services,Technical Services,Supplies and Services,304221,Equipment and Materials,08-Dec-2017,3373739-180445,782.72,TYNEDALE ROADSTONE LTD.
Regeneration and Local Services,Technical Services,Supplies and Services,304221,Equipment and Materials,08-Dec-2017,3373739-180446,"1,100.48",TYNEDALE ROADSTONE LTD.
Regeneration and Local Services,Technical Services,Supplies and Services,304221,Equipment and Materials,08-Dec-2017,3373739-180447,"1,095.50",TYNEDALE ROADSTONE LTD.
Regeneration and Local Services,Technical Services,Construction Work,908105,Construction work,08-Dec-2017,3373443-21043,"1,564.65",JACK COUPE & SONS LTD T/A COUPE LINE.
Regeneration and Local Services,Direct Services,Supplies and Services,304221,Equipment and Materials,08-Dec-2017,3373444-31278,804.60,JACK TIGHE DECORATING LTD.
Regeneration and Local Services,Technical Services,Construction Work,908105,Construction work,08-Dec-2017,3373551-17319,"4,746.00",NORTH EAST TRAFFIC DATA COLLECTION LTD.
Regeneration and Local Services,Economic Development and Housing,Supplies and Services,372009,Subscriptions,08-Dec-2017,3373562-24685,600.00,ONE AWARDS.
Regeneration and Local Services,Transport and Contracted Services,Supplies and Services,384199,Miscellaneous Expenses,08-Dec-2017,3373651-15768,625.33,SIGNS 2 SCHOOLS T/A SIGNS DIRECT (YORKSHIRE) LTD.
Regeneration and Local Services,Economic Development and Housing,Premises,106082,Centrally Controlled Rep and Maint,08-Dec-2017,3373675-10948,595.51,STONE TECHNICAL SERVICES LTD.
Regeneration and Local Services,Economic Development and Housing,Premises,108125,Service Repairs and Maintenance,08-Dec-2017,3373684-17620,800.00,SWINBURNE HORTICULTURAL SERVICES LTD.
Regeneration and Local Services,Culture & Sport,Supplies and Services,312013,Newspapers Books and Periodicals,08-Dec-2017,3373710-28769,"1,065.00",THE READING AGENCY LTD.
Regeneration and Local Services,Direct Services,Supplies and Services,304221,Equipment and Materials,08-Dec-2017,3373763-10156,576.00,WILF HUSBAND PLANT HIRE.
Regeneration and Local Services,Spatial Policy Planning Assets & Environment,Supplies and Services,384199,Miscellaneous Expenses,08-Dec-2017,3373331-0300,540.00,DARREN STOCKILL.
Regeneration and Local Services,Direct Services,Transport,210057,Repair and Maintenance of Vehicles,08-Dec-2017,3373420-4236,705.01,HEXHAM MACHINERY CENTRE.
Regeneration and Local Services,Culture & Sport,Supplies and Services,338047,Services,08-Dec-2017,3373538-6/17,"1,000.00",NEIL ARMSTRONG..
Regeneration and Local Services,Culture & Sport,Supplies and Services,304259,Equipment and Materials,08-Dec-2017,3373614-1369,"2,367.00",R & M PRODUCTIONS.
Regeneration and Local Services,Direct Services,Premises,108099,Service Repairs and Maintenance,08-Dec-2017,3373744-2214,642.00,VENTILATION HYGIENE SPECIALISTS (VHS) LTD.
Resources,Legal & Democratic Services,Supplies and Services,338042,Services,08-Dec-2017,3373341-304201/INVTF39,540.00,DERE STREET BARRISTERS.
Resources,Financial Services,Supplies and Services,342051,Computers and Communications,08-Dec-2017,3373296-C/RB158894,"6,241.07",CIVICA UK LTD.
Resources,Digital and Customer Services,Supplies and Services,340001,Postages,08-Dec-2017,3373632-9055462105,"11,346.38",ROYAL MAIL GROUP PLC.
Resources,Financial Services,Supplies and Services,384180,Miscellaneous Expenses,08-Dec-2017,3373490-0100375,"6,287.35",LOOMIS UK LTD.
Resources,Digital and Customer Services,Supplies and Services,304245,Equipment and Materials,08-Dec-2017,3373603-9002388,543.53,PREMIER PAPER GROUP LTD.
Resources,Digital and Customer Services,Supplies and Services,344137,Telephones,08-Dec-2017,3373501-693233,"58,368.80",MAINTEL EUROPE LTD.
Resources,Digital and Customer Services,Supplies and Services,384619,Miscellaneous Expenses,08-Dec-2017,3373510-003239,"3,900.00",MCPC SYSTEMS (UK) LTD.
Resources,Corporate Finance,Supplies and Services,384999,Miscellaneous Expenses,08-Dec-2017,3373754-665529,"3,619.50",WARD HADAWAY.
Transformation and Partnerships,Partnerships & Community Engagement Div.,Transfer Payments,525030,Other,08-Dec-2017,3373426-VOUCHER16AB-3TWN006CYP08,500.00,HUNWICK CRICKET CLUB.
Transformation and Partnerships,Partnerships & Community Engagement Div.,Cap Exp on Grants & Other Financial Assistance (REFCUS),918004,Contributions to other bodies,08-Dec-2017,3373416-VOUCHER16NB-BASH046,"96,986.00",HEALTH EXPRESS.
Transformation and Partnerships,Partnerships & Community Engagement Div.,Construction Work,908105,Construction work,08-Dec-2017,3373457-IINSSTANLEY,"71,909.40",JOHN WADE (HAULAGE) LTD.
Transformation and Partnerships,Comms & Information Management,Supplies and Services,312010,Newspapers Books and Periodicals,08-Dec-2017,3373671-INV-3526,"1,700.00",STEVE DAVIDSON ADVERTISING LTD T/A SD ADVERTISING LTD.
Transformation and Partnerships,Partnerships & Community Engagement Div.,Supplies and Services,338099,Services,08-Dec-2017,3373605-148646,560.00,PREMIER TRAFFIC MANAGEMENT LTD.
Adult and Health Services,Head of Adults,Supplies and Services,384619,Miscellaneous Expenses,11-Dec-2017,3373883-3980025895,"7,623.28",CO DURHAM & DARLINGTON NHS FOUNDATION TRUST.
Adult and Health Services,Public Health,Supplies and Services,384155,Miscellaneous Expenses,11-Dec-2017,3374060-1000054126,"65,729.62",NHS BUSINESS SERVICES AUTHORITY (NHSBSA).
Adult and Health Services,Head of Adults,Supplies and Services,328041,Clothing Uniforms and Laundry,11-Dec-2017,3373959-06/709058,570.00,GREENHAM TRADING LTD.
Adult and Health Services,Head of Adults,Supplies and Services,338367,Services,11-Dec-2017,3373864-45727,675.00,CARE ABILITY.
Adult and Health Services,Head of Adults,Supplies and Services,338366,Services,11-Dec-2017,3373864-45777,"3,049.50",CARE ABILITY.
Adult and Health Services,Commissioning inc Supporting People,Transport,240045,Car Allowances,11-Dec-2017,3374164-7702,"8,578.00",SUPPORTIVE SRC LTD.
Children and Young Peoples Services,Head of Looked After Provision Permanence and Care Leavers,Supplies and Services,364305,Grants to Voluntary Organisations,11-Dec-2017,3373990-CAS-12-2017-049,638.94,REDACTED - PAYMENT TO INDIVIDUAL
Children and Young Peoples Services,Head of Education,Transfer Payments,510026,School Children,11-Dec-2017,3373859-17NOVEMBER2017,577.50,BUSY BODIES CHILDCARE.
Children and Young Peoples Services,Head of Education,Transfer Payments,510026,School Children,11-Dec-2017,3373933-STH-BA-13707,938.75,EYPS LTD.
Children and Young Peoples Services,Head of Education,Transfer Payments,510026,School Children,11-Dec-2017,3373933-STH-BA-13795,756.25,EYPS LTD.
Children and Young Peoples Services,Head of Looked After Provision Permanence and Care Leavers,Premises,108099,Service Repairs and Maintenance,11-Dec-2017,3373813-37050004-61,"251,321.79",ADT FIRE & SECURITY PLC.
Children and Young Peoples Services,Head of Education,Supplies and Services,338027,Services,11-Dec-2017,3373844-0000000035,"3,500.00",BIDDICK ACADEMY.
Children and Young Peoples Services,Head of Education,Supplies and Services,338027,Services,11-Dec-2017,3373844-0000000076,700.00,BIDDICK ACADEMY.
Children and Young Peoples Services,Head of Education,Transfer Payments,510026,School Children,11-Dec-2017,3373859-EARLYYEARS,"1,485.00",BUSY BODIES CHILDCARE.
Children and Young Peoples Services,Head of Looked After Provision Permanence and Care Leavers,Premises,120021,Energy Costs,11-Dec-2017,3373857-952339010,608.72,BRITISH GAS BUSINESS.
Children and Young Peoples Services,Head of Education,Transport,230005,Contract Hire,11-Dec-2017,3374121-1720/A047,"2,120.00",RON`S TAXIS (FISHBURN).
Children and Young Peoples Services,Head of Looked After Provision Permanence and Care Leavers,Employees,040149,Recruitment Instruction and Training,11-Dec-2017,3373950-2017/279,"2,000.00",GENDER IDENTITY RESEARCH AND EDUCATION SOCIETY (GIRES).
Children and Young Peoples Services,Head of Early Help Assessment and Safeguarding,Transport,230005,Contract Hire,11-Dec-2017,3374193-369SEP17,516.00,TONYS TAXIS (A BIRCH).
Children and Young Peoples Services,Head of Early Help Assessment and Safeguarding,Transport,230005,Contract Hire,11-Dec-2017,3374193-373OCT17,846.00,TONYS TAXIS (A BIRCH).
Children and Young Peoples Services,Head of Early Help Assessment and Safeguarding,Transport,230005,Contract Hire,11-Dec-2017,3374193-375OCT17,672.00,TONYS TAXIS (A BIRCH).
Children and Young Peoples Services,Head of Education,Supplies and Services,352001,Conference Expenses,11-Dec-2017,3373861-1718036,"1,077.90",BWB (LINCOLN) LTD.
Children and Young Peoples Services,Head of Looked After Provision Permanence and Care Leavers,Transport,230005,Contract Hire,11-Dec-2017,3374138-72858,708.00,SHOTTON PRIVATE HIRE.
Children and Young Peoples Services,Head of Education,Transfer Payments,510026,School Children,11-Dec-2017,3374231-AL001,604.80,YORK HOUSE NURSERY.
Children and Young Peoples Services,Head of Education,Transfer Payments,510026,School Children,11-Dec-2017,3374231-MF001,907.20,YORK HOUSE NURSERY.
Children and Young Peoples Services,Head of Education,Transport,230005,Contract Hire,11-Dec-2017,3373949-4110,"1,071.00",GEM TRAVEL.
Children and Young Peoples Services,Head of Early Help Assessment and Safeguarding,Transport,230005,Contract Hire,11-Dec-2017,3374021-3556,"1,650.00",LOCAL TRANSPORT LTD.
Children and Young Peoples Services,Head of Early Help Assessment and Safeguarding,Transport,230005,Contract Hire,11-Dec-2017,3374021-3581,"2,373.00",LOCAL TRANSPORT LTD.
Children and Young Peoples Services,Head of Looked After Provision Permanence and Care Leavers,Transport,230005,Contract Hire,11-Dec-2017,3374021-3585,900.00,LOCAL TRANSPORT LTD.
Children and Young Peoples Services,Head of Looked After Provision Permanence and Care Leavers,Transport,230005,Contract Hire,11-Dec-2017,3374021-3608,760.00,LOCAL TRANSPORT LTD.
Children and Young Peoples Services,Head of Early Help Assessment and Safeguarding,Transport,230005,Contract Hire,11-Dec-2017,3374021-3623,"2,475.00",LOCAL TRANSPORT LTD.
Children and Young Peoples Services,Head of Looked After Provision Permanence and Care Leavers,Transport,230005,Contract Hire,11-Dec-2017,3374021-3627,840.00,LOCAL TRANSPORT LTD.
Children and Young Peoples Services,Head of Looked After Provision Permanence and Care Leavers,Transport,230005,Contract Hire,11-Dec-2017,3374021-3630,"1,140.00",LOCAL TRANSPORT LTD.
Children and Young Peoples Services,Head of Looked After Provision Permanence and Care Leavers,Transport,230005,Contract Hire,11-Dec-2017,3374021-3637,760.00,LOCAL TRANSPORT LTD.
Children and Young Peoples Services,Head of Early Help Assessment and Safeguarding,Transport,230005,Contract Hire,11-Dec-2017,3374021-3638,"1,012.00",LOCAL TRANSPORT LTD.
Children and Young Peoples Services,Head of Early Help Assessment and Safeguarding,Transport,230005,Contract Hire,11-Dec-2017,3374021-3644,916.00,LOCAL TRANSPORT LTD.
Dedicated Schools Grant,Dedicated Schools Grant,Third Party Payments,410037,Rendered by Other Local Authorities,11-Dec-2017,3374069-NVSI34,"10,818.75",NORTH VIEW ACADEMY.
Regeneration and Local Services,Economic Development and Housing,Cap Exp on Grants & Other Financial Assistance (REFCUS),918401,Capital grants,11-Dec-2017,3373891-RED-12-2017-062,"5,000.00",REDACTED - PAYMENT TO INDIVIDUAL
Regeneration and Local Services,Economic Development and Housing,Supplies and Services,384700,Miscellaneous Expenses,11-Dec-2017,3374015-RED-12-2017-061,"1,000.00",LIFT PERFORMANCE EVOLUTION.
